Workbook

Sheet opt
B1: y=log x | C1: 1<x<10
B3: qin | C3: =F18 -> 46.03563257 | E3: Dq | F3: 90 | H3: Rx | I3: =F3/9 -> 10 | J3: =LN(2) -> 0.6931471806 | N3: 30
B4: fin | C4: =F19 -> 109.2082374 | E4: Df | F4: 60 | H4: Ry | I4: =F4 -> 60 | N4: 10.90943725
B6: x | C6: y | D6: q | E6: f | N6: 96.55334769
B7: =5.5-4.5*COS(PI()/10) -> 1.220245677 | C7: =LOG(B7) -> 0.08644727763 | D7: =$C$3+$I$3*(B7-1) -> 48.23808934 | E7: =$C$4+$I$4*C7 -> 114.3950741 | G7: =D7*D_R -> 0.8419134839 | H7: 1.996570691
B8: =5.5-4.5*COS(3*PI()/10) -> 2.854966365 | C8: =LOG(B8) -> 0.455600996 | D8: =$C$3+$I$3*(B8-1) -> 64.58529622 | E8: =$C$4+$I$4*C8 -> 136.5442972 | G8: 1.127226067 | H8: 2.383147561
B9: =5.5-4.5*COS(5*PI()/10) -> 5.5 | C9: 0.7403626895 | D9: =$C$3+$I$3*(B9-1) -> 91.03563257 | E9: 153.6299988 | G9: 1.588871525 | H9: 2.681349309
B10: =5.5-4.5*COS(7*PI()/10) -> 8.145033635 | C10: 0.9108928821 | D10: 117.4859689 | E10: 163.8618104 | G10: 2.050516983 | H10: 2.859928109
B11: =5.5-4.5*COS(9*PI()/10) -> 9.779754323 | C11: 0.990327945 | D11: 133.8331758 | E11: 168.6279141 | G11: 2.335829566 | H11: 2.943112313
C13: =COS(H7) -> -0.4130261339 | D13: =-COS(G7) -> -0.6660367422 | E13: 1 | F13: =COS(H7-G7) -> 0.4042320955
C14: =COS(H8) -> -0.7259063431 | D14: =-COS(G8) -> -0.4291669416 | E14: 1 | F14: =COS(H8-G8) -> 0.3096974607
C15: =COS(H9) -> -0.8959444387 | D15: =-COS(G9) -> 0.01807421404 | E15: 1 | F15: =COS(H9-G9) -> 0.4602870794 | H15: Det | I15: =MDETERM(C13:F16) -> 9.828345265e-05
C16: =COS(H10) -> -0.9605941009 | D16: =-COS(G10) -> 0.4615313807 | E16: 1 | F16: =COS(H10-G10) -> 0.6899248269
C17: =COS(H11) -> -0.9803673557 | D17: =-COS(G11) -> 0.6925609765 | E17: 1 | F17: =COS(H11-G11) -> 0.8212016162 | AQ17: emax Starting from Smin
F18: 46.03563257 | R18: Obtained from chebyshev spacing | X18: Least squares minimization | AE18: minmax
F19: 109.2082374 | H19: =C20*C13+C21*D13+C22-F13 -> 0 | W19: S | X19: 2.033152311e-05 | AH19: S | AI19: 0.001700752866 | AO19: S | AP19: 2.434169908e-05
C20: =MMULT(MINVERSE(C13:E15),F13:F15) -> 0.7821897257 | E20: a2 | F20: 1.284351922 | H20: =C20*C14+C21*D14+C22-F14 -> 0 | K20: qin | L20: fin | M20: a2 | N20: a3 | O20: a4 | P20: |emax| | R20: 49.8719756 | S20: emax | T20: 0.01255922955 | W20: emax | X20: 0.001755178268 | Y20: 45.97132092 | AF20: 50.54877963 | AH20: emax | AI20: 0.005348881421 | AO20: emax | AP20: 0.001230481883 | AQ20: 45.85882127 | AV20: 45.81088092
C21: 0.6340911753 | E21: a3 | F21: 0.7015914563 | H21: =C20*C15+C21*D15+C22-F15 -> 0 | K21: 30 | L21: 10.90943725 | M21: 0.06042553963 | N21: 1.074917482 | O21: 0.1292656026 | P21: 8.19x10-3 | R21: 108.6235941 | S21: S | T21: 0.0002096526987 | Y21: 109.0551785 | AF21: 109.3908733 | AQ21: 109.0902682 | AV21: 109.2021788
C22: 1.149624915 | E22: a4 | F22: 1.581279616 | K22: 30 | L22: 96.55334769 | M22: 6.838127819 | N22: 5.287540174 | O22: 2.609860464 | P22: 6.8x10-4 | R22: 1.295140264 | Y22: 1.286727964 | AF22: 1.285282555 | AQ22: 1.287128022 | AV22: 1.285304091
H23: =MIN(H27:H117) -> -0.001407449501 | R23: 0.6491542253 | Y23: 0.7017233806 | AF23: 0.6458264585 | AQ23: 0.7043427719 | AV23: 0.705691756
C24: =C20*C16+C21*D16+C22-F16 -> 0.0009862269836 | E24: =SQRT(C24^2+C25^2) -> 0.001231080994 | H24: =MAX(H27:H117) -> 0.001406753034 | I24: =SUM(I27:I117) -> 7.492662806e-05 | R24: 1.625608526 | Y24: 1.581813488 | AF24: 1.625798756 | AQ24: 1.58146963 | AV24: 1.580486302
C25: =C20*C17+C21*D17+C22-F17 -> 0.0007368288482 | H25: =MAX(-H23,H24) -> 0.001407449501
E26: x | F26: yreq | G26: ygen
A27: =C3 -> 46.03563257 | B27: =A27*D_R -> 0.8034733617 | C27: =fourbar($F$20,$F$21,$F$22,1,-1,B27) -> 1.904569436 | D27: =C27/D_R -> 109.1237905 | E27: =1+1/$I$3*(A27-$A$27) -> 1 | F27: =LOG(E27) -> 0 | G27: =1/$I$4*(D27-$C$4) -> -0.001407449501 | H27: =G27-F27 -> -0.001407449501 | I27: =H27^2 -> 1.980914099e-06
A28: =A27+1 -> 47.03563257 | B28: 0.8209266542 | C28: 1.950073936 | D28: 111.7310063 | E28: 1.1 | F28: =LOG(E28) -> 0.04139268516 | G28: =1/$I$4*(D28-$C$4) -> 0.0420461469 | H28: =G28-F28 -> 0.0006534617437 | I28: =H28^2 -> 4.270122505e-07
A29: =A28+1 -> 48.03563257 | B29: 0.8383799467 | C29: 1.990370656 | D29: 114.0398383 | E29: 1.2 | F29: 0.07918124605 | G29: 0.08052668049 | H29: 0.001345434445 | I29: 1.810193845e-06
A30: 49.03563257 | B30: 0.8558332392 | C30: 2.026837661 | D30: 116.1292438 | E30: 1.3 | F30: 0.1139433523 | G30: 0.1153501053 | H30: 0.001406753034 | I30: 1.978954098e-06
A31: 50.03563257 | B31: 0.8732865317 | C31: 2.060307399 | D31: 118.0469185 | E31: 1.4 | F31: 0.1461280357 | G31: 0.1473113504 | H31: 0.001183314718 | I31: 1.400233721e-06
A32: 51.03563257 | B32: 0.8907398243 | C32: 2.091332928 | D32: 119.8245503 | E32: 1.5 | F32: 0.1760912591 | G32: 0.1769385481 | H32: 0.0008472890586 | I32: 7.178987488e-07
A33: 52.03563257 | B33: 0.9081931168 | C33: 2.120306555 | D33: 121.4846169 | E33: 1.6 | F33: 0.2041199827 | G33: 0.2046063241 | H33: 0.000486341404 | I33: 2.365279613e-07
A34: 53.03563257 | B34: 0.9256464093 | C34: 2.147520208 | D34: 123.0438443 | E34: 1.7 | F34: 0.2304489214 | G34: 0.230593448 | H34: 0.0001445266075 | I34: 2.088794026e-08
A35: 54.03563257 | B35: 0.9430997018 | C35: 2.173199192 | D35: 124.5151417 | E35: 1.8 | F35: 0.2552725051 | G35: 0.2551150717 | H35: -0.000157433447 | I35: 2.478529022e-08
A36: 55.03563257 | B36: 0.9605529943 | C36: 2.197522458 | D36: 125.9087622 | E36: 1.9 | F36: 0.278753601 | G36: 0.27834208 | H36: -0.0004115209756 | I36: 1.693495134e-07
A37: 56.03563257 | B37: 0.9780062869 | C37: 2.220635458 | D37: 127.2330396 | E37: 2 | F37: 0.3010299957 | G37: 0.3004133691 | H37: -0.0006166266019 | I37: 3.802283662e-07
A38: 57.03563257 | B38: 0.9954595794 | C38: 2.242658675 | D38: 128.494877 | E38: 2.1 | F38: 0.3222192947 | G38: 0.3214439925 | H38: -0.0007753022068 | I38: 6.010935119e-07
A39: 58.03563257 | B39: 1.012912872 | C39: 2.263693499 | D39: 129.7000836 | E39: 2.2 | F39: 0.3424226808 | G39: 0.3415307692 | H39: -0.0008919115742 | I39: 7.955062562e-07
A40: 59.03563257 | B40: 1.030366164 | C40: 2.283826391 | D40: 130.8536133 | E40: 2.3 | F40: 0.361727836 | G40: 0.3607562649 | H40: -0.0009715711197 | I40: 9.439504405e-07
A41: 60.03563257 | B41: 1.047819457 | C41: 2.303131927 | D41: 131.9597391 | E41: 2.4 | F41: 0.3802112417 | G41: 0.3791916944 | H41: -0.001019547352 | I41: 1.039476803e-06
A42: 61.03563257 | B42: 1.065272749 | C42: 2.321675065 | D42: 133.0221826 | E42: 2.5 | F42: 0.3979400087 | G42: 0.3968990861 | H42: -0.001040922523 | I42: 1.083519698e-06
A43: 62.03563257 | B43: 1.082726042 | C43: 2.339512863 | D43: 134.0442132 | E43: 2.6 | F43: 0.414973348 | G43: 0.4139329288 | H43: -0.001040419162 | I43: 1.082472033e-06
A44: 63.03563257 | B44: 1.100179334 | C44: 2.356695821 | D44: 135.0287242 | E44: 2.7 | F44: 0.4313637642 | G44: 0.4303414453 | H44: -0.001022318889 | I44: 1.045135911e-06
A45: 64.03563257 | B45: 1.117632627 | C45: 2.373268926 | D45: 135.9782931 | E45: 2.8 | F45: 0.4471580313 | G45: 0.4461675946 | H45: -0.0009904367308 | I45: 9.809649177e-07
A46: 65.03563257 | B46: 1.13508592 | C46: 2.389272488 | D46: 136.8952297 | E46: 2.9 | F46: 0.4623979979 | G46: 0.4614498704 | H46: -0.0009481274598 | I46: 8.9894568e-07
A47: 66.03563257 | B47: 1.152539212 | C47: 2.404742816 | D47: 137.7816141 | E47: 3 | F47: 0.4771212547 | G47: 0.4762229451 | H47: -0.000898309626 | I47: 8.069601841e-07
A48: 67.03563257 | B48: 1.169992505 | C48: 2.419712767 | D48: 138.6393292 | E48: 3.1 | F48: 0.4913616938 | G48: 0.4905181953 | H48: -0.000843498559 | I48: 7.114898191e-07
A49: 68.03563257 | B49: 1.187445797 | C49: 2.434212201 | D49: 139.4700856 | E49: 3.2 | F49: 0.5051499783 | G49: 0.5043641353 | H49: -0.0007858430576 | I49: 6.175493112e-07
A50: 69.03563257 | B50: 1.20489909 | C50: 2.448268359 | D50: 140.2754441 | E50: 3.3 | F50: 0.5185139399 | G50: 0.5177867773 | H50: -0.000727162621 | I50: 5.287654774e-07
A51: 70.03563257 | B51: 1.222352382 | C51: 2.461906176 | D51: 141.0568335 | E51: 3.4 | F51: 0.531478917 | G51: 0.5308099336 | H51: -0.0006689834097 | I51: 4.475388024e-07
A52: 71.03563257 | B52: 1.239805675 | C52: 2.475148554 | D52: 141.8155658 | E52: 3.5 | F52: 0.5440680444 | G52: 0.5434554724 | H52: -0.0006125719493 | I52: 3.75244393e-07
A53: 72.03563257 | B53: 1.257258967 | C53: 2.488016582 | D53: 142.5528495 | E53: 3.6 | F53: 0.5563025008 | G53: 0.5557435347 | H53: -0.0005589661075 | I53: 3.124431093e-07
A54: 73.03563257 | B54: 1.27471226 | C54: 2.500529741 | D54: 143.2698007 | E54: 3.7 | F54: 0.5682017241 | G54: 0.5676927209 | H54: -0.0005090031847 | I54: 2.590842421e-07
A55: 74.03563257 | B55: 1.292165552 | C55: 2.512706062 | D55: 143.9674525 | E55: 3.8 | F55: 0.5797835966 | G55: 0.5793202515 | H55: -0.0004633451478 | I55: 2.14688726e-07
A56: 75.03563257 | B56: 1.309618845 | C56: 2.524562281 | D56: 144.6467638 | E56: 3.9 | F56: 0.591064607 | G56: 0.5906421059 | H56: -0.0004225011417 | I56: 1.785072147e-07
A57: 76.03563257 | B57: 1.327072137 | C57: 2.536113956 | D57: 145.3086261 | E57: 4 | F57: 0.6020599913 | G57: 0.6016731439 | H57: -0.0003868474728 | I57: 1.496509672e-07
A58: 77.03563257 | B58: 1.34452543 | C58: 2.54737559 | D58: 145.9538701 | E58: 4.1 | F58: 0.6127838567 | G58: 0.6124272114 | H58: -0.0003566452788 | I58: 1.271958549e-07
A59: 78.03563257 | B59: 1.361978722 | C59: 2.558360716 | D59: 146.5832715 | E59: 4.2 | F59: 0.6232492904 | G59: 0.6229172343 | H59: -0.0003320561088 | I59: 1.102612594e-07
A60: 79.03563257 | B60: 1.379432015 | C60: 2.569081993 | D60: 147.1975554 | E60: 4.3 | F60: 0.6334684556 | G60: 0.6331552999 | H60: -0.0003131556299 | I60: 9.806644854e-08
A61: 80.03563257 | B61: 1.396885307 | C61: 2.579551278 | D61: 147.7974013 | E61: 4.4 | F61: 0.6434526765 | G61: 0.6431527308 | H61: -0.0002999456637 | I61: 8.996740116e-08
A62: 81.03563257 | B62: 1.4143386 | C62: 2.589779695 | D62: 148.3834464 | E62: 4.5 | F62: 0.6532125138 | G62: 0.652920149 | H62: -0.0002923647411 | I62: 8.547714187e-08
A63: 82.03563257 | B63: 1.431791892 | C63: 2.599777693 | D63: 148.9562895 | E63: 4.6 | F63: 0.6627578317 | G63: 0.6624675343 | H63: -0.0002902973477 | I63: 8.427255006e-08
A64: 83.03563257 | B64: 1.449245185 | C64: 2.609555106 | D64: 149.516494 | E64: 4.7 | F64: 0.6720978579 | G64: 0.6718042759 | H64: -0.0002935820116 | I64: 8.619039754e-08
A65: 84.03563257 | B65: 1.466698477 | C65: 2.619121196 | D65: 150.0645906 | E65: 4.8 | F65: 0.6812412374 | G65: 0.680939219 | H65: -0.0003020183749 | I65: 9.12150988e-08
A66: 85.03563257 | B66: 1.48415177 | C66: 2.6284847 | D66: 150.6010798 | E66: 4.9 | F66: 0.69019608 | G66: 0.6898807067 | H66: -0.0003153733683 | I66: 9.946036143e-08
A67: 86.03563257 | B67: 1.501605062 | C67: 2.637653869 | D67: 151.1264345 | E67: 5 | F67: 0.6989700043 | G67: 0.6986366177 | H67: -0.000333386599 | I67: 1.111466244e-07
A68: 87.03563257 | B68: 1.519058355 | C68: 2.646636503 | D68: 151.6411015 | E68: 5.1 | F68: 0.7075701761 | G68: 0.707214401 | H68: -0.0003557750484 | I68: 1.265758851e-07
A69: 88.03563257 | B69: 1.536511647 | C69: 2.655439984 | D69: 152.1455038 | E69: 5.2 | F69: 0.7160033436 | G69: 0.7156211065 | H69: -0.0003822371621 | I69: 1.461052481e-07
A70: 89.03563257 | B70: 1.55396494 | C70: 2.664071307 | D70: 152.6400422 | E70: 5.3 | F70: 0.7242758696 | G70: 0.7238634132 | H70: -0.0004124564087 | I70: 1.701202891e-07
A71: 90.03563257 | B71: 1.571418233 | C71: 2.672537106 | D71: 153.1250968 | E71: 5.4 | F71: 0.7323937598 | G71: 0.7319476555 | H71: -0.0004461043718 | I71: 1.990091105e-07
A72: 91.03563257 | B72: 1.588871525 | C72: 2.680843677 | D72: 153.6010282 | E72: 5.5 | F72: 0.7403626895 | G72: 0.7398798461 | H72: -0.0004828434318 | I72: 2.331377796e-07
A73: 92.03563257 | B73: 1.606324818 | C73: 2.688997002 | D73: 154.0681793 | E73: 5.6 | F73: 0.748188027 | G73: 0.7476656979 | H73: -0.0005223290903 | I73: 2.728276786e-07
A74: 93.03563257 | B74: 1.62377811 | C74: 2.69700277 | D74: 154.5268761 | E74: 5.7 | F74: 0.7558748557 | G74: 0.7553106437 | H74: -0.0005642119787 | I74: 3.183351569e-07
A75: 94.03563257 | B75: 1.641231403 | C75: 2.704866397 | D75: 154.9774287 | E75: 5.8 | F75: 0.7634279936 | G75: 0.762819854 | H75: -0.0006081395913 | I75: 3.698337625e-07
A76: 95.03563257 | B76: 1.658684695 | C76: 2.712593039 | D76: 155.4201327 | E76: 5.9 | F76: 0.7708520116 | G76: 0.7701982539 | H76: -0.0006537577772 | I76: 4.273992312e-07
A77: 96.03563257 | B77: 1.676137988 | C77: 2.720187614 | D77: 155.8552697 | E77: 6 | F77: 0.7781512504 | G77: 0.7774505384 | H77: -0.00070071202 | I77: 4.90997335e-07
A78: 97.03563257 | B78: 1.69359128 | C78: 2.727654811 | D78: 156.2831086 | E78: 6.1 | F78: 0.785329835 | G78: 0.7845811865 | H78: -0.0007486485324 | I78: 5.604746251e-07
A79: 98.03563257 | B79: 1.711044573 | C79: 2.734999109 | D79: 156.7039059 | E79: 6.2 | F79: 0.7923916895 | G79: 0.7915944743 | H79: -0.000797215188 | I79: 6.35552056e-07
A80: 99.03563257 | B80: 1.728497865 | C80: 2.742224785 | D80: 157.1179067 | E80: 6.3 | F80: 0.7993405495 | G80: 0.7984944871 | H80: -0.0008460623117 | I80: 7.158214353e-07
A81: 100.0356326 | B81: 1.745951158 | C81: 2.74933593 | D81: 157.5253453 | E81: 6.4 | F81: 0.806179974 | G81: 0.8052851306 | H81: -0.0008948433455 | I81: 8.00744613e-07
A82: 101.0356326 | B82: 1.76340445 | C82: 2.756336457 | D82: 157.9264459 | E82: 6.5 | F82: 0.8129133566 | G82: 0.8119701412 | H82: -0.0009432154061 | I82: 8.896553023e-07
A83: 102.0356326 | B83: 1.780857743 | C83: 2.763230111 | D83: 158.3214232 | E83: 6.6 | F83: 0.8195439355 | G83: 0.8185530958 | H83: -0.0009908397476 | I83: 9.817634055e-07
A84: 103.0356326 | B84: 1.798311035 | C84: 2.77002048 | D84: 158.7104827 | E84: 6.7 | F84: 0.8260748027 | G84: 0.8250374206 | H84: -0.001037382142 | I84: 1.076161709e-06
A85: 104.0356326 | B85: 1.815764328 | C85: 2.776711003 | D85: 159.0938214 | E85: 6.8 | F85: 0.8325089127 | G85: 0.8314263995 | H85: -0.001082513189 | I85: 1.171834805e-06
A86: 105.0356326 | B86: 1.83321762 | C86: 2.783304979 | D86: 159.4716284 | E86: 6.9 | F86: 0.8388490907 | G86: 0.8377231822 | H86: -0.001125908561 | I86: 1.267670088e-06
A87: 106.0356326 | B87: 1.850670913 | C87: 2.789805571 | D87: 159.8440849 | E87: 7 | F87: 0.84509804 | G87: 0.8439307908 | H87: -0.001167249196 | I87: 1.362470686e-06
A88: 107.0356326 | B88: 1.868124205 | C88: 2.79621582 | D88: 160.2113651 | E88: 7.1 | F88: 0.8512583487 | G88: 0.8500521273 | H88: -0.001206221446 | I88: 1.454970178e-06
A89: 108.0356326 | B89: 1.885577498 | C89: 2.802538644 | D89: 160.5736362 | E89: 7.2 | F89: 0.8573324964 | G89: 0.8560899792 | H89: -0.001242517182 | I89: 1.543848949e-06
A90: 109.0356326 | B90: 1.90303079 | C90: 2.808776849 | D90: 160.931059 | E90: 7.3 | F90: 0.8633228601 | G90: 0.8620470263 | H90: -0.001275833868 | I90: 1.627752058e-06
A91: 110.0356326 | B91: =A91*D_R -> 1.920484083 | C91: =fourbar($F$20,$F$21,$F$22,1,-1,B91) -> 2.814933133 | D91: =C91/D_R -> 161.2837881 | E91: =1+1/$I$3*(A91-$A$27) -> 7.4 | F91: 0.8692317197 | G91: 0.8679258451 | H91: -0.001305874601 | I91: 1.705308473e-06
A92: 111.0356326 | B92: 1.937937375 | C92: 2.821010094 | D92: 161.6319724 | E92: 7.5 | F92: =LOG(E92) -> 0.8750612634 | G92: =1/$I$4*(D92-$C$4) -> 0.8737289153 | H92: =G92-F92 -> -0.001332348137 | I92: =H92^2 -> 1.775151558e-06
A93: =A92+1 -> 112.0356326 | B93: 1.955390668 | C93: 2.82701023 | D93: 161.9757548 | E93: 7.6 | F93: 0.8808135923 | G93: 0.8794586234 | H93: -0.001354968886 | I93: 1.835940683e-06
A94: 113.0356326 | B94: 1.97284396 | C94: 2.832935949 | D94: 162.3152735 | E94: 7.7 | F94: 0.8864907252 | G94: 0.8851172683 | H94: -0.0013734569 | I94: 1.886383856e-06
A95: 114.0356326 | B95: 1.990297253 | C95: 2.838789571 | D95: 162.6506613 | E95: 7.8 | F95: 0.8920946027 | G95: 0.8907070649 | H95: -0.001387537837 | I95: 1.92526125e-06
A96: 115.0356326 | B96: 2.007750546 | C96: 2.84457333 | D96: 162.9820463 | E96: 7.9 | F96: 0.8976270913 | G96: 0.8962301484 | H96: -0.00139694293 | I96: 1.95144955e-06
A97: 116.0356326 | B97: 2.025203838 | C97: 2.850289385 | D97: 163.3095521 | E97: 8 | F97: 0.903089987 | G97: 0.9016885781 | H97: -0.001401408935 | I97: 1.963947004e-06
A98: 117.0356326 | B98: 2.042657131 | C98: 2.855939814 | D98: 163.6332979 | E98: 8.1 | F98: 0.9084850189 | G98: 0.9070843408 | H98: -0.001400678086 | I98: 1.9618991e-06
A99: 118.0356326 | B99: 2.060110423 | C99: 2.861526627 | D99: 163.9533987 | E99: 8.2 | F99: 0.9138138524 | G99: 0.9124193543 | H99: -0.001394498037 | I99: 1.944624776e-06
A100: 119.0356326 | B100: 2.077563716 | C100: 2.867051763 | D100: 164.2699657 | E100: 8.3 | F100: 0.9190780924 | G100: 0.9176954706 | H100: -0.001382621818 | I100: 1.911643092e-06
A101: 120.0356326 | B101: 2.095017008 | C101: 2.872517095 | D101: 164.5831061 | E101: 8.4 | F101: 0.9242792861 | G101: 0.9229144783 | H101: -0.001364807781 | I101: 1.862700279e-06
A102: 121.0356326 | B102: 2.112470301 | C102: 2.877924434 | D102: 164.8929238 | E102: 8.5 | F102: 0.9294189257 | G102: 0.9280781062 | H102: -0.001340819558 | I102: 1.797797087e-06
A103: 122.0356326 | B103: 2.129923593 | C103: 2.883275528 | D103: 165.199519 | E103: 8.6 | F103: 0.9344984512 | G103: 0.9331880252 | H103: -0.001310426026 | I103: 1.717216371e-06
A104: 123.0356326 | B104: 2.147376886 | C104: 2.888572072 | D104: 165.5029885 | E104: 8.7 | F104: 0.9395192526 | G104: 0.9382458513 | H104: -0.001273401282 | I104: 1.621550824e-06
A105: 124.0356326 | B105: 2.164830178 | C105: 2.8938157 | D105: 165.8034263 | E105: 8.8 | F105: 0.9444826722 | G105: 0.9432531475 | H105: -0.001229524623 | I105: 1.511730798e-06
A106: 125.0356326 | B106: 2.182283471 | C106: 2.899007997 | D106: 166.100923 | E106: 8.9 | F106: 0.9493900066 | G106: 0.9482114261 | H106: -0.001178580552 | I106: 1.389052117e-06
A107: 126.0356326 | B107: 2.199736763 | C107: 2.904150496 | D107: 166.3955665 | E107: 9 | F107: 0.9542425094 | G107: 0.9531221506 | H107: -0.001120358792 | I107: 1.255203824e-06
A108: 127.0356326 | B108: 2.217190056 | C108: 2.90924468 | D108: 166.6874417 | E108: 9.1 | F108: 0.9590413923 | G108: 0.957986738 | H108: -0.001054654326 | I108: 1.112295747e-06
A109: 128.0356326 | B109: 2.234643348 | C109: 2.914291985 | D109: 166.976631 | E109: 9.2 | F109: 0.9637878273 | G109: 0.9628065599 | H109: -0.0009812674528 | I109: 9.62885814e-07
A110: 129.0356326 | B110: 2.252096641 | C110: 2.919293804 | D110: 167.2632141 | E110: 9.3 | F110: 0.9684829486 | G110: 0.9675829447 | H110: -0.0009000038797 | I110: 8.100069835e-07
A111: 130.0356326 | B111: 2.269549933 | C111: 2.924251482 | D111: 167.5472682 | E111: 9.4 | F111: 0.9731278536 | G111: 0.9723171788 | H111: -0.0008106748385 | I111: 6.571936938e-07
A112: 131.0356326 | B112: 2.287003226 | C112: 2.929166325 | D112: 167.8288679 | E112: 9.5 | F112: 0.9777236053 | G112: 0.977010508 | H112: -0.000713097241 | I112: 5.085076751e-07
A113: 132.0356326 | B113: 2.304456518 | C113: 2.934039596 | D113: 168.1080858 | E113: 9.6 | F113: 0.982271233 | G113: 0.9816641392 | H113: -0.0006070938742 | I113: 3.685629721e-07
A114: 133.0356326 | B114: 2.321909811 | C114: 2.938872519 | D114: 168.3849919 | E114: 9.7 | F114: 0.9867717343 | G114: 0.9862792406 | H114: -0.0004924936439 | I114: 2.425499893e-07
A115: 134.0356326 | B115: 2.339363103 | C115: 2.943666279 | D115: 168.6596541 | E115: 9.8 | F115: 0.9912260757 | G115: 0.9908569438 | H115: -0.0003691318725 | I115: 1.362583393e-07
A116: 135.0356326 | B116: 2.356816396 | C116: 2.948422022 | D116: 168.9321381 | E116: 9.9 | F116: 0.9956351946 | G116: 0.9953983439 | H116: -0.0002368506606 | I116: 5.609823541e-08
A117: 136.0356326 | B117: 2.374269688 | C117: 2.953140858 | D117: 169.2025075 | E117: 10 | F117: 1 | G117: 0.9999045007 | H117: -9.549932151e-05 | I117: 9.120120408e-09

Sheet FFLogx_X=5PPPPP
B1: y=log x | C1: 1<x<10
R2: x=5
B3: qin | C3: 67.74725289 | E3: Dq | F3: 90 | H3: Rx | I3: =F3/9 -> 10 | J3: =LN(2) -> 0.6931471806 | K3: =I3*D_R -> 0.1745329252 | N3: 30
B4: fin | C4: 37.38321439 | E4: Df | F4: 60 | H4: Ry | I4: =F4 -> 60 | K4: =I4*D_R -> 1.047197551 | N4: 10.90943725 | R4: 67.74725289
I5: başlangıç 30 90 f değişti | N5: 96.55334769 | R5: 37.38321439
B6: x | C6: y | D6: q | E6: f | I6: başlangıç 30 120 q değişti | K6: =K4/K3/LN(10) -> 2.605766891
M7: 5.502404449
B8: 5 | C8: =LOG(B8) -> 0.6989700043 | D8: =C3 -> 67.74725289 | E8: =C4 -> 37.38321439 | G8: =D8*D_R -> 1.182412622 | H8: 0.652460176 | I8: f' | J8: =K6/B8 -> 0.5211533783 | M8: 167.416271
I9: f" | J9: =-K6/B8^2/K3 -> -0.5971977811
I10: f"" | J10: =2*K6/B8^3/K3^2 -> 1.368676496
C11: =COS(H8) -> 0.7945925258 | D11: =-COS(G8) -> -0.378692993 | E11: 1 | F11: =COS(H8-G8) -> 0.8628311097 | I11: f'v | J11: =-6*K6/B8^4/K3^3 -> -4.705163203
C12: =-SIN(H8)*J8 -> -0.3164146665 | D12: =+SIN(G8) -> 0.9255223482 | E12: 0 | F12: =-SIN(H8-G8)*(J8-1) -> -0.2420532853
C13: =-COS(H8)*J8^2-SIN(H8)*J9 -> 0.1467724989 | D13: =COS(G8) -> 0.378692993 | E13: 0 | F13: =SIN(H8-G8)*J9-COS(H8-G8)*(J8-1)^2 -> 0.1040368147
C14: =-SIN(H8)*(J10-(J8)^3)-3*COS(H8)*J8*J9 -> -0.003136963271 | D14: =-SIN(G8) -> -0.9255223482 | E14: 0 | F14: =-SIN(H8-G8)*(J10-(J8-1)^3)-3*COS(H8-G8)*J9*(J8-1) -> 0.007135385886
C15: =-SIN(H8)*(J11-6*J8^2*J9)-COS(H8)*(4*J10*J8-J8^4+3*J9^2) -> -0.7928111653 | D15: =-COS(G8) -> -0.378692993 | E15: 0 | F15: =-SIN(H8-G8)*(J11-6*J9*(J8-1)^2)-COS(H8-G8)*(4*J10*(J8-1)+3*J9^2-(J8-1)^4) -> -0.5789691157
C16: =$C$19*C14+$C$20*D14-F14 -> -4.503301512e-07
C17: =$C$19*C15+$C$20*D15-F15 -> -2.962105965e-06 | E17: =SQRT(C17^2+C16^2) -> 2.996142352e-06
C19: =MMULT(MINVERSE(C11:E13),F11:F13) -> 0.7351499033 | E19: a2 | F19: =1/C19 -> 1.360266791 | K19: qin | L19: fin | M19: a2 | N19: a3 | O19: a4 | P19: |emax|
C20: -0.01020080587 | E20: a3 | F20: =SQRT(1+F19^2+F21^2-2*C21*F19*F21) -> 98.41907538 | K20: 30 | L20: 10.90943725 | M20: 0.06042553963 | N20: 1.074917482 | O20: 0.1292656026 | P20: 8.19x10-3
C21: 0.2748235174 | E21: a4 | F21: =1/C20 -> -98.03147054 | H21: =C19*#REF!+C20*#REF!+C21-F16 ->  | I21: =$C$19*C11+$C$20*D11+$C$21*E11-F11 -> 0 | K21: 30 | L21: 96.55334769 | M21: 6.838127819 | N21: 5.287540174 | O21: 2.609860464 | P21: 6.8x10-4
I22: =$C$19*C12+$C$20*D12+$C$21*E12-F12 -> 0
H23: =MIN(H28:H118) -> 1.887379142e-15 | I23: =$C$19*C13+$C$20*D13+$C$21*E13-F13 -> 0
H24: =MAX(H28:H118) -> 0.3698038156 | I24: =$C$19*#REF!+$C$20*#REF!+$C$21*E16-F16 -> 
C27: =C28/D_R -> 17.63324306 | E27: x | F27: yreq | G27: ygen | I27: olmadı
A28: =C3-40 -> 27.74725289 | B28: =A28*D_R -> 0.4842809212 | C28: =fourbar($F$19,$F$20,$F$21,1,1,B28) -> 0.3077581493 | D28: =C28/D_R -> 17.63324306 | E28: =1+1/$I$3*(A28-$A$28) -> 1 | F28: =LOG(E28) -> 0 | G28: =1/$I$4*(D28-$C$4)+$C$8 -> 0.3698038156 | H28: =G28-F28 -> 0.3698038156
A29: =A28+1 -> 28.74725289 | B29: 0.5017342138 | C29: 0.315312477 | D29: 18.06607416 | E29: 1.1 | F29: =LOG(E29) -> 0.04139268516 | G29: 0.3770176672 | H29: =G29-F29 -> 0.3356249821
A30: =A29+1 -> 29.74725289 | B30: 0.5191875063 | C30: 0.3229921422 | D30: 18.50608656 | E30: 1.2 | F30: 0.07918124605 | G30: 0.3843512073 | H30: 0.3051699612
A31: 30.74725289 | B31: 0.5366407988 | C31: 0.3307843506 | D31: 18.95254722 | E31: 1.3 | F31: 0.1139433523 | G31: 0.3917922182 | H31: 0.2778488659
A32: 31.74725289 | B32: 0.5540940913 | C32: 0.3386780351 | D32: 19.40482203 | E32: 1.4 | F32: 0.1461280357 | G32: 0.3993301317 | H32: 0.253202096
A33: 32.74725289 | B33: 0.5715473838 | C33: 0.3466635715 | D33: 19.86235956 | E33: 1.5 | F33: 0.1760912591 | G33: 0.4069557572 | H33: 0.2308644981
A34: 33.74725289 | B34: 0.5890006764 | C34: 0.3547325489 | D34: 20.32467791 | E34: 1.6 | F34: 0.2041199827 | G34: 0.414661063 | H34: 0.2105410803
A35: 34.74725289 | B35: 0.6064539689 | C35: 0.3628775837 | D35: 20.79135402 | E35: 1.7 | F35: 0.2304489214 | G35: 0.4224389983 | H35: 0.1919900769
A36: 35.74725289 | B36: 0.6239072614 | C36: 0.3710921665 | D36: 21.26201495 | E36: 1.8 | F36: 0.2552725051 | G36: 0.4302833471 | H36: 0.175010842
A37: 36.74725289 | B37: 0.6413605539 | C37: 0.379370536 | D37: 21.73633058 | E37: 1.9 | F37: 0.278753601 | G37: 0.4381886076 | H37: 0.1594350067
A38: 37.74725289 | B38: 0.6588138464 | C38: 0.3877075741 | D38: 22.21400768 | E38: 2 | F38: 0.3010299957 | G38: 0.4461498926 | H38: 0.1451198969
A39: 38.74725289 | B39: 0.676267139 | C39: 0.3960987189 | D39: 22.69478486 | E39: 2.1 | F39: 0.3222192947 | G39: 0.4541628456 | H39: 0.1319435509
A40: 39.74725289 | B40: 0.6937204315 | C40: 0.4045398906 | D40: 23.17842838 | E40: 2.2 | F40: 0.3424226808 | G40: 0.4622235708 | H40: 0.11980089
A41: 40.74725289 | B41: 0.711173724 | C41: 0.41302743 | D41: 23.66472856 | E41: 2.3 | F41: 0.361727836 | G41: 0.4703285739 | H41: 0.1086007379
A42: 41.74725289 | B42: 0.7286270165 | C42: 0.4215580454 | D42: 24.15349682 | E42: 2.4 | F42: 0.3802112417 | G42: 0.4784747116 | H42: 0.09826346992
A43: 42.74725289 | B43: 0.746080309 | C43: 0.4301287683 | D43: 24.64456307 | E43: 2.5 | F43: 0.3979400087 | G43: 0.4866591491 | H43: 0.08871914045
A44: 43.74725289 | B44: 0.7635336016 | C44: 0.4387369144 | D44: 25.13777351 | E44: 2.6 | F44: 0.414973348 | G44: 0.4948793231 | H44: 0.07990597513
A45: 44.74725289 | B45: 0.7809868941 | C45: 0.4473800508 | D45: 25.63298875 | E45: 2.7 | F45: 0.4313637642 | G45: 0.5031329104 | H45: 0.07176914623
A46: 45.74725289 | B46: 0.7984401866 | C46: 0.4560559676 | D46: 26.13008217 | E46: 2.8 | F46: 0.4471580313 | G46: 0.5114178007 | H46: 0.06425976934
A47: 46.74725289 | B47: 0.8158934791 | C47: 0.4647626532 | D47: 26.62893851 | E47: 2.9 | F47: 0.4623979979 | G47: 0.519732073 | H47: 0.0573340751
A48: 47.74725289 | B48: 0.8333467716 | C48: 0.4734982727 | D48: 27.12945263 | E48: 3 | F48: 0.4771212547 | G48: 0.5280739751 | H48: 0.05095272041
A49: 48.74725289 | B49: 0.8508000642 | C49: 0.4822611493 | D49: 27.63152848 | E49: 3.1 | F49: 0.4913616938 | G49: 0.5364419059 | H49: 0.04508021204
A50: 49.74725289 | B50: 0.8682533567 | C50: 0.4910497479 | D50: 28.13507808 | E50: 3.2 | F50: 0.5051499783 | G50: 0.5448343993 | H50: 0.03968442098
A51: 50.74725289 | B51: 0.8857066492 | C51: 0.4998626607 | D51: 28.64002079 | E51: 3.3 | F51: 0.5185139399 | G51: 0.5532501111 | H51: 0.03473617123
A52: 51.74725289 | B52: 0.9031599417 | C52: 0.5086985946 | D52: 29.14628252 | E52: 3.4 | F52: 0.531478917 | G52: 0.5616878065 | H52: 0.03020888947
A53: 52.74725289 | B53: 0.9206132342 | C53: 0.5175563603 | D53: 29.6537951 | E53: 3.5 | F53: 0.5440680444 | G53: 0.5701463496 | H53: 0.02607830526
A54: 53.74725289 | B54: 0.9380665268 | C54: 0.5264348617 | D54: 30.16249576 | E54: 3.6 | F54: 0.5563025008 | G54: 0.578624694 | H54: 0.02232219321
A55: 54.74725289 | B55: 0.9555198193 | C55: 0.5353330881 | D55: 30.67232658 | E55: 3.7 | F55: 0.5682017241 | G55: 0.5871218743 | H55: 0.01892015019
A56: 55.74725289 | B56: 0.9729731118 | C56: 0.5442501056 | D56: 31.18323405 | E56: 3.8 | F56: 0.5797835966 | G56: 0.5956369988 | H56: 0.01585340216
A57: 56.74725289 | B57: 0.9904264043 | C57: 0.5531850508 | D57: 31.6951687 | E57: 3.9 | F57: 0.591064607 | G57: 0.6041692429 | H57: 0.01310463586
A58: 57.74725289 | B58: 1.007879697 | C58: 0.562137124 | D58: 32.20808471 | E58: 4 | F58: 0.6020599913 | G58: 0.6127178431 | H58: 0.01065785177
A59: 58.74725289 | B59: 1.025332989 | C59: 0.5711055842 | D59: 32.72193963 | E59: 4.1 | F59: 0.6127838567 | G59: 0.6212820917 | H59: 0.008498235
A60: 59.74725289 | B60: 1.042786282 | C60: 0.5800897437 | D60: 33.23669406 | E60: 4.2 | F60: 0.6232492904 | G60: 0.6298613322 | H60: 0.006612041761
A61: 60.74725289 | B61: 1.060239574 | C61: 0.5890889642 | D61: 33.7523114 | E61: 4.3 | F61: 0.6334684556 | G61: 0.6384549546 | H61: 0.004986499057
A62: 61.74725289 | B62: 1.077692867 | C62: 0.5981026518 | D62: 34.26875767 | E62: 4.4 | F62: 0.6434526765 | G62: 0.6470623923 | H62: 0.003609715859
A63: 62.74725289 | B63: 1.095146159 | C63: 0.6071302546 | D63: 34.7860012 | E63: 4.5 | F63: 0.6532125138 | G63: 0.655683118 | H63: 0.002470604208
A64: 63.74725289 | B64: 1.112599452 | C64: 0.6161712584 | D64: 35.30401256 | E64: 4.6 | F64: 0.6627578317 | G64: 0.6643166406 | H64: 0.001558808946
A65: 64.74725289 | B65: 1.130052744 | C65: 0.6252251842 | D65: 35.8227643 | E65: 4.7 | F65: 0.6720978579 | G65: 0.6729625029 | H65: 0.0008646449563
A66: 65.74725289 | B66: 1.147506037 | C66: 0.6342915855 | D66: 36.34223083 | E66: 4.8 | F66: 0.6812412374 | G66: 0.6816202784 | H66: 0.0003790409879
A67: 66.74725289 | B67: 1.16495933 | C67: 0.6433700457 | D67: 36.86238828 | E67: 4.9 | F67: 0.69019608 | G67: 0.6902895693 | H67: 9.348923672e-05
A68: 67.74725289 | B68: 1.182412622 | C68: =fourbar($F$19,$F$20,$F$21,1,1,B68) -> 0.652460176 | D68: 37.38321439 | E68: 5 | F68: 0.6989700043 | G68: =1/$I$4*(D68-$C$4)+$C$8 -> 0.6989700043 | H68: 1.887379142e-15
A69: 68.74725289 | B69: 1.199865915 | C69: =fourbar($F$19,$F$20,$F$21,1,1,B69) -> 0.6615616135 | D69: 37.90468834 | E69: 5.1 | F69: 0.7075701761 | G69: 0.7076612369 | H69: 9.106079947e-05
A70: 69.74725289 | B70: 1.217319207 | C70: 0.6706740189 | D70: 38.42679071 | E70: 5.2 | F70: 0.7160033436 | G70: 0.7163629431 | H70: 0.0003595994563
A71: 70.74725289 | B71: 1.2347725 | C71: 0.6797970753 | D71: 38.94950334 | E71: 5.3 | F71: 0.7242758696 | G71: 0.7250748203 | H71: 0.0007989506685
A72: 71.74725289 | B72: 1.252225792 | C72: 0.6889304866 | D72: 39.47280926 | E72: 5.4 | F72: 0.7323937598 | G72: 0.7337965855 | H72: 0.0014028257
A73: 72.74725289 | B73: 1.269679085 | C73: 0.6980739755 | D73: 39.99669259 | E73: 5.5 | F73: 0.7403626895 | G73: 0.7425279743 | H73: 0.002165284838
A74: 73.74725289 | B74: 1.287132377 | C74: 0.7072272832 | D74: 40.52113849 | E74: 5.6 | F74: 0.748188027 | G74: 0.7512687393 | H74: 0.003080712329
A75: 74.74725289 | B75: 1.30458567 | C75: 0.7163901674 | D75: 41.04613308 | E75: 5.7 | F75: 0.7558748557 | G75: 0.7600186492 | H75: 0.004143793515
A76: 75.74725289 | B76: 1.322038962 | C76: 0.7255624015 | D76: 41.57166338 | E76: 5.8 | F76: 0.7634279936 | G76: 0.7687774875 | H76: 0.005349493962
A77: 76.74725289 | B77: 1.339492255 | C77: 0.7347437735 | D77: 42.09771725 | E77: 5.9 | F77: 0.7708520116 | G77: 0.777545052 | H77: 0.006693040363
A78: 77.74725289 | B78: 1.356945547 | C78: 0.7439340854 | D78: 42.62428333 | E78: 6 | F78: 0.7781512504 | G78: 0.7863211534 | H78: 0.008169903037
A79: 78.74725289 | B79: 1.37439884 | C79: 0.753133152 | D79: 43.15135102 | E79: 6.1 | F79: 0.785329835 | G79: 0.7951056149 | H79: 0.009775779876
A80: 79.74725289 | B80: 1.391852132 | C80: 0.7623408 | D80: 43.67891039 | E80: 6.2 | F80: 0.7923916895 | G80: 0.8038982711 | H80: 0.01150658159
A81: 80.74725289 | B81: 1.409305425 | C81: 0.7715568679 | D81: 44.20695218 | E81: 6.3 | F81: 0.7993405495 | G81: 0.8126989676 | H81: 0.01335841815
A82: 81.74725289 | B82: 1.426758717 | C82: 0.7807812045 | D82: 44.73546774 | E82: 6.4 | F82: 0.806179974 | G82: 0.8215075602 | H82: 0.01532758625
A83: 82.74725289 | B83: 1.44421201 | C83: 0.790013669 | D83: 45.26444899 | E83: 6.5 | F83: 0.8129133566 | G83: 0.8303239144 | H83: 0.01741055778
A84: 83.74725289 | B84: 1.461665302 | C84: 0.79925413 | D84: 45.79388841 | E84: 6.6 | F84: 0.8195439355 | G84: 0.8391479047 | H84: 0.01960396917
A85: 84.74725289 | B85: 1.479118595 | C85: 0.8085024652 | D85: 46.32377898 | E85: 6.7 | F85: 0.8260748027 | G85: 0.8479794142 | H85: 0.02190461153
A86: 85.74725289 | B86: 1.496571887 | C86: 0.8177585605 | D86: 46.85411418 | E86: 6.8 | F86: 0.8325089127 | G86: 0.8568183342 | H86: 0.02430942153
A87: 86.74725289 | B87: 1.51402518 | C87: 0.8270223103 | D87: 47.38488794 | E87: 6.9 | F87: 0.8388490907 | G87: 0.8656645636 | H87: 0.02681547289
A88: 87.74725289 | B88: 1.531478472 | C88: 0.8362936162 | D88: 47.91609464 | E88: 7 | F88: 0.84509804 | G88: 0.8745180086 | H88: 0.02941996857
A89: 88.74725289 | B89: 1.548931765 | C89: 0.8455723872 | D89: 48.44772906 | E89: 7.1 | F89: 0.8512583487 | G89: 0.8833785822 | H89: 0.03212023347
A90: 89.74725289 | B90: 1.566385057 | C90: 0.8548585391 | D90: 48.97978637 | E90: 7.2 | F90: 0.8573324964 | G90: 0.892246204 | H90: 0.03491370761
A91: 90.74725289 | B91: 1.58383835 | C91: 0.8641519942 | D91: 49.51226212 | E91: 7.3 | F91: 0.8633228601 | G91: 0.9011208 | H91: 0.03779793985
A92: 91.74725289 | B92: =A92*D_R -> 1.601291643 | C92: 0.873452681 | D92: =C92/D_R -> 50.04515223 | E92: =1+1/$I$3*(A92-$A$28) -> 7.4 | F92: 0.8692317197 | G92: =1/$I$4*(D92-$C$4)+$C$8 -> 0.9100023017 | H92: 0.04077058195
A93: 92.74725289 | B93: 1.618744935 | C93: 0.882760534 | D93: 50.57845292 | E93: 7.5 | F93: =LOG(E93) -> 0.8750612634 | G93: 0.9188906465 | H93: =G93-F93 -> 0.04382938311
A94: =A93+1 -> 93.74725289 | B94: 1.636198228 | C94: 0.892075493 | D94: 51.11216076 | E94: 7.6 | F94: 0.8808135923 | G94: 0.9277857772 | H94: 0.04697218487
A95: 94.74725289 | B95: 1.65365152 | C95: 0.9013975034 | D95: 51.64627261 | E95: 7.7 | F95: 0.8864907252 | G95: 0.9366876414 | H95: 0.05019691624
A96: 95.74725289 | B96: 1.671104813 | C96: 0.9107265158 | D96: 52.18078564 | E96: 7.8 | F96: 0.8920946027 | G96: 0.945596192 | H96: 0.05350158927
A97: 96.74725289 | B97: 1.688558105 | C97: 0.9200624853 | D97: 52.71569729 | E97: 7.9 | F97: 0.8976270913 | G97: 0.9545113861 | H97: 0.05688429484
A98: 97.74725289 | B98: 1.706011398 | C98: 0.9294053719 | D98: 53.25100527 | E98: 8 | F98: 0.903089987 | G98: 0.9634331857 | H98: 0.06034319872
A99: 98.74725289 | B99: 1.72346469 | C99: 0.9387551403 | D99: 53.78670753 | E99: 8.1 | F99: 0.9084850189 | G99: 0.9723615568 | H99: 0.06387653792
A100: 99.74725289 | B100: 1.740917983 | C100: 0.948111759 | D100: 54.3228023 | E100: 8.2 | F100: 0.9138138524 | G100: 0.9812964695 | H100: 0.06748261714
A101: 100.7472529 | B101: 1.758371275 | C101: 0.957475201 | D101: 54.85928801 | E101: 8.3 | F101: 0.9190780924 | G101: 0.990237898 | H101: 0.07115980564
A102: 101.7472529 | B102: 1.775824568 | C102: 0.9668454432 | D102: 55.39616333 | E102: 8.4 | F102: 0.9242792861 | G102: 0.9991858201 | H102: 0.07490653408
A103: 102.7472529 | B103: 1.79327786 | C103: 0.9762224661 | D103: 55.93342717 | E103: 8.5 | F103: 0.9294189257 | G103: 1.008140217 | H103: 0.0787212917
A104: 103.7472529 | B104: 1.810731153 | C104: 0.985606254 | D104: 56.47107862 | E104: 8.6 | F104: 0.9344984512 | G104: 1.017101075 | H104: 0.08260262364
A105: 104.7472529 | B105: 1.828184445 | C105: 0.994996795 | D105: 57.00911698 | E105: 8.7 | F105: 0.9395192526 | G105: 1.026068381 | H105: 0.08654912831
A106: 105.7472529 | B106: 1.845637738 | C106: 1.00439408 | D106: 57.54754176 | E106: 8.8 | F106: 0.9444826722 | G106: 1.035042127 | H106: 0.09055945508
A107: 106.7472529 | B107: 1.86309103 | C107: 1.013798104 | D107: 58.08635264 | E107: 8.9 | F107: 0.9493900066 | G107: 1.044022309 | H107: 0.09463230197
A108: 107.7472529 | B108: 1.880544323 | C108: 1.023208865 | D108: 58.6255495 | E108: 9 | F108: 0.9542425094 | G108: 1.053008923 | H108: 0.09876641353
A109: 108.7472529 | B109: 1.897997615 | C109: 1.032626363 | D109: 59.16513239 | E109: 9.1 | F109: 0.9590413923 | G109: 1.062001971 | H109: 0.1029605788
A110: 109.7472529 | B110: 1.915450908 | C110: 1.042050602 | D110: 59.70510153 | E110: 9.2 | F110: 0.9637878273 | G110: 1.071001457 | H110: 0.1072136294
A111: 110.7472529 | B111: 1.9329042 | C111: 1.051481589 | D111: 60.24545731 | E111: 9.3 | F111: 0.9684829486 | G111: 1.080007386 | H111: 0.1115244379
A112: 111.7472529 | B112: 1.950357493 | C112: 1.060919335 | D112: 60.78620029 | E112: 9.4 | F112: 0.9731278536 | G112: 1.089019769 | H112: 0.1158919157
A113: 112.7472529 | B113: 1.967810785 | C113: 1.07036385 | D113: 61.32733117 | E113: 9.5 | F113: 0.9777236053 | G113: 1.098038617 | H113: 0.120315012
A114: 113.7472529 | B114: 1.985264078 | C114: 1.079815151 | D114: 61.86885082 | E114: 9.6 | F114: 0.982271233 | G114: 1.107063945 | H114: 0.1247927118
A115: 114.7472529 | B115: 2.00271737 | C115: 1.089273255 | D115: 62.41076025 | E115: 9.7 | F115: 0.9867717343 | G115: 1.116095769 | H115: 0.1293240345
A116: 115.7472529 | B116: 2.020170663 | C116: 1.098738182 | D116: 62.95306064 | E116: 9.8 | F116: 0.9912260757 | G116: 1.125134109 | H116: 0.1339080329
A117: 116.7472529 | B117: 2.037623956 | C117: 1.108209956 | D117: 63.49575329 | E117: 9.9 | F117: 0.9956351946 | G117: 1.134178986 | H117: 0.1385437915
A118: 117.7472529 | B118: 2.055077248 | C118: 1.117688601 | D118: 64.03883966 | E118: 10 | F118: 1 | G118: 1.143230426 | H118: 0.1432304255

Sheet FFLogx_X=5PPPPPv2
B1: y=log x | C1: 1<x<10
R2: x=5
B3: qin | C3: 94.89724353 | E3: Dq | F3: 90 | H3: Rx | I3: =F3/9 -> 10 | J3: =LN(2) -> 0.6931471806 | K3: =I3*D_R -> 0.1745329252 | N3: 30
B4: fin | C4: 150.5720649 | E4: Df | F4: 60 | H4: Ry | I4: =F4 -> 60 | K4: =I4*D_R -> 1.047197551 | N4: 10.90943725 | P4: 53.1780967 | R4: 67.74725289
I5: başlangıç 30 90 f değişti | N5: 96.55334769 | P5: 31.46333223 | R5: 37.38321439
A6: =C4-180 -> -29.42793507 | B6: x | C6: y | D6: q | E6: f | I6: başlangıç 30 120 q değişti | K6: =K4/K3/LN(10) -> 2.605766891
M7: 5.502404449
B8: 5 | C8: =LOG(B8) -> 0.6989700043 | D8: =C3 -> 94.89724353 | E8: =C4 -> 150.5720649 | G8: =D8*D_R -> 1.656269351 | H8: 2.627978294 | I8: f' | J8: =K6/B8 -> 0.5211533783 | M8: 167.416271
I9: f" | J9: =-K6/B8^2/K3 -> -0.5971977811
I10: f"' | J10: =2*K6/B8^3/K3^2 -> 1.368676496
C11: =COS(H8) -> -0.870974363 | D11: =-COS(G8) -> 0.08536898939 | E11: 1 | F11: =COS(H8-G8) -> 0.563889023 | I11: f'v | J11: =-6*K6/B8^4/K3^3 -> -4.705163203
C12: =-SIN(H8)*J8 -> -0.2560574885 | D12: =+SIN(G8) -> 0.9963494044 | E12: 0 | F12: =-SIN(H8-G8)*(J8-1) -> 0.3954557572
C13: =-COS(H8)*J8^2-SIN(H8)*J9 -> 0.52997764 | D13: =COS(G8) -> -0.08536898939 | E13: 0 | F13: =-SIN(H8-G8)*J9-COS(H8-G8)*(J8-1)^2 -> 0.3638997112
C14: =-SIN(H8)*(J10-(J8)^3)-3*COS(H8)*J8*J9 -> -1.416148631 | D14: =-SIN(G8) -> -0.9963494044 | E14: 0 | F14: =-SIN(H8-G8)*(J10-(J8-1)^3)-3*COS(H8-G8)*J9*(J8-1) -> -1.704757438
C15: =-SIN(H8)*(J11-6*J8^2*J9)-COS(H8)*(4*J10*J8-J8^4+3*J9^2) -> 5.186289257 | D15: =-COS(G8) -> 0.08536898939 | E15: 0 | F15: =-SIN(H8-G8)*(J11-6*J9*(J8-1)^2)-COS(H8-G8)*(4*J10*(J8-1)+3*J9^2-(J8-1)^4) -> 4.11182212
C16: =$C$19*C14+$C$20*D14-F14 -> -6.387459406e-08
C17: =$C$19*C15+$C$20*D15-F15 -> -6.706505061e-06 | E17: =SQRT(C17^2+C16^2) -> 6.706809233e-06
C19: =MMULT(MINVERSE(C11:E13),F11:F13) -> 0.7829786826 | E19: a2 | F19: =1/C19 -> 1.27717398 | G19: =-F19 -> -1.27717398 | K19: qin | L19: fin | M19: a2 | N19: a3 | O19: a4 | P19: |emax|
C20: 0.5981268314 | E20: a3 | F20: =SQRT(1+F19^2+F21^2-2*C21*F19*F21) -> 0.5691803148 | K20: 30 | L20: 10.90943725 | M20: 0.06042553963 | N20: 1.074917482 | O20: 0.1292656026 | P20: 8.19x10-3
C21: 1.194781899 | E21: a4 | F21: =1/C20 -> 1.671886208 | G21: =-F21 -> -1.671886208 | H21: =C19*#REF!+C20*#REF!+C21-F16 ->  | I21: =$C$19*C11+$C$20*D11+$C$21*E11-F11 -> 0 | K21: 30 | L21: 96.55334769 | M21: 6.838127819 | N21: 5.287540174 | O21: 2.609860464 | P21: 6.8x10-4
I22: =$C$19*C12+$C$20*D12+$C$21*E12-F12 -> 0
H23: =MIN(H28:H118) ->  | I23: =$C$19*C13+$C$20*D13+$C$21*E13-F13 -> 0
H24: =MAX(H28:H118) ->  | I24: =$C$19*#REF!+$C$20*#REF!+$C$21*E16-F16 -> 
C27: =C28/D_R ->  | E27: x | F27: yreq | G27: ygen | I27: olmadı
A28: =C3-40 -> 54.89724353 | B28: =A28*D_R -> 0.9581376499 | C28: =fourbar($F$19,$F$20,$F$21,1,-1,B28) ->  | D28: =C28/D_R ->  | E28: =1+1/$I$3*(A28-$A$28) -> 1 | F28: =LOG(E28) -> 0 | G28: =1/$I$4*(D28-$C$4)+$C$8 ->  | H28: =G28-F28 -> 
A29: =A28+1 -> 55.89724353 | B29: 0.9755909424 | E29: 1.1 | F29: =LOG(E29) -> 0.04139268516 | H29: =G29-F29 -> 
A30: =A29+1 -> 56.89724353 | B30: 0.9930442349 | C30: 1.920743094 | D30: 110.0504728 | E30: 1.2 | F30: 0.07918124605 | G30: 0.02361013585 | H30: -0.05557111019
A31: 57.89724353 | B31: 1.010497527 | C31: 1.983036809 | D31: 113.6196398 | E31: 1.3 | F31: 0.1139433523 | G31: 0.08309625197 | H31: -0.03084710033
A32: 58.89724353 | B32: 1.02795082 | C32: 2.028680678 | D32: 116.2348408 | E32: 1.4 | F32: 0.1461280357 | G32: 0.1266829359 | H32: -0.01944509977
A33: 59.89724353 | B33: 1.045404112 | C33: 2.066903586 | D33: 118.4248521 | E33: 1.5 | F33: 0.1760912591 | G33: 0.1631831246 | H33: -0.01290813443
A34: 60.89724353 | B34: 1.062857405 | C34: 2.100537695 | D34: 120.3519446 | E34: 1.6 | F34: 0.2041199827 | G34: 0.1953013329 | H34: -0.008818649765
A35: 61.89724353 | B35: 1.080310698 | C35: 2.130921319 | D35: 122.092798 | E35: 1.7 | F35: 0.2304489214 | G35: 0.2243155563 | H35: -0.006133365085
A36: 62.89724353 | B36: 1.09776399 | C36: 2.158820439 | D36: 123.6912999 | E36: 1.8 | F36: 0.2552725051 | G36: 0.250957254 | H36: -0.004315251128
A37: 63.89724353 | B37: 1.115217283 | C37: 2.184725837 | D37: 125.1755699 | E37: 1.9 | F37: 0.278753601 | G37: 0.2756950869 | H37: -0.003058514067
A38: 64.89724353 | B38: 1.132670575 | C38: 2.208976524 | D38: 126.5650319 | E38: 2 | F38: 0.3010299957 | G38: 0.298852787 | H38: -0.002177208641
A39: 65.89724353 | B39: 1.150123868 | C39: 2.231819643 | D39: 127.8738462 | E39: 2.1 | F39: 0.3222192947 | G39: 0.3206663581 | H39: -0.001552936634
A40: 66.89724353 | B40: 1.16757716 | C40: 2.253442818 | D40: 129.1127628 | E40: 2.2 | F40: 0.3424226808 | G40: 0.3413149697 | H40: -0.001107711092
A41: 67.89724353 | B41: 1.185030453 | C41: 2.273993067 | D41: 130.2902054 | E41: 2.3 | F41: 0.361727836 | G41: 0.3609390116 | H41: -0.0007888244045
A42: 68.89724353 | B42: 1.202483745 | C42: 2.293588534 | D42: 131.412943 | E42: 2.4 | F42: 0.3802112417 | G42: 0.3796513048 | H42: -0.0005599369251
A43: 69.89724353 | B43: 1.219937038 | C43: 2.312326149 | D43: 132.4865292 | E43: 2.5 | F43: 0.3979400087 | G43: 0.3975444086 | H43: -0.0003956000901
A44: 70.89724353 | B44: 1.23739033 | C44: 2.330286808 | D44: 133.5155992 | E44: 2.6 | F44: 0.414973348 | G44: 0.4146955749 | H44: -0.000277773107
A45: 71.89724353 | B45: 1.254843623 | C45: 2.347539016 | D45: 134.5040778 | E45: 2.7 | F45: 0.4313637642 | G45: 0.4311702195 | H45: -0.0001935446597
A46: 72.89724353 | B46: 1.272296915 | C46: 2.364141499 | D46: 135.4553301 | E46: 2.8 | F46: 0.4471580313 | G46: 0.4470244236 | H46: -0.0001336077398
A47: 73.89724353 | B47: 1.289750208 | C47: 2.380145145 | D47: 136.3722714 | E47: 2.9 | F47: 0.4623979979 | G47: 0.4623067794 | H47: -9.121854456e-05
A48: 74.89724353 | B48: 1.3072035 | C48: 2.395594452 | D48: 137.2574515 | E48: 3 | F48: 0.4771212547 | G48: 0.4770597807 | H48: -6.147399129e-05
A49: 75.89724353 | B49: 1.324656793 | C49: 2.410528651 | D49: 138.1131181 | E49: 3.1 | F49: 0.4913616938 | G49: 0.4913208906 | H49: -4.080326336e-05
A50: 76.89724353 | B50: 1.342110085 | C50: 2.424982576 | D50: 138.941267 | E50: 3.2 | F50: 0.5051499783 | G50: 0.5051233726 | H50: -2.660569022e-05
A51: 77.89724353 | B51: 1.359563378 | C51: 2.438987354 | D51: 139.7436816 | E51: 3.3 | F51: 0.5185139399 | G51: 0.5184969497 | H51: -1.699022027e-05
A52: 78.89724353 | B52: 1.37701667 | C52: 2.452570952 | D52: 140.5219645 | E52: 3.4 | F52: 0.531478917 | G52: 0.5314683307 | H52: -1.058637673e-05
A53: 79.89724353 | B53: 1.394469963 | C53: 2.465758633 | D53: 141.277563 | E53: 3.5 | F53: 0.5440680444 | G53: 0.5440616382 | H53: -6.406104753e-06
A54: 80.89724353 | B54: 1.411923255 | C54: 2.478573315 | D54: 142.0117902 | E54: 3.6 | F54: 0.5563025008 | G54: 0.5562987585 | H54: -3.742225715e-06
A55: 81.89724353 | B55: 1.429376548 | C55: 2.491035879 | D55: 142.7258425 | E55: 3.7 | F55: 0.5682017241 | G55: 0.5681996306 | H55: -2.093463308e-06
A56: 82.89724353 | B56: 1.44682984 | C56: 2.503165419 | D56: 143.4208139 | E56: 3.8 | F56: 0.5797835966 | G56: 0.5797824877 | H56: -1.108910968e-06
A57: 83.89724353 | B57: 1.464283133 | C57: 2.514979454 | D57: 144.0977083 | E57: 3.9 | F57: 0.591064607 | G57: 0.5910640602 | H57: -5.46822322e-07
A58: 84.89724353 | B58: 1.481736425 | C58: 2.526494111 | D58: 144.7574495 | E58: 4 | F58: =LOG(E58) -> 0.6020599913 | G58: =1/$I$4*(D58-$C$4)+$C$8 -> 0.6020597473 | H58: -2.440173311e-07
A59: 85.89724353 | B59: 1.499189718 | C59: 2.537724274 | D59: 145.4008905 | E59: 4.1 | F59: 0.6127838567 | G59: 0.6127837635 | H59: -9.31967904e-08
A60: 86.89724353 | B60: =A60*D_R -> 1.516643011 | C60: 2.548683721 | D60: =C60/D_R -> 146.0288205 | E60: 4.2 | F60: 0.6232492904 | G60: 0.6232492642 | H60: -2.617377726e-08
A61: 87.89724353 | B61: 1.534096303 | C61: 2.559385231 | D61: 146.6419719 | E61: 4.3 | F61: 0.6334684556 | G61: 0.633468454 | H61: -1.547753481e-09
A62: 88.89724353 | B62: 1.551549596 | C62: 2.569840689 | D62: 147.2410255 | E62: 4.4 | F62: 0.6434526765 | G62: 0.6434526808 | H62: 4.276316523e-09
A63: 89.89724353 | B63: 1.569002888 | C63: 2.580061166 | D63: 147.8266157 | E63: 4.5 | F63: 0.6532125138 | G63: 0.6532125173 | H63: 3.545119753e-09
A64: 90.89724353 | B64: 1.586456181 | C64: 2.590056998 | D64: 148.3993347 | E64: 4.6 | F64: 0.6627578317 | G64: 0.6627578334 | H64: 1.707460617e-09
A65: 91.89724353 | B65: 1.603909473 | C65: 2.599837849 | D65: 148.9597362 | E65: 4.7 | F65: 0.6720978579 | G65: 0.6720978585 | H65: 5.232929645e-10
A66: 92.89724353 | B66: 1.621362766 | C66: 2.609412773 | D66: 149.5083389 | E66: 4.8 | F66: 0.6812412374 | G66: 0.6812412375 | H66: 8.295397702e-11
A67: 93.89724353 | B67: 1.638816058 | C67: 2.618790262 | D67: 150.0456295 | E67: 4.9 | F67: 0.69019608 | G67: 0.69019608 | H67: 2.938094212e-12
A68: 94.89724353 | B68: 1.656269351 | C68: 2.627978294 | D68: 150.5720649 | E68: 5 | F68: 0.6989700043 | G68: =1/$I$4*(D68-$C$4)+$C$8 -> 0.6989700043 | H68: 0
A69: 95.89724353 | B69: 1.673722643 | C69: 2.636984373 | D69: 151.0880752 | E69: 5.1 | F69: 0.7075701761 | G69: 0.7075701761 | H69: -3.551936523e-12
A70: 96.89724353 | B70: 1.691175936 | C70: 2.645815566 | D70: 151.5940653 | E70: 5.2 | F70: 0.7160033436 | G70: 0.7160033435 | H70: -1.278204209e-10
A71: 97.89724353 | B71: 1.708629228 | C71: 2.654478534 | D71: 152.0904168 | E71: 5.3 | F71: 0.7242758696 | G71: 0.7242758686 | H71: -1.049544784e-09
A72: 98.89724353 | B72: 1.726082521 | C72: 2.662979564 | D72: 152.57749 | E72: 5.4 | F72: 0.7323937598 | G72: 0.7323937551 | H72: -4.717564894e-09
A73: 99.89724353 | B73: 1.743535813 | C73: 2.671324597 | D73: 153.0556251 | E73: 5.5 | F73: 0.7403626895 | G73: 0.7403626743 | H73: -1.52214098e-08
A74: 100.8972435 | B74: 1.760989106 | C74: 2.679519246 | D74: 153.5251439 | E74: 5.6 | F74: 0.748188027 | G74: 0.7481879872 | H74: -3.977807306e-08
A75: 101.8972435 | B75: 1.778442398 | C75: 2.687568821 | D75: 153.9863506 | E75: 5.7 | F75: 0.7558748557 | G75: 0.7558747659 | H75: -8.98122926e-08
A76: 102.8972435 | B76: 1.795895691 | C76: 2.695478352 | D76: 154.4395334 | E76: 5.8 | F76: 0.7634279936 | G76: 0.7634278114 | H76: -1.821137287e-07
A77: 103.8972435 | B77: 1.813348983 | C77: 2.7032526 | D77: 154.884965 | E77: 5.9 | F77: 0.7708520116 | G77: 0.7708516716 | H77: -3.40060836e-07
A78: 104.8972435 | B78: 1.830802276 | C78: 2.710896078 | D78: 155.322904 | E78: 6 | F78: 0.7781512504 | G78: 0.7781506555 | H78: -5.949064077e-07
A79: 105.8972435 | B79: 1.848255568 | C79: 2.718413064 | D79: 155.7535955 | E79: 6.1 | F79: 0.785329835 | G79: 0.7853288479 | H79: -9.871239963e-07
A80: 106.8972435 | B80: 1.865708861 | C80: 2.725807613 | D80: 156.177272 | E80: 6.2 | F80: 0.7923916895 | G80: 0.7923901217 | H80: -1.567817977e-06
A81: 107.8972435 | B81: 1.883162153 | C81: 2.73308357 | D81: 156.5941536 | E81: 6.3 | F81: 0.7993405495 | G81: 0.7993381493 | H81: -2.40020311e-06
A82: 108.8972435 | B82: 1.900615446 | C82: 2.740244583 | D82: 157.0044494 | E82: 6.4 | F82: 0.806179974 | G82: 0.8061764128 | H82: -3.561162227e-06
A83: 109.8972435 | B83: 1.918068738 | C83: 2.747294108 | D83: 157.4083575 | E83: 6.5 | F83: 0.8129133566 | G83: 0.8129082137 | H83: -5.142893264e-06
A84: 110.8972435 | B84: 1.935522031 | C84: 2.754235423 | D84: 157.8060655 | E84: 6.6 | F84: 0.8195439355 | G84: 0.8195366809 | H84: -7.254659416e-06
A85: 111.8972435 | B85: 1.952975324 | C85: 2.76107163 | D85: 158.1977513 | E85: 6.7 | F85: 0.8260748027 | G85: 0.826064778 | H85: -1.002465879e-05
A86: 112.8972435 | B86: 1.970428616 | C86: 2.767805668 | D86: 158.5835833 | E86: 6.8 | F86: 0.8325089127 | G86: 0.8324953107 | H86: -1.360203269e-05
A87: 113.8972435 | B87: 1.987881909 | C87: 2.774440315 | D87: 158.9637206 | E87: 6.9 | F87: 0.8388490907 | G87: 0.8388309317 | H87: -1.815903461e-05
A88: 114.8972435 | B88: 2.005335201 | C88: 2.780978195 | D88: 159.3383135 | E88: 7 | F88: 0.84509804 | G88: 0.8450741466 | H88: -2.389338556e-05
A89: 115.8972435 | B89: 2.022788494 | C89: 2.78742178 | D89: 159.7075037 | E89: 7.1 | F89: 0.8512583487 | G89: 0.8512273179 | H89: -3.103084493e-05
A90: 116.8972435 | B90: 2.040241786 | C90: 2.793773401 | D90: 160.0714248 | E90: 7.2 | F90: 0.8573324964 | G90: 0.8572926684 | H90: -3.982803084e-05
A91: 117.8972435 | B91: 2.057695079 | C91: 2.80003524 | D91: 160.4302017 | E91: 7.3 | F91: 0.8633228601 | G91: 0.8632722846 | H91: -5.057552892e-05
A92: 118.8972435 | B92: =A92*D_R -> 2.075148371 | C92: 2.806209343 | D92: =C92/D_R -> 160.7839518 | E92: =1+1/$I$3*(A92-$A$28) -> 7.4 | F92: 0.8692317197 | G92: =1/$I$4*(D92-$C$4)+$C$8 -> 0.8691681184 | H92: -6.360133465e-05
A93: 119.8972435 | B93: 2.092601664 | C93: =fourbar($F$19,$F$20,$F$21,1,-1,B93) -> 2.812297614 | D93: 161.132784 | E93: 7.5 | F93: =LOG(E93) -> 0.8750612634 | G93: 0.8749819887 | H93: =G93-F93 -> -7.927468189e-05
A94: =A93+1 -> 120.8972435 | B94: 2.110054956 | C94: 2.818301818 | D94: 161.4767996 | E94: 7.6 | F94: 0.8808135923 | G94: 0.880715582 | H94: -9.801031861e-05
A95: 121.8972435 | B95: 2.127508249 | C95: 2.824223584 | D95: 161.8160918 | E95: 7.7 | F95: 0.8864907252 | G95: 0.8863704519 | H95: -0.0001202733017
A96: 122.8972435 | B96: 2.144961541 | C96: 2.830064398 | D96: 162.1507458 | E96: 7.8 | F96: 0.8920946027 | G96: 0.8919480183 | H96: -0.0001465843952
A97: 123.8972435 | B97: 2.162414834 | C97: 2.835825605 | D97: 162.4808386 | E97: 7.9 | F97: 0.8976270913 | G97: 0.8974495651 | H97: -0.0001775261711
A98: 124.8972435 | B98: 2.179868126 | C98: 2.841508402 | D98: 162.8064389 | E98: 8 | F98: 0.903089987 | G98: 0.9028762371 | H98: -0.0002137499328
A99: 125.8972435 | B99: 2.197321419 | C99: 2.847113839 | D99: 163.1276068 | E99: 8.1 | F99: 0.9084850189 | G99: 0.9082290353 | H99: -0.0002559835998
A100: 126.8972435 | B100: 2.214774711 | C100: 2.852642808 | D100: 163.4443934 | E100: 8.2 | F100: 0.9138138524 | G100: 0.9135088117 | H100: -0.0003050407265
A101: 127.8972435 | B101: 2.232228004 | C101: 2.858096037 | D101: 163.7568404 | E101: 8.3 | F101: 0.9190780924 | G101: 0.9187162615 | H101: -0.0003618308562
A102: 128.8972435 | B102: 2.249681296 | C102: 2.86347408 | D102: 164.0649795 | E102: 8.4 | F102: 0.9242792861 | G102: 0.9238519146 | H102: -0.0004273714624
A103: 129.8972435 | B103: 2.267134589 | C103: 2.868777308 | D103: 164.3688321 | E103: 8.5 | F103: 0.9294189257 | G103: 0.9289161239 | H103: -0.0005028017756
A104: 130.8972435 | B104: 2.284587881 | C104: 2.87400589 | D104: 164.6684078 | E104: 8.6 | F104: 0.9344984512 | G104: 0.9339090524 | H104: -0.0005893988714
A105: 131.8972435 | B105: 2.302041174 | C105: 2.879159782 | D105: 164.963704 | E105: 8.7 | F105: 0.9395192526 | G105: 0.9388306561 | H105: -0.0006885964759
A106: 132.8972435 | B106: 2.319494466 | C106: 2.884238699 | D106: 165.2547046 | E106: 8.8 | F106: 0.9444826722 | G106: 0.9436806651 | H106: -0.0008020070626
A107: 133.8972435 | B107: 2.336947759 | C107: 2.889242098 | D107: 165.5413782 | E107: 8.9 | F107: 0.9493900066 | G107: 0.9484585587 | H107: -0.0009314479539
A108: 134.8972435 | B108: 2.354401051 | C108: 2.89416914 | D108: 165.8236769 | E108: 9 | F108: 0.9542425094 | G108: 0.9531635371 | H108: -0.001078972335
A109: 135.8972435 | B109: 2.371854344 | C109: 2.899018658 | D109: 166.1015338 | E109: 9.1 | F109: 0.9590413923 | G109: 0.957794486 | H109: -0.001246906329
A110: 136.8972435 | B110: 2.389307637 | C110: 2.903789112 | D110: 166.3748607 | E110: 9.2 | F110: 0.9637878273 | G110: 0.9623499337 | H110: -0.001437893624
A111: 137.8972435 | B111: 2.406760929 | C111: 2.908478531 | D111: 166.6435446 | E111: 9.3 | F111: 0.9684829486 | G111: 0.966827999 | H111: -0.001654949557
A112: 138.8972435 | B112: 2.424214222 | C112: 2.913084448 | D112: 166.9074442 | E112: 9.4 | F112: 0.9731278536 | G112: 0.9712263264 | H112: -0.001901527208
A113: 139.8972435 | B113: 2.441667514 | C113: 2.917603818 | D113: 167.1663851 | E113: 9.5 | F113: 0.9777236053 | G113: 0.9755420065 | H113: -0.002181598823
A114: 140.8972435 | B114: 2.459120807 | C114: 2.922032908 | D114: 167.4201532 | E114: 9.6 | F114: 0.982271233 | G114: 0.979771476 | H114: -0.00249975709
A115: 141.8972435 | B115: 2.476574099 | C115: 2.926367171 | D115: 167.6684882 | E115: 9.7 | F115: 0.9867717343 | G115: 0.9839103919 | H115: -0.002861342396
A116: 142.8972435 | B116: 2.494027392 | C116: 2.930601073 | D116: 167.9110729 | E116: 9.8 | F116: 0.9912260757 | G116: 0.9879534711 | H116: -0.003272604553
A117: 143.8972435 | B117: 2.511480684 | C117: 2.934727882 | D117: 168.1475217 | E117: 9.9 | F117: 0.9956351946 | G117: 0.9918942837 | H117: -0.003740910925
A118: 144.8972435 | B118: 2.528933977 | C118: 2.93873938 | D118: 168.3773636 | E118: 10 | F118: 1 | G118: 0.9957249819 | H118: -0.004275018078

Sheet FFLogxPPPP
B1: y=log x | C1: 1<x<10
B3: qin | C3: 249.6626134 | E3: Dq | F3: 90 | H3: Rx | I3: =F3/9 -> 10 | J3: =LN(2) -> 0.6931471806 | K3: =I3*D_R -> 0.1745329252 | N3: 30
B4: fin | C4: 40 | E4: Df | F4: 60 | H4: Ry | I4: =F4 -> 60 | K4: =I4*D_R -> 1.047197551 | N4: 10.90943725
I5: başlangıç 30 90 f değişti | N5: 96.55334769
B6: x | C6: y | D6: q | E6: f | I6: başlangıç 30 120 q değişti | K6: =K4/K3/LN(10) -> 2.605766891
B8: 5 | C8: =LOG(B8) -> 0.6989700043 | D8: =C3 -> 249.6626134 | E8: =C4 -> 40 | G8: =D8*D_R -> 4.357434623 | H8: 0.6981317008 | I8: f' | J8: =K6/B8 -> 0.5211533783
I9: f" | J9: =-K6/B8^2/K3 -> -0.5971977811
I10: f"' | J10: =2*K6/B8^3/K3^2 -> 1.368676496 | T10: qin | U10: 80 | Y10: qin | Z10: 207.3747008 | AA10: 170 ballangıç Çalışma aralığı küçük
C11: =COS(H8) -> 0.7660444431 | D11: =-COS(G8) -> 0.3475475679 | E11: 1 | F11: =COS(H8-G8) -> -0.8689546256 | H11: =$C$19*C11+$C$20*D11+$C$21*E11-F11 -> 0 | I11: f'v | J11: =-6*K6/B8^4/K3^3 -> -4.705163203 | T11: fin | U11: 51.1974627 | V11: 60 başlangıç | Y11: fin | Z11: 20
C12: =-SIN(H8)*J8 -> -0.3349909343 | D12: =+SIN(G8) -> -0.9376623529 | E12: 0 | F12: =-SIN(H8-G8)*(J8-1) -> 0.2369772495 | H12: =$C$19*C12+$C$20*D12+$C$21*E12-F12 -> 0
C13: =-COS(H8)*J8^2-SIN(H8)*J9 -> 0.1758130172 | D13: =COS(G8) -> -0.3475475679 | E13: 0 | F13: =SIN(H8-G8)*J9-COS(H8-G8)*(J8-1)^2 -> -0.096302106 | H13: 0 | T13: qin | U13: 66.00831866 | V13: 80 başlangıç
C14: =-SIN(H8)*(J10-(J8)^3)-3*COS(H8)*J8*J9 -> -0.07353266507 | D14: =-SIN(G8) -> 0.9376623529 | E14: 0 | F14: =-SIN(H8-G8)*(J10-(J8-1)^3)-3*COS(H8-G8)*J9*(J8-1) -> 0.01379059224 | H14: -1.337544177e-07 | T14: fin | U14: 30
C17: =C19*C14+C20*D14-F14 -> -1.337544177e-07
C19: =MMULT(MINVERSE(C11:E13),F11:F13) -> -0.6138389763 | E19: a2 | F19: =1/C19 -> -1.62909173 | G19: =-F19 -> 1.62909173
C20: -0.03343075177 | E20: a3 | F20: =SQRT(1+F19^2+F21^2-2*C21*F19*F21) -> 30.59647223
C21: -0.3871079124 | E21: a4 | F21: =1/C20 -> -29.9125789 | G21: =-F21 -> 29.9125789 | H21: =C19*#REF!+C20*#REF!+C21-F16 ->  | I21: =$C$19*C11+$C$20*D11+$C$21*E11-F11 -> 0
I22: =$C$19*C12+$C$20*D12+$C$21*E12-F12 -> 0
I23: =$C$19*C13+$C$20*D13+$C$21*E13-F13 -> 0
I24: =$C$19*#REF!+$C$20*#REF!+$C$21*E16-F16 -> 
C27: =C28/D_R -> 201.0980198 | E27: x | F27: yreq | G27: ygen | I27: olmadı
A28: =C3-40 -> 209.6626134 | B28: =A28*D_R-PI() -> 0.5177102689 | C28: =fourbar($G$19,$F$20,$G$21,1,-1,B28) -> 3.509822564 | D28: =C28/D_R-180 -> 21.09801975 | E28: =1+1/$I$3*(A28-$A$28) -> 1 | F28: =LOG(E28) -> 0 | G28: =1/$I$4*(D28-$C$4)+$C$8 -> 0.3839370002 | H28: =G28-F28 -> 0.3839370002
A29: =A28+1 -> 210.6626134 | B29: 0.5351635615 | C29: 3.516189906 | D29: 21.46284157 | E29: 1.1 | F29: =LOG(E29) -> 0.04139268516 | G29: 0.3900173638 | H29: =G29-F29 -> 0.3486246787
A30: =A29+1 -> 211.6626134 | B30: 0.552616854 | C30: 3.522781297 | D30: 21.84050048 | E30: 1.2 | F30: 0.07918124605 | G30: 0.396311679 | H30: 0.317130433
A31: 212.6626134 | B31: 0.5700701465 | C31: 3.529573069 | D31: 22.22964034 | E31: 1.3 | F31: 0.1139433523 | G31: 0.4027973433 | H31: 0.288853991
A32: 213.6626134 | B32: 0.587523439 | C32: 3.536544924 | D32: 22.62909818 | E32: 1.4 | F32: 0.1461280357 | G32: 0.4094549741 | H32: 0.2633269384
A33: 214.6626134 | B33: 0.6049767315 | C33: 3.543679343 | D33: 23.03787028 | E33: 1.5 | F33: 0.1760912591 | G33: 0.4162678424 | H33: 0.2401765833
A34: 215.6626134 | B34: 0.6224300241 | C34: 3.550961117 | D34: 23.45508519 | E34: 1.6 | F34: 0.2041199827 | G34: 0.4232214242 | H34: 0.2191014415
A35: 216.6626134 | B35: 0.6398833166 | C35: 3.558376969 | D35: 23.87998226 | E35: 1.7 | F35: 0.2304489214 | G35: 0.4303030419 | H35: 0.1998541205
A36: 217.6626134 | B36: 0.6573366091 | C36: 3.565915255 | D36: 24.31189424 | E36: 1.8 | F36: 0.2552725051 | G36: 0.437501575 | H36: 0.1822290699
A37: 218.6626134 | B37: 0.6747899016 | C37: 3.573565713 | D37: 24.75023319 | E37: 1.9 | F37: 0.278753601 | G37: 0.4448072242 | H37: 0.1660536232
A38: 219.6626134 | B38: 0.6922431941 | C38: 3.581319262 | D38: 25.19447883 | E38: 2 | F38: 0.3010299957 | G38: 0.4522113181 | H38: 0.1511813224
A39: 220.6626134 | B39: 0.7096964867 | C39: 3.589167836 | D39: 25.64416897 | E39: 2.1 | F39: 0.3222192947 | G39: 0.4597061538 | H39: 0.137486859
A40: 221.6626134 | B40: 0.7271497792 | C40: 3.597104242 | D40: 26.09889155 | E40: 2.2 | F40: 0.3424226808 | G40: 0.4672848635 | H40: 0.1248621827
A41: 222.6626134 | B41: 0.7446030717 | C41: 3.605122048 | D41: 26.55827796 | E41: 2.3 | F41: 0.361727836 | G41: 0.4749413037 | H41: 0.1132134677
A42: 223.6626134 | B42: 0.7620563642 | C42: 3.613215479 | D42: 27.02199742 | E42: 2.4 | F42: 0.3802112417 | G42: 0.4826699614 | H42: 0.1024587197
A43: 224.6626134 | B43: 0.7795096567 | C43: 3.62137934 | D43: 27.48975222 | E43: 2.5 | F43: 0.3979400087 | G43: 0.4904658747 | H43: 0.092525866
A44: 225.6626134 | B44: 0.7969629493 | C44: 3.629608942 | D44: 27.96127368 | E44: 2.6 | F44: 0.414973348 | G44: 0.4983245656 | H44: 0.08335121764
A45: 226.6626134 | B45: 0.8144162418 | C45: 3.637900042 | D45: 28.43631869 | E45: 2.7 | F45: 0.4313637642 | G45: 0.5062419825 | H45: 0.0748782183
A46: 227.6626134 | B46: 0.8318695343 | C46: 3.646248791 | D46: 28.91466675 | E46: 2.8 | F46: 0.4471580313 | G46: 0.5142144502 | H46: 0.06705641889
A47: 228.6626134 | B47: 0.8493228268 | C47: 3.65465169 | D47: 29.39611743 | E47: 2.9 | F47: 0.4623979979 | G47: 0.5222386281 | H47: 0.0598406302
A48: 229.6626134 | B48: 0.8667761193 | C48: 3.663105553 | D48: 29.88048809 | E48: 3 | F48: 0.4771212547 | G48: 0.5303114725 | H48: 0.05319021776
A49: 230.6626134 | B49: 0.8842294119 | C49: 3.67160747 | D49: 30.36761204 | E49: 3.1 | F49: 0.4913616938 | G49: 0.538430205 | H49: 0.04706851115
A50: 231.6626134 | B50: 0.9016827044 | C50: 3.680154779 | D50: 30.85733681 | E50: 3.2 | F50: 0.5051499783 | G50: 0.5465922845 | H50: 0.04144230618
A51: 232.6626134 | B51: 0.9191359969 | C51: 3.688745044 | D51: 31.34952271 | E51: 3.3 | F51: 0.5185139399 | G51: 0.5547953828 | H51: 0.03628144289
A52: 233.6626134 | B52: 0.9365892894 | C52: 3.697376025 | D52: 31.84404151 | E52: 3.4 | F52: 0.531478917 | G52: 0.5630373629 | H52: 0.03155844586
A53: 234.6626134 | B53: 0.9540425819 | C53: 3.706045667 | D53: 32.34077537 | E53: 3.5 | F53: 0.5440680444 | G53: 0.5713162606 | H53: 0.02724821623
A54: 235.6626134 | B54: 0.9714958745 | C54: 3.714752074 | D54: 32.83961578 | E54: 3.6 | F54: 0.5563025008 | G54: 0.5796302674 | H54: 0.0233277666
A55: 236.6626134 | B55: 0.988949167 | C55: 3.723493502 | D55: 33.3404627 | E55: 3.7 | F55: 0.5682017241 | G55: 0.587977716 | H55: 0.01977599191
A56: 237.6626134 | B56: 1.006402459 | C56: 3.732268338 | D56: 33.84322377 | E56: 3.8 | F56: 0.5797835966 | G56: 0.5963570672 | H56: 0.0165734706
A57: 238.6626134 | B57: 1.023855752 | C57: 3.741075092 | D57: 34.34781364 | E57: 3.9 | F57: 0.591064607 | G57: 0.6047668983 | H57: 0.01370229132
A58: 239.6626134 | B58: 1.041309045 | C58: 3.749912387 | D58: 34.8541533 | E58: 4 | F58: 0.6020599913 | G58: 0.6132058927 | H58: 0.01114590139
A59: 240.6626134 | B59: 1.058762337 | C59: 3.758778943 | D59: 35.36216957 | E59: 4.1 | F59: 0.6127838567 | G59: 0.6216728305 | H59: 0.00888897379
A60: 241.6626134 | B60: =A60*D_R-PI() -> 1.07621563 | C60: 3.767673577 | D60: =C60/D_R-180 -> 35.87179457 | E60: 4.2 | F60: 0.6232492904 | G60: 0.6301665804 | H60: 0.006917290026
A61: 242.6626134 | B61: 1.093668922 | C61: 3.776595189 | D61: 36.38296527 | E61: 4.3 | F61: 0.6334684556 | G61: 0.6386860922 | H61: 0.005217636659
A62: 243.6626134 | B62: 1.111122215 | C62: 3.785542757 | D62: 36.89562315 | E62: 4.4 | F62: 0.6434526765 | G62: 0.6472303901 | H62: 0.003777713627
A63: 244.6626134 | B63: 1.128575507 | C63: 3.79451533 | D63: 37.40971373 | E63: 4.5 | F63: 0.6532125138 | G63: 0.6557985666 | H63: 0.002586052776
A64: 245.6626134 | B64: 1.1460288 | C64: 3.803512025 | D64: 37.92518636 | E64: 4.6 | F64: 0.6627578317 | G64: 0.664389777 | H64: 0.001631945274
A65: 246.6626134 | B65: 1.163482092 | C65: 3.812532017 | D65: 38.44199382 | E65: 4.7 | F65: 0.6720978579 | G65: 0.6730032347 | H65: 0.0009053767617
A66: 247.6626134 | B66: 1.180935385 | C66: 3.821574538 | D66: 38.96009214 | E66: 4.8 | F66: 0.6812412374 | G66: 0.6816382067 | H66: 0.0003969692793
A67: 248.6626134 | B67: 1.198388677 | C67: 3.830638873 | D67: 39.47944029 | E67: 4.9 | F67: 0.69019608 | G67: 0.6902940092 | H67: 9.792913539e-05
A68: 249.6626134 | B68: 1.21584197 | C68: =fourbar($G$19,$F$20,$G$21,1,-1,B68) -> 3.839724354 | D68: 40 | E68: 5 | F68: 0.6989700043 | G68: =1/$I$4*(D68-$C$4)+$C$8 -> 0.6989700043 | H68: 1.443289932e-15
A69: 250.6626134 | B69: 1.233295262 | C69: 3.848830357 | D69: 40.52173554 | E69: 5.1 | F69: 0.7075701761 | G69: 0.7076655967 | H69: 9.542061091e-05
A70: 251.6626134 | B70: 1.250748555 | C70: 3.8579563 | D70: 41.04461355 | E70: 5.2 | F70: 0.7160033436 | G70: 0.7163802302 | H70: 0.0003768865568
A71: 252.6626134 | B71: 1.268201847 | C71: 3.867101639 | D71: 41.56860286 | E71: 5.3 | F71: 0.7242758696 | G71: 0.7251133853 | H71: 0.0008375156764
A72: 253.6626134 | B72: 1.28565514 | C72: 3.876265865 | D72: 42.09367433 | E72: 5.4 | F72: 0.7323937598 | G72: 0.7338645765 | H72: 0.00147081667
A73: 254.6626134 | B73: 1.303108432 | C73: 3.885448503 | D73: 42.61980074 | E73: 5.5 | F73: 0.7403626895 | G73: 0.7426333501 | H73: 0.002270660575
A74: 255.6626134 | B74: 1.320561725 | C74: 3.894649109 | D74: 43.14695665 | E74: 5.6 | F74: 0.748188027 | G74: 0.7514192818 | H74: 0.003231254791
A75: 256.6626134 | B75: 1.338015017 | C75: 3.903867268 | D75: 43.67511824 | E75: 5.7 | F75: 0.7558748557 | G75: 0.7602219751 | H75: 0.004347119399
A76: 257.6626134 | B76: 1.35546831 | C76: 3.913102591 | D76: 44.20426328 | E76: 5.8 | F76: 0.7634279936 | G76: 0.7690410591 | H76: 0.005613065522
A77: 258.6626134 | B77: 1.372921602 | C77: 3.922354716 | D77: 44.73437097 | E77: 5.9 | F77: 0.7708520116 | G77: 0.7778761872 | H77: 0.007024175526
A78: 259.6626134 | B78: 1.390374895 | C78: 3.931623302 | D78: 45.26542186 | E78: 6 | F78: 0.7781512504 | G78: 0.7867270353 | H78: 0.008575784885
A79: 260.6626134 | B79: 1.407828187 | C79: 3.940908034 | D79: 45.79739777 | E79: 6.1 | F79: 0.785329835 | G79: 0.7955933005 | H79: 0.01026346552
A80: 261.6626134 | B80: 1.42528148 | C80: 3.950208613 | D80: 46.33028174 | E80: 6.2 | F80: 0.7923916895 | G80: 0.8044747 | H80: 0.01208301052
A81: 262.6626134 | B81: 1.442734772 | C81: 3.959524765 | D81: 46.86405791 | E81: 6.3 | F81: 0.7993405495 | G81: 0.8133709695 | H81: 0.01403042004
A82: 263.6626134 | B82: 1.460188065 | C82: 3.96885623 | D82: 47.39871148 | E82: 6.4 | F82: 0.806179974 | G82: 0.8222818623 | H82: 0.01610188833
A83: 264.6626134 | B83: 1.477641358 | C83: 3.978202768 | D83: 47.93422864 | E83: 6.5 | F83: 0.8129133566 | G83: 0.8312071484 | H83: 0.01829379177
A84: 265.6626134 | B84: 1.49509465 | C84: 3.987564154 | D84: 48.47059654 | E84: 6.6 | F84: 0.8195439355 | G84: 0.8401466133 | H84: 0.0206026778
A85: 266.6626134 | B85: 1.512547943 | C85: 3.996940178 | D85: 49.00780318 | E85: 6.7 | F85: 0.8260748027 | G85: 0.8491000574 | H85: 0.02302525468
A86: 267.6626134 | B86: 1.530001235 | C86: 4.006330647 | D86: 49.54583742 | E86: 6.8 | F86: 0.8325089127 | G86: 0.8580672947 | H86: 0.02555838204
A87: 268.6626134 | B87: 1.547454528 | C87: 4.01573538 | D87: 50.08468891 | E87: 6.9 | F87: 0.8388490907 | G87: 0.8670481528 | H87: 0.02819906206
A88: 269.6626134 | B88: 1.56490782 | C88: 4.025154208 | D88: 50.62434802 | E88: 7 | F88: 0.84509804 | G88: 0.8760424714 | H88: 0.03094443136
A89: 270.6626134 | B89: 1.582361113 | C89: 4.034586977 | D89: 51.16480587 | E89: 7.1 | F89: 0.8512583487 | G89: 0.8850501021 | H89: 0.03379175337
A90: 271.6626134 | B90: 1.599814405 | C90: 4.044033543 | D90: 51.70605421 | E90: 7.2 | F90: 0.8573324964 | G90: 0.8940709078 | H90: 0.03673841133
A91: 272.6626134 | B91: 1.617267698 | C91: 4.053493773 | D91: 52.24808545 | E91: 7.3 | F91: 0.8633228601 | G91: 0.9031047618 | H91: 0.03978190171
A92: 273.6626134 | B92: =A92*D_R-PI() -> 1.63472099 | C92: =fourbar($G$19,$F$20,$G$21,1,-1,B92) -> 4.062967545 | D92: =C92/D_R-180 -> 52.79089261 | E92: =1+1/$I$3*(A92-$A$28) -> 7.4 | F92: 0.8692317197 | G92: =1/$I$4*(D92-$C$4)+$C$8 -> 0.9121515478 | H92: 0.04291982807
A93: 274.6626134 | B93: 1.652174283 | C93: 4.072454747 | D93: 53.33446927 | E93: 7.5 | F93: =LOG(E93) -> 0.8750612634 | G93: 0.9212111588 | H93: =G93-F93 -> 0.04614989543
A94: =A93+1 -> 275.6626134 | B94: 1.669627575 | C94: 4.081955278 | D94: 53.87880957 | E94: 7.6 | F94: 0.8808135923 | G94: 0.9302834971 | H94: 0.04946990485
A95: 276.6626134 | B95: 1.687080868 | C95: 4.091469043 | D95: 54.42390816 | E95: 7.7 | F95: 0.8864907252 | G95: 0.9393684737 | H95: 0.05287774853
A96: 277.6626134 | B96: 1.70453416 | C96: 4.100995958 | D96: 54.96976021 | E96: 7.8 | F96: 0.8920946027 | G96: 0.9484660078 | H96: 0.05637140512
A97: 278.6626134 | B97: 1.721987453 | C97: 4.110535948 | D97: 55.51636134 | E97: 7.9 | F97: 0.8976270913 | G97: 0.9575760267 | H97: 0.05994893538
A98: 279.6626134 | B98: 1.739440745 | C98: 4.120088943 | D98: 56.06370764 | E98: 8 | F98: 0.903089987 | G98: 0.9666984651 | H98: 0.06360847808
A99: 280.6626134 | B99: 1.756894038 | C99: 4.129654883 | D99: 56.61179564 | E99: 8.1 | F99: 0.9084850189 | G99: 0.975833265 | H99: 0.06734824616
A100: 281.6626134 | B100: 1.77434733 | C100: 4.139233715 | D100: 57.16062228 | E100: 8.2 | F100: 0.9138138524 | G100: 0.9849803756 | H100: 0.07116652321
A101: 282.6626134 | B101: 1.791800623 | C101: 4.148825392 | D101: 57.71018488 | E101: 8.3 | F101: 0.9190780924 | G101: 0.9941397524 | H101: 0.07506166002
A102: 283.6626134 | B102: 1.809253915 | C102: 4.158429874 | D102: 58.26048119 | E102: 8.4 | F102: 0.9242792861 | G102: 1.003311357 | H102: 0.07903207143
A103: 284.6626134 | B103: 1.826707208 | C103: 4.168047129 | D103: 58.81150929 | E103: 8.5 | F103: 0.9294189257 | G103: 1.012495159 | H103: 0.08307623338
A104: 285.6626134 | B104: 1.8441605 | C104: 4.177677128 | D104: 59.36326762 | E104: 8.6 | F104: 0.9344984512 | G104: 1.021691131 | H104: 0.0871926801
A105: 286.6626134 | B105: 1.861613793 | C105: 4.187319852 | D105: 59.91575498 | E105: 8.7 | F105: 0.9395192526 | G105: 1.030899254 | H105: 0.09138000142
A106: 287.6626134 | B106: 1.879067085 | C106: 4.196975284 | D106: 60.46897049 | E106: 8.8 | F106: 0.9444826722 | G106: 1.040119513 | H106: 0.09563684035
A107: 288.6626134 | B107: 1.896520378 | C107: 4.206643415 | D107: 61.02291358 | E107: 8.9 | F107: 0.9493900066 | G107: 1.049351897 | H107: 0.0999618907
A108: 289.6626134 | B108: 1.913973671 | C108: 4.21632424 | D108: 61.577584 | E108: 9 | F108: 0.9542425094 | G108: 1.058596404 | H108: 0.1043538949
A109: 290.6626134 | B109: 1.931426963 | C109: 4.22601776 | D109: 62.13298179 | E109: 9.1 | F109: 0.9590413923 | G109: 1.067853034 | H109: 0.1088116418
A110: 291.6626134 | B110: 1.948880256 | C110: 4.235723981 | D110: 62.68910727 | E110: 9.2 | F110: 0.9637878273 | G110: 1.077121792 | H110: 0.1133339648
A111: 292.6626134 | B111: 1.966333548 | C111: 4.245442913 | D111: 63.24596106 | E111: 9.3 | F111: 0.9684829486 | G111: 1.086402689 | H111: 0.1179197402
A112: 293.6626134 | B112: 1.983786841 | C112: 4.255174572 | D112: 63.80354404 | E112: 9.4 | F112: 0.9731278536 | G112: 1.095695738 | H112: 0.1225678848
A113: 294.6626134 | B113: 2.001240133 | C113: 4.264918977 | D113: 64.36185735 | E113: 9.5 | F113: 0.9777236053 | G113: 1.10500096 | H113: 0.127277355
A114: 295.6626134 | B114: 2.018693426 | C114: 4.274676154 | D114: 64.9209024 | E114: 9.6 | F114: 0.982271233 | G114: 1.114318378 | H114: 0.1320471446
A115: 296.6626134 | B115: 2.036146718 | C115: 4.28444613 | D115: 65.48068082 | E115: 9.7 | F115: 0.9867717343 | G115: 1.123648018 | H115: 0.1368762838
A116: 297.6626134 | B116: 2.053600011 | C116: 4.29422894 | D116: 66.04119453 | E116: 9.8 | F116: 0.9912260757 | G116: 1.132989913 | H116: 0.1417638374
A117: 298.6626134 | B117: 2.071053303 | C117: 4.30402462 | D117: 66.60244564 | E117: 9.9 | F117: 0.9956351946 | G117: 1.142344098 | H117: 0.1467089037
A118: 299.6626134 | B118: 2.088506596 | C118: 4.313833211 | D118: 67.16443652 | E118: 10 | F118: 1 | G118: 1.151710613 | H118: 0.1517106131

Sheet FFLoogxPP-P-PP
B1: y=log x | C1: 1<x<10
B3: qin | C3: 48.68822096 | E3: Dq | F3: 90 | H3: Rx | I3: =F3/9 -> 10 | J3: =LN(2) -> 0.6931471806 | N3: 30
B4: fin | C4: 108.5388743 | E4: Df | F4: 60 | H4: Ry | I4: =F4 -> 60 | N4: 10.90943725
I5: başlangıç 30 90 f değişti | N5: 96.55334769
B6: x | C6: y | D6: q | E6: f | I6: başlangıç 30 120 q değişti
B7: =5-4*COS(PI()/6) -> 1.535898385 | C7: =LOG(B7) -> 0.1863624837 | D7: =$C$3+$I$3*(B7-1) -> 54.0472048 | E7: =$C$4+$I$4*C7 -> 119.7206233 | G7: =D7*D_R -> 0.9433016753 | H7: 2.089519059
B8: =5-4*COS(PI()/2) -> 5 | C8: =LOG(B8) -> 0.6989700043 | D8: =$C$3+$I$3*(B8-1) -> 88.68822096 | E8: =$C$4+$I$4*C8 -> 150.4770745 | G8: 1.547901463 | H8: 2.6263204 | J8: =I4/I3/B7/LN(10) -> 1.696575058
B9: =5-4*COS(5*PI()/6) -> 8.464101615 | C9: =LOG(B9) -> 0.9275808686 | D9: =$C$3+$I$3*(B9-1) -> 123.3292371 | E9: =$C$4+$I$4*C9 -> 164.1937264 | G9: 2.152501251 | H9: 2.865721137
J10: =I4/I3/B9/LN(10) -> 0.3078610123
C14: =COS(H7) -> -0.4957712955 | D14: =-COS(G7) -> -0.5871185206 | E14: 1 | F14: =COS(H7-G7) -> 0.4119371459
C15: =-SIN(H7)*J8 -> -1.473395903 | D15: =SIN(G7) -> 0.8095009838 | E15: 0 | F15: =-SIN(H7-G7)*(J8-1) -> -0.6347277348 | H15: Det | I15: =MDETERM(C14:F18) -> 
C16: =COS(H8) -> -0.8701585955 | D16: =-COS(G8) -> -0.02289286329 | E16: 1 | F16: =COS(H8-G8) -> 0.4727222061
C17: =COS(H9) -> -0.9621881744 | D17: =-COS(G9) -> 0.5494492454 | E17: 1 | F17: =COS(H9-G9) -> 0.7562591184
C18: =-SIN(H9)*J10 -> -0.08385690761 | D18: =+SIN(G9) -> 0.8355270951 | E18: 0 | F18: =-SIN(H9-G9)*(J10-1) -> 0.4528473163 | H18: =C21*C14+C22*D14+C23-F14 -> 0
C19: =C21*C17+C22*D17+C23-F17 -> -2.238629751e-06 | E19: =SQRT(C19^2+C20^2) -> 2.389001849e-06 | H19: =C21*C15+C22*D15+C23-F15 -> 1.157869808 | K19: qin | L19: fin | M19: a2 | N19: a3 | O19: a4 | P19: |emax|
C20: =C21*C18+C22*D18-F18 -> 8.341862353e-07 | K20: 30 | L20: 10.90943725 | M20: 0.06042553963 | N20: 1.074917482 | O20: 0.1292656026 | P20: 8.19x10-3
C21: =MMULT(MINVERSE(C14:E16),F14:F16) -> 0.7710872629 | E21: a2 | F21: =1/C21 -> 1.29687008 | H21: =C21*C17+C22*D17+C23-F17 -> -2.238629751e-06 | K21: 30 | L21: 96.55334769 | M21: 6.838127819 | N21: 5.287540174 | O21: 2.609860464 | P21: 6.8x10-4
C22: 0.6193804448 | E22: a3 | F22: =SQRT(1+F21^2+F23^2-2*C23*F21*F23) -> 0.6631726269
C23: 1.157869808 | E23: a4 | F23: =1/C22 -> 1.614516584 | H23: =MIN(H28:H121) -> -0.01154197209
H24: =MAX(H28:H121) -> 0.0001120163233
E27: x | F27: yreq | G27: ygen
A28: =C3 -> 48.68822096 | B28: =A28*D_R -> 0.8497697626 | C28: =fourbar($F$21,$F$22,$F$23,1,-1,B28) -> 1.882273998 | D28: =C28/D_R -> 107.846356 | E28: =1+1/$I$3*(A28-$A$28) -> 1 | F28: =LOG(E28) -> 0 | G28: =1/$I$4*(D28-$C$4) -> -0.01154197209 | H28: =G28-F28 -> -0.01154197209
A29: =A28+1 -> 49.68822096 | B29: 0.8672230551 | C29: 1.932248837 | D29: 110.7097034 | E29: 1.1 | F29: =LOG(E29) -> 0.04139268516 | G29: =1/$I$4*(D29-$C$4) -> 0.03618048451 | H29: =G29-F29 -> -0.005212200652
A30: =A29+1 -> 50.68822096 | B30: 0.8846763476 | C30: 1.974939364 | D30: 113.1556903 | E30: 1.2 | F30: 0.07918124605 | G30: 0.07694693438 | H30: -0.002234311669
A31: 51.68822096 | B31: 0.9021296402 | C31: 2.012819021 | D31: 115.3260348 | E31: 1.3 | F31: 0.1139433523 | G31: 0.1131193424 | H31: -0.0008240099001
A32: 52.68822096 | B32: 0.9195829327 | C32: 2.047166179 | D32: 117.293982 | E32: 1.4 | F32: 0.1461280357 | G32: 0.1459184627 | H32: -0.0002095729949
A33: 53.68822096 | B33: 0.9370362252 | C33: 2.078751106 | D33: 119.103665 | E33: 1.5 | F33: 0.1760912591 | G33: 0.1760798457 | H33: -1.141334999e-05
A34: =D7 -> 54.0472048 | B34: 0.9433016753 | C34: 2.089519059 | D34: 119.7206233 | E34: 1.535898385 | F34: 0.1863624837 | G34: 0.1863624837 | H34: 6.938893904e-16
A35: =A33+1 -> 54.68822096 | B35: =A35*D_R -> 0.9544895177 | C35: =fourbar($F$21,$F$22,$F$23,1,-1,B35) -> 2.108084502 | D35: =C35/D_R -> 120.7843448 | E35: =1+1/$I$3*(A35-$A$28) -> 1.6 | F35: =LOG(E35) -> 0.2041199827 | G35: =1/$I$4*(D35-$C$4) -> 0.2040911757 | H35: =G35-F35 -> -2.880695345e-05
A36: =A34+1 -> 55.0472048 | B36: 0.9607549678 | C36: 2.11813812 | D36: 121.3603747 | E36: 1.635898385 | F36: 0.2137563236 | G36: 0.213691674 | H36: -6.464963647e-05
A37: 56.0472048 | B37: 0.9782082604 | C37: 2.144972438 | D37: 122.8978679 | E37: 1.735898385 | F37: 0.2395242991 | G37: 0.2393165597 | H37: -0.000207739353
A38: 57.0472048 | B38: 0.9956615529 | C38: 2.170265817 | D38: 124.3470717 | E38: 1.835898385 | F38: 0.2638486398 | G38: 0.2634699577 | H38: -0.000378682053
A39: 58.0472048 | B39: 1.013114845 | C39: 2.194208281 | D39: 125.7188739 | E39: 1.935898385 | F39: 0.2868825575 | G39: 0.2863333268 | H39: -0.0005492307064
A40: 59.0472048 | B40: 1.030568138 | C40: 2.216951935 | D40: 127.0219893 | E40: 2.035898385 | F40: 0.3087560978 | G40: 0.3080519162 | H40: -0.0007041816436
A41: 60.0472048 | B41: 1.04802143 | C41: 2.238621192 | D41: 128.2635462 | E41: 2.135898385 | F41: 0.3295805873 | G41: 0.3287445324 | H41: -0.0008360549733
A42: 61.0472048 | B42: 1.065474723 | C42: 2.25931965 | D42: 129.4494805 | E42: 2.235898385 | F42: 0.3494520622 | G42: 0.3485101037 | H42: -0.000941958562
A43: 62.0472048 | B43: 1.082928015 | C43: 2.279134873 | D43: 130.5848092 | E43: 2.335898385 | F43: 0.3684539464 | G43: 0.367432248 | H43: -0.001021698336
A44: 63.0472048 | B44: 1.100381308 | C44: 2.29814182 | D44: 131.673827 | E44: 2.435898385 | F44: 0.3866591675 | G44: 0.3855825451 | H44: -0.001076622322
A45: 64.0472048 | B45: 1.117834601 | C45: 2.316405358 | D45: 132.7202507 | E45: 2.535898385 | F45: 0.4041318471 | G45: 0.4030229396 | H45: -0.00110890747
A46: 65.0472048 | B46: 1.135287893 | C46: 2.333982156 | D46: 133.727327 | E46: 2.635898385 | F46: 0.420928664 | G46: 0.419807545 | H46: -0.001121118947
A47: 66.0472048 | B47: 1.152741186 | C47: 2.350922124 | D47: 134.6979157 | E47: 2.735898385 | F47: 0.437099963 | G47: 0.4359840234 | H47: -0.001115939622
A48: 67.0472048 | B48: 1.170194478 | C48: 2.367269543 | D48: 135.6345538 | E48: 2.835898385 | F48: 0.4526906653 | G48: 0.4515946583 | H48: -0.001096007008
A49: 68.0472048 | B49: 1.187647771 | C49: 2.383063945 | D49: 136.5395064 | E49: 2.935898385 | F49: 0.46774102 | G49: 0.4666772015 | H49: -0.001063818486
A50: 69.0472048 | B50: 1.205101063 | C50: 2.398340829 | D50: 137.4148074 | E50: 3.035898385 | F50: 0.4822872311 | G50: 0.4812655511 | H50: -0.001021680003
A51: 70.0472048 | B51: 1.222554356 | C51: 2.413132231 | D51: 138.2622922 | E51: 3.135898385 | F51: 0.4963619814 | G51: 0.4953902991 | H51: -0.0009716823499
A52: 71.0472048 | B52: 1.240007648 | C52: 2.427467194 | D52: 139.0836251 | E52: 3.235898385 | F52: 0.5099948752 | G52: 0.5090791805 | H52: -0.0009156947343
A53: 72.0472048 | B53: 1.257460941 | C53: 2.441372159 | D53: 139.8803209 | E53: 3.335898385 | F53: 0.5232128131 | G53: 0.5223574441 | H53: -0.0008553689989
A54: 73.0472048 | B54: 1.274914233 | C54: 2.454871286 | D54: 140.653764 | E54: 3.435898385 | F54: 0.5360403113 | G54: 0.5352481612 | H54: -0.0007921501171
A55: 74.0472048 | B55: 1.292367526 | C55: 2.467986728 | D55: 141.4052234 | E55: 3.535898385 | F55: 0.5484997757 | G55: 0.5477724856 | H55: -0.0007272901518
A56: 75.0472048 | B56: 1.309820818 | C56: 2.480738859 | D56: 142.1358667 | E56: 3.635898385 | F56: 0.5606117372 | G56: 0.5599498733 | H56: -0.0006618638467
A57: 76.0472048 | B57: 1.327274111 | C57: 2.493146471 | D57: 142.8467705 | E57: 3.735898385 | F57: 0.5723950551 | G57: 0.5717982704 | H57: -0.0005967846854
A58: 77.0472048 | B58: 1.344727403 | C58: 2.505226945 | D58: 143.5389307 | E58: 3.835898385 | F58: 0.5838670939 | G58: 0.5833342733 | H58: -0.0005328206882
A59: 78.0472048 | B59: 1.362180696 | C59: 2.516996393 | D59: 144.2132704 | E59: 3.935898385 | F59: 0.5950438775 | G59: 0.594573268 | H59: -0.0004706095119
A60: 79.0472048 | B60: 1.379633988 | C60: 2.528469785 | D60: 144.8706473 | E60: 4.035898385 | F60: 0.6059402231 | G60: 0.6055295505 | H60: -0.0004106726038
A61: 80.0472048 | B61: 1.397087281 | C61: =fourbar($F$21,$F$22,$F$23,1,-1,B61) -> 2.539661061 | D61: 145.5118602 | E61: =1+1/$I$3*(A61-$A$28) -> 4.135898385 | F61: 0.61656986 | G61: 0.6162164317 | H61: -0.0003534282927
A62: 81.0472048 | B62: 1.414540573 | C62: 2.550583224 | D62: 146.1376541 | E62: 4.235898385 | F62: 0.6269455333 | G62: 0.6266463295 | H62: -0.0002992037763
A63: 82.0472048 | B63: 1.431993866 | C63: 2.561248429 | D63: 146.7487253 | E63: 4.335898385 | F63: 0.6370790956 | G63: 0.6368308496 | H63: -0.0002482460194
A64: 83.0472048 | B64: 1.449447158 | C64: 2.571668053 | D64: 147.3457257 | E64: 4.435898385 | F64: 0.646981589 | G64: 0.6467808574 | H64: -0.0002007316075
A65: 84.0472048 | B65: 1.466900451 | C65: 2.581852765 | D65: 147.9292668 | E65: 4.535898385 | F65: 0.6566633167 | G65: 0.6565065411 | H65: -0.0001567756192
A66: 85.0472048 | B66: 1.484353743 | C66: 2.591812585 | D66: 148.4999224 | E66: 4.635898385 | F66: 0.666133908 | G66: 0.6660174684 | H66: -0.0001164395884
A67: 86.0472048 | B67: 1.501807036 | C67: 2.601556934 | D67: 149.0582325 | E67: 4.735898385 | F67: 0.6754023754 | G67: 0.6753226368 | H67: -7.973863415e-05
A68: 87.0472048 | B68: 1.519260328 | C68: 2.611094686 | D68: 149.6047054 | E68: 4.835898385 | F68: 0.6844771666 | G68: 0.6844305188 | H68: -4.66478315e-05
A69: 88.0472048 | B69: 1.536713621 | C69: 2.620434205 | D69: 150.1398204 | E69: 4.935898385 | F69: 0.6933662103 | G69: 0.6933491024 | H69: -1.710789752e-05
A70: =D8 -> 88.68822096 | B70: =A70*D_R -> 1.547901463 | C70: =fourbar($F$21,$F$22,$F$23,1,-1,B70) -> 2.6263204 | D70: =C70/D_R -> 150.4770745 | E70: 5 | F70: 0.6989700043 | G70: =1/$I$4*(D70-$C$4) -> 0.6989700043 | H70: =G70-F70 -> 0
A71: =A69+1 -> 89.0472048 | B71: 1.554166914 | C71: 2.629583387 | D71: 150.66403 | E71: 5.035898385 | F71: 0.7020769583 | G71: 0.702085928 | H71: 8.969739612e-06
A72: 90.0472048 | B72: 1.571620206 | C72: 2.638549695 | D72: 151.1777615 | E72: 5.135898385 | F72: 0.7106164225 | G72: 0.7106481209 | H72: 3.169842394e-05
A73: 91.0472048 | B73: 1.589073499 | C73: 2.647340186 | D73: 151.6814196 | E73: 5.235898385 | F73: 0.7189912094 | G73: 0.7190424217 | H73: 5.121224884e-05
A74: 92.0472048 | B74: 1.606526791 | C74: 2.655961545 | D74: 152.1753871 | E74: 5.335898385 | F74: 0.7272075504 | G74: 0.7272752129 | H74: 6.766247373e-05
A75: 93.0472048 | B75: 1.623980084 | C75: 2.664420106 | D75: 152.6600269 | E75: 5.435898385 | F75: 0.7352713297 | G75: 0.7353525441 | H75: 8.121433159e-05
A76: 94.0472048 | B76: 1.641433376 | C76: 2.67272188 | D76: 153.1356835 | E76: 5.535898385 | F76: 0.7431881098 | G76: 0.7432801539 | H76: 9.204418267e-05
A77: 95.0472048 | B77: 1.658886669 | C77: 2.680872571 | D77: 153.6026838 | E77: 5.635898385 | F77: 0.7509631542 | G77: 0.7510634912 | H77: 0.0001003369744
A78: 96.0472048 | B78: 1.676339961 | C78: 2.688877603 | D78: 154.0613383 | E78: 5.735898385 | F78: 0.7586014489 | G78: 0.7587077329 | H78: 0.000106283971
A79: 97.0472048 | B79: 1.693793254 | C79: 2.696742129 | D79: 154.5119424 | E79: 5.835898385 | F79: 0.7661077213 | G79: 0.766217802 | H79: 0.0001100807207
A80: 98.0472048 | B80: 1.711246546 | C80: 2.704471055 | D80: 154.9547773 | E80: 5.935898385 | F80: 0.7734864578 | G80: 0.773598383 | H80: 0.0001119252307
A81: 99.0472048 | B81: 1.728699839 | C81: 2.712069052 | D81: 155.3901104 | E81: 6.035898385 | F81: 0.7807419198 | G81: 0.7808539361 | H81: 0.0001120163233
A82: 100.0472048 | B82: 1.746153131 | C82: 2.719540571 | D82: 155.8181969 | E82: 6.135898385 | F82: 0.7878781588 | G82: 0.7879887109 | H82: 0.0001105521492
A83: 101.0472048 | B83: 1.763606424 | C83: 2.726889853 | D83: 156.2392798 | E83: 6.235898385 | F83: 0.7948990297 | G83: 0.7950067585 | H83: 0.0001077288373
A84: 102.0472048 | B84: 1.781059716 | C84: 2.734120945 | D84: 156.6535908 | E84: 6.335898385 | F84: 0.8018082034 | G84: 0.8019119427 | H84: 0.0001037392587
A85: 103.0472048 | B85: 1.798513009 | C85: 2.741237708 | D85: 157.0613513 | E85: 6.435898385 | F85: 0.8086091785 | G85: 0.8087079504 | H85: 9.877189035e-05
A86: 104.0472048 | B86: 1.815966301 | C86: 2.748243827 | D86: 157.4627724 | E86: 6.535898385 | F86: 0.8153052915 | G86: 0.8153983013 | H86: 9.300975803e-05
A87: 105.0472048 | B87: 1.833419594 | C87: 2.755142822 | D87: 157.8580557 | E87: 6.635898385 | F87: 0.8218997271 | G87: 0.8219863565 | H87: 8.662944645e-05
A88: 106.0472048 | B88: 1.850872886 | C88: 2.761938056 | D88: 158.2473939 | E88: 6.735898385 | F88: 0.8283955269 | G88: 0.8284753271 | H88: 7.980016018e-05
A89: 107.0472048 | B89: 1.868326179 | C89: 2.768632742 | D89: 158.6309712 | E89: 6.835898385 | F89: 0.8347955983 | G89: 0.8348682812 | H89: 7.268282283e-05
A90: 108.0472048 | B90: 1.885779471 | C90: 2.775229951 | D90: 159.0089633 | E90: 6.935898385 | F90: 0.8411027218 | G90: 0.841168151 | H90: 6.542920138e-05
A91: 109.0472048 | B91: 1.903232764 | C91: 2.781732617 | D91: 159.3815387 | E91: 7.035898385 | F91: 0.8473195586 | G91: 0.8473777396 | H91: 5.818104333e-05
A92: 110.0472048 | B92: 1.920686056 | C92: 2.788143546 | D92: 159.7488579 | E92: 7.135898385 | F92: 0.8534486571 | G92: 0.8534997263 | H92: 5.106921471e-05
A93: 111.0472048 | B93: 1.938139349 | C93: 2.794465421 | D93: 160.1110746 | E93: 7.235898385 | F93: 0.8594924593 | G93: 0.8595366722 | H93: 4.421282672e-05
A94: 112.0472048 | B94: =A94*D_R -> 1.955592641 | C94: =fourbar($F$21,$F$22,$F$23,1,-1,B94) -> 2.800700805 | D94: =C94/D_R -> 160.4683358 | E94: =1+1/$I$3*(A94-$A$28) -> 7.335898385 | F94: 0.865453307 | G94: 0.8654910253 | H94: 3.771833935e-05
A95: 113.0472048 | B95: 1.973045934 | C95: 2.806852148 | D95: 160.8207818 | E95: 7.435898385 | F95: =LOG(E95) -> 0.8713334463 | G95: =1/$I$4*(D95-$C$4) -> 0.8713651249 | H95: =G95-F95 -> 3.167862926e-05
A96: =A95+1 -> 114.0472048 | B96: 1.990499227 | C96: 2.812921789 | D96: 161.1685466 | E96: 7.535898385 | F96: 0.8771350337 | G96: 0.8771612057 | H96: 2.617200945e-05
A97: 115.0472048 | B97: 2.007952519 | C97: 2.818911964 | D97: 161.5117584 | E97: 7.635898385 | F97: 0.8828601404 | G97: 0.8828814015 | H97: 2.126118714e-05
A98: 116.0472048 | B98: 2.025405812 | C98: 2.824824805 | D98: 161.8505392 | E98: 7.735898385 | F98: 0.8885107564 | G98: 0.8885277486 | H98: 1.699214549e-05
A99: 117.0472048 | B99: 2.042859104 | C99: 2.830662345 | D99: 162.1850056 | E99: 7.835898385 | F99: 0.8940887955 | G99: 0.8941021884 | H99: 1.339293363e-05
A100: 118.0472048 | B100: 2.060312397 | C100: 2.83642652 | D100: 162.5152685 | E100: 7.935898385 | F100: 0.8995960983 | G100: 0.8996065706 | H100: 1.047234801e-05
A101: 119.0472048 | B101: 2.077765689 | C101: 2.842119175 | D101: 162.8414336 | E101: 8.035898385 | F101: 0.9050344364 | G101: 0.9050426549 | H101: 8.218486034e-06
A102: 120.0472048 | B102: 2.095218982 | C102: 2.847742058 | D102: 163.1636011 | E102: 8.135898385 | F102: 0.9104055157 | G102: 0.9104121129 | H102: 6.597151148e-06
A103: 121.0472048 | B103: 2.112672274 | C103: 2.85329683 | D103: 163.4818661 | E103: 8.235898385 | F103: 0.9157109796 | G103: 0.9157165297 | H103: 5.550085365e-06
A104: 122.0472048 | B104: 2.130125567 | C104: 2.858785062 | D104: 163.7963186 | E104: 8.335898385 | F104: 0.9209524119 | G104: 0.9209574049 | H104: 4.993002344e-06
A105: 123.0472048 | B105: 2.147578859 | C105: 2.864208234 | D105: 164.1070435 | E105: 8.435898385 | F105: 0.9261313398 | G105: 0.9261361532 | H105: 4.813390039e-06
A106: =D9 -> 123.3292371 | B106: =A106*D_R -> 2.152501251 | C106: =fourbar($F$21,$F$22,$F$23,1,-1,B106) -> 2.865726176 | D106: =C106/D_R -> 164.1940151 | E106: 8.464101615 | F106: 0.9275808686 | G106: =1/$I$4*(D106-$C$4) -> 0.9275856807 | H106: =G106-F106 -> 4.812083191e-06
A107: =A105+1 -> 124.0472048 | B107: 2.165032152 | C107: 2.86956774 | D107: 164.4141206 | E107: 8.535898385 | F107: 0.9312492364 | G107: 0.9312541045 | H107: 4.8680473e-06
A108: 125.0472048 | B108: 2.182485444 | C108: 2.874864884 | D108: 164.7176245 | E108: 8.635898385 | F108: 0.9363075235 | G108: 0.9363125038 | H108: 4.980313194e-06
A109: 126.0472048 | B109: 2.199938737 | C109: 2.880100879 | D109: 165.0176249 | E109: 8.735898385 | F109: 0.9413075737 | G109: 0.9413125107 | H109: 4.936940946e-06
A110: 127.0472048 | B110: 2.217392029 | C110: 2.885276848 | D110: 165.3141861 | E110: 8.835898385 | F110: 0.9462507127 | G110: 0.9462551973 | H110: 4.484560268e-06
A111: 128.0472048 | B111: 2.234845322 | C111: 2.890393822 | D111: 165.6073671 | E111: 8.935898385 | F111: 0.9511382215 | G111: 0.9511415472 | H111: 3.325661824e-06
A112: 129.0472048 | B112: 2.252298614 | C112: 2.895452734 | D112: 165.8972214 | E112: 9.035898385 | F112: 0.9559713383 | G112: 0.9559724523 | H112: 1.114025552e-06
A113: 130.0472048 | B113: 2.269751907 | C113: 2.900454419 | D113: 166.1837969 | E113: 9.135898385 | F113: 0.9607512604 | G113: 0.9607487099 | H113: -2.550500227e-06
A114: 131.0472048 | B114: 2.287205199 | C114: 2.905399609 | D114: 166.4671354 | E114: 9.235898385 | F114: 0.9654791461 | G114: 0.9654710181 | H114: -8.127980068e-06
A115: 132.0472048 | B115: 2.304658492 | C115: 2.910288924 | D115: 166.7472725 | E115: 9.335898385 | F115: 0.9701561161 | G115: 0.9701399708 | H115: -1.614526643e-05
A116: 133.0472048 | B116: 2.322111784 | C116: 2.915122873 | D116: 167.0242374 | E116: 9.435898385 | F116: 0.9747832553 | G116: 0.9747560514 | H116: -2.72039295e-05
A117: 134.0472048 | B117: 2.339565077 | C117: 2.919901836 | D117: 167.2980518 | E117: 9.535898385 | F117: 0.9793616146 | G117: 0.9793196251 | H117: -4.198943711e-05
A118: 135.0472048 | B118: 2.357018369 | C118: 2.924626063 | D118: 167.5687301 | E118: 9.635898385 | F118: 0.9838922115 | G118: 0.9838309297 | H118: -6.128182312e-05
A119: 136.0472048 | B119: 2.374471662 | C119: 2.929295658 | D119: 167.8362781 | E119: 9.735898385 | F119: 0.9883760324 | G119: 0.9882900643 | H119: -8.596813677e-05
A120: 137.0472048 | B120: 2.391924954 | C120: 2.933910565 | D120: 168.1006929 | E120: 9.835898385 | F120: 0.9928140334 | G120: 0.9926969763 | H120: -0.0001170570344
A121: 138.0472048 | B121: 2.409378247 | C121: 2.938470555 | D121: 168.361961 | E121: 9.935898385 | F121: 0.9972071413 | G121: 0.9970514453 | H121: -0.000155695963

Sheet FFLoogx4P
B1: y=log x | C1: 1<x<10 | H1: =PI()/180 -> 0.01745329252
B3: qin | C3: 45 | E3: Dq | F3: 90 | H3: Rx | I3: =F3/9 -> 10 | J3: =LN(2) -> 0.6931471806
B4: fin | C4: 108.9092282 | E4: Df | F4: 60 | H4: Ry | I4: =F4 -> 60
B6: x | C6: y | D6: q | E6: f
A7: =C4-180 -> -71.09077177 | B7: =5.5-4.5*COS(PI()/8) -> 1.342542104 | C7: =LOG(B7) -> 0.1279279146 | D7: =$C$3+$I$3*(B7-1) -> 48.42542104 | E7: =$C$4+$I$4*C7 -> 116.5849031 | G7: =D7*D_R -> 0.8451830388 | H7: =E7*D_R -> 2.034790417 | J7: Başlangıç 45,110
B8: =5.5-4.5*COS(3*PI()/8) -> 3.777924554 | C8: =LOG(B8) -> 0.5772532808 | D8: =$C$3+$I$3*(B8-1) -> 72.77924554 | E8: =$C$4+$I$4*C8 -> 143.5444251 | G8: 1.270237462 | H8: 2.50532284 | J8: f değişti
B9: =5.5-4.5*COS(5*PI()/8) -> 7.222075446 | C9: 0.858662021 | D9: =$C$3+$I$3*(B9-1) -> 107.2207545 | E9: 160.4289495 | G9: 1.871355192 | H9: 2.800013384
B10: =5.5-4.5*COS(7*PI()/8) -> 9.657457896 | C10: 0.9848628234 | D10: 131.574579 | E10: 168.0009976 | G10: 2.296409615 | H10: 2.932170555
C12: =COS(H7) -> -0.4475234711 | D12: =-COS(G7) -> -0.6635943637 | E12: 1 | F12: =COS(H7-G7) -> 0.3720243412 | H12: Det | I12: =MDETERM(C12:F15) -> -2.31114967e-09
C13: =COS(H8) -> -0.804317823 | D13: =-COS(G8) -> -0.2960540646 | E13: 1 | F13: =COS(H8-G8) -> 0.3294405135
C14: -0.9422268241 | D14: 0.2960540646 | E14: 1 | F14: 0.5989090635
C15: -0.9781512207 | D15: 0.6635943637 | E15: 1 | F15: 0.8046200906 | H15: =C17*C12+C18*D12+C19-F12 -> 0
C16: =C17*C15+C18*D15+C19-F15 -> -1.43930754e-08 | H16: =C17*C13+C18*D13+C19-F13 -> 0
C17: =MMULT(MINVERSE(C12:E14),F12:F14) -> 0.7738176675 | E17: a2 | F17: =1/C17 -> 1.292294092 | H17: =C17*C14+C18*D14+C19-F14 -> 0
C18: 0.6353315434 | E18: a3 | F18: =SQRT(1+F17^2+F19^2-2*C19*F17*F19) -> 0.7142171397
C19: 1.139928341 | E19: a4 | F19: =1/C18 -> 1.573981349 | H19: =MIN(H23:H113) -> -0.00189591341
H20: =MAX(H23:H113) -> 0.0007338084208
E22: x | F22: yreq | G22: ygen
A23: =C3 -> 45 | B23: =A23*D_R -> 0.7853981634 | C23: =fourbar($F$17,$F$18,$F$19,1,-1,B23) -> 1.900127143 | D23: =C23/D_R -> 108.8692658 | E23: =1+1/$I$3*(A23-$A$23) -> 1 | F23: =LOG(E23) -> 0 | G23: =1/$I$4*(D23-$C$4) -> -0.0006660397148 | H23: =G23-F23 -> -0.0006660397148
A24: =A23+1 -> 46 | B24: 0.8028514559 | C24: =fourbar($F$17,$F$18,$F$19,1,-1,B24) -> 1.944502929 | D24: 111.4118111 | E24: =1+1/$I$3*(A24-$A$23) -> 1.1 | F24: =LOG(E24) -> 0.04139268516 | G24: =1/$I$4*(D24-$C$4) -> 0.04170971425 | H24: =G24-F24 -> 0.0003170290939
A25: =A24+1 -> 47 | B25: 0.8203047484 | C25: 1.984184466 | D25: 113.6853957 | E25: 1.2 | F25: 0.07918124605 | G25: 0.07960279075 | H25: 0.0004215447033
A26: 48 | B26: 0.837758041 | C26: 2.020312542 | D26: 115.755382 | E26: 1.3 | F26: 0.1139433523 | G26: 0.1141025625 | H26: 0.0001592101788
A27: 49 | B27: 0.8552113335 | C27: 2.053606522 | D27: 117.6629865 | E27: 1.4 | F27: 0.1461280357 | G27: 0.1458959708 | H27: -0.0002320648531
A28: 50 | B28: 0.872664626 | C28: 2.084558492 | D28: 119.4364037 | E28: 1.5 | F28: 0.1760912591 | G28: 0.1754529252 | H28: -0.0006383338786
A29: 51 | B29: 0.8901179185 | C29: 2.11352501 | D29: 121.096063 | E29: 1.6 | F29: 0.2041199827 | G29: 0.2031139123 | H29: -0.001006070397
A30: 52 | B30: 0.907571211 | C30: 2.140775737 | D30: 122.6574146 | E30: 1.7 | F30: 0.2304489214 | G30: 0.2291364397 | H30: -0.001312481652
A31: 53 | B31: 0.9250245036 | C31: 2.166521475 | D31: 124.1325367 | E31: 1.8 | F31: 0.2552725051 | G31: 0.2537218081 | H31: -0.001550697027
A32: 54 | B32: 0.9424777961 | C32: 2.190931394 | D32: 125.5311221 | E32: 1.9 | F32: 0.278753601 | G32: 0.2770315644 | H32: -0.001722036554
A33: 55 | B33: 0.9599310886 | C33: 2.21414418 | D33: 126.8611167 | E33: 2 | F33: 0.3010299957 | G33: 0.2991981415 | H33: -0.00183185412
A34: 56 | B34: 0.9773843811 | C34: 2.236275534 | D34: 128.1291499 | E34: 2.1 | F34: 0.3222192947 | G34: 0.3203320278 | H34: -0.001887266921
A35: 57 | B35: 0.9948376736 | C35: 2.257423415 | D35: 129.3408343 | E35: 2.2 | F35: 0.3424226808 | G35: 0.3405267674 | H35: -0.00189591341
A36: 58 | B36: 1.012290966 | C36: 2.2776718 | D36: 130.5009813 | E36: 2.3 | F36: 0.361727836 | G36: 0.3598625507 | H36: -0.001865285336
A37: 59 | B37: 1.029744259 | C37: 2.297093447 | D37: 131.6137596 | E37: 2.4 | F37: 0.3802112417 | G37: 0.3784088567 | H37: -0.001802385011
A38: 60 | B38: 1.047197551 | C38: 2.315751977 | D38: 132.6828147 | E38: 2.5 | F38: 0.3979400087 | G38: 0.3962264407 | H38: -0.001713567936
A39: 61 | B39: 1.064650844 | C39: 2.333703474 | D39: 133.7113597 | E39: 2.6 | F39: 0.414973348 | G39: 0.4133688574 | H39: -0.001604490547
A40: 62 | B40: 1.082104136 | C40: 2.350997722 | D40: 134.7022471 | E40: 2.7 | F40: 0.4313637642 | G40: 0.4298836477 | H40: -0.00148011647
A41: 63 | B41: 1.099557429 | C41: 2.367679191 | D41: 135.6580249 | E41: 2.8 | F41: 0.4471580313 | G41: 0.4458132774 | H41: -0.001344753927
A42: 64 | B42: 1.117010721 | C42: 2.383787825 | D42: 136.5809816 | E42: 2.9 | F42: 0.4623979979 | G42: 0.4611958896 | H42: -0.001202108259
A43: 65 | B43: 1.134464014 | C43: 2.399359678 | D43: 137.4731831 | E43: 3 | F43: 0.4771212547 | G43: 0.4760659145 | H43: -0.001055340186
A44: 66 | B44: 1.151917306 | C44: 2.414427442 | D44: 138.3365024 | E44: 3.1 | F44: 0.4913616938 | G44: 0.4904545694 | H44: -0.0009071244739
A45: 67 | B45: 1.169370599 | C45: 2.429020876 | D45: 139.1726446 | E45: 3.2 | F45: 0.5051499783 | G45: 0.5043902723 | H45: -0.000759706044
A46: 68 | B46: 1.186823891 | C46: 2.44316717 | D46: 139.9831675 | E46: 3.3 | F46: 0.5185139399 | G46: 0.5178989878 | H46: -0.000614952029
A47: 69 | B47: 1.204277184 | C47: 2.456891249 | D47: 140.7694993 | E47: 3.4 | F47: 0.531478917 | G47: 0.5310045179 | H47: -0.0004743991314
A48: 70 | B48: 1.221730476 | C48: 2.470216032 | D48: 141.5329531 | E48: 3.5 | F48: 0.5440680444 | G48: 0.5437287482 | H48: -0.0003392961467
A49: 71 | B49: 1.239183769 | C49: 2.483162651 | D49: 142.2747398 | E49: 3.6 | F49: 0.5563025008 | G49: 0.556091859 | H49: -0.0002106418006
A50: 72 | B50: 1.256637061 | C50: 2.495750643 | D50: 142.9959786 | E50: 3.7 | F50: 0.5682017241 | G50: 0.5681125059 | H50: -8.921819944e-05
A51: 73 | B51: 1.274090354 | C51: 2.507998111 | D51: 143.6977068 | E51: 3.8 | F51: 0.5797835966 | G51: 0.5798079763 | H51: 2.437973311e-05
A52: 74 | B52: 1.291543646 | C52: 2.519921868 | D52: 144.3808878 | E52: 3.9 | F52: 0.591064607 | G52: 0.5911943255 | H52: 0.0001297184403
A53: 75 | B53: 1.308996939 | C53: 2.531537561 | D53: 145.0464179 | E53: 4 | F53: 0.6020599913 | G53: 0.6022864945 | H53: 0.0002265031472
A54: 76 | B54: 1.326450232 | C54: 2.542859777 | D54: 145.6951331 | E54: 4.1 | F54: 0.6127838567 | G54: 0.6130984149 | H54: 0.0003145581402
A55: 77 | B55: =A55*D_R -> 1.343903524 | C55: 2.553902146 | D55: =C55/D_R -> 146.3278142 | E55: 4.2 | F55: 0.6232492904 | G55: 0.6236431 | H55: 0.0003938095701
A56: 78 | B56: 1.361356817 | C56: 2.564677417 | D56: 146.9451918 | E56: 4.3 | F56: 0.6334684556 | G56: 0.6339327261 | H56: 0.0004642704749
A57: 79 | B57: 1.378810109 | C57: 2.575197541 | D57: 147.5479505 | E57: 4.4 | F57: 0.6434526765 | G57: 0.6439787042 | H57: 0.0005260277445
A58: 80 | B58: 1.396263402 | C58: 2.585473732 | D58: 148.1367329 | E58: 4.5 | F58: 0.6532125138 | G58: 0.6537917446 | H58: 0.000579230786
A59: 81 | B59: 1.413716694 | C59: 2.595516534 | D59: 148.712143 | E59: 4.6 | F59: 0.6627578317 | G59: 0.6633819134 | H59: 0.0006240816726
A60: 82 | B60: 1.431169987 | C60: 2.605335865 | D60: 149.2747493 | E60: 4.7 | F60: 0.6720978579 | G60: 0.6727586845 | H60: 0.0006608265881
A61: 83 | B61: 1.448623279 | C61: 2.614941077 | D61: 149.8250874 | E61: 4.8 | F61: 0.6812412374 | G61: 0.6819309858 | H61: 0.0006897484011
A62: 84 | B62: 1.466076572 | C62: 2.624340989 | D62: 150.3636626 | E62: 4.9 | F62: 0.69019608 | G62: 0.6909072403 | H62: 0.0007111602238
A63: 85 | B63: 1.483529864 | C63: 2.633543932 | D63: 150.8909525 | E63: 5 | F63: 0.6989700043 | G63: 0.6996954042 | H63: 0.0007253998287
A64: 86 | B64: 1.500983157 | C64: 2.642557786 | D64: 151.4074083 | E64: 5.1 | F64: 0.7075701761 | G64: 0.7083030009 | H64: 0.0007328248142
A65: 87 | B65: 1.518436449 | C65: 2.651390009 | D65: 151.9134574 | E65: 5.2 | F65: 0.7160033436 | G65: 0.7167371521 | H65: 0.0007338084208
A66: 88 | B66: 1.535889742 | C66: 2.660047666 | D66: 152.4095046 | E66: 5.3 | F66: 0.7242758696 | G66: 0.7250046055 | H66: 0.0007287359166
A67: 89 | B67: 1.553343034 | C67: 2.66853746 | D67: 152.8959339 | E67: 5.4 | F67: 0.7323937598 | G67: 0.7331117613 | H67: 0.0007180014768
A68: 90 | B68: 1.570796327 | C68: 2.676865752 | D68: 153.3731099 | E68: 5.5 | F68: 0.7403626895 | G68: 0.741064695 | H68: 0.0007020054955
A69: 91 | B69: 1.588249619 | C69: 2.685038589 | D69: 153.841379 | E69: 5.6 | F69: 0.748188027 | G69: 0.7488691793 | H69: 0.0006811522721
A70: 92 | B70: 1.605702912 | C70: 2.693061719 | D70: 154.3010705 | E70: 5.7 | F70: 0.7558748557 | G70: 0.7565307037 | H70: 0.0006558480266
A71: 93 | B71: 1.623156204 | C71: 2.700940612 | D71: 154.7524978 | E71: 5.8 | F71: 0.7634279936 | G71: 0.7640544928 | H71: 0.0006264991995
A72: 94 | B72: 1.640609497 | C72: 2.708680481 | D72: 155.1959596 | E72: 5.9 | F72: 0.7708520116 | G72: 0.7714455226 | H72: 0.0005935109994
A73: 95 | B73: 1.658062789 | C73: 2.716286291 | D73: 155.6317404 | E73: 6 | F73: 0.7781512504 | G73: 0.7787085366 | H73: 0.0005572861682
A74: 96 | B74: 1.675516082 | C74: 2.723762781 | D74: 156.0601118 | E74: 6.1 | F74: 0.785329835 | G74: 0.7858480589 | H74: 0.0005182239326
A75: 97 | B75: 1.692969374 | C75: 2.731114474 | D75: 156.4813327 | E75: 6.2 | F75: 0.7923916895 | G75: 0.7928684086 | H75: 0.0004767191202
A76: 98 | B76: 1.710422667 | C76: 2.73834569 | D76: 156.8956509 | E76: 6.3 | F76: 0.7993405495 | G76: 0.7997737109 | H76: 0.0004331614163
A77: 99 | B77: 1.727875959 | C77: 2.745460557 | D77: 157.3033028 | E77: 6.4 | F77: 0.806179974 | G77: 0.8065679087 | H77: 0.0003879347441
A78: 100 | B78: 1.745329252 | C78: 2.752463026 | D78: 157.7045146 | E78: 6.5 | F78: 0.8129133566 | G78: 0.8132547734 | H78: 0.0003414167504
A79: 101 | B79: 1.762782545 | C79: 2.759356874 | D79: 158.0995031 | E79: 6.6 | F79: 0.8195439355 | G79: 0.8198379139 | H79: 0.0002939783832
A80: 102 | B80: 1.780235837 | C80: 2.766145722 | D80: 158.4884754 | E80: 6.7 | F80: 0.8260748027 | G80: 0.8263207862 | H80: 0.0002459835472
A81: 103 | B81: 1.79768913 | C81: 2.772833037 | D81: 158.8716303 | E81: 6.8 | F81: 0.8325089127 | G81: 0.8327067015 | H81: 0.0001977888276
A82: 104 | B82: 1.815142422 | C82: 2.779422143 | D82: 159.2491583 | E82: 6.9 | F82: 0.8388490907 | G82: 0.838998834 | H82: 0.0001497432699
A83: 105 | B83: 1.832595715 | C83: 2.785916228 | D83: 159.6212419 | E83: 7 | F83: 0.84509804 | G83: 0.8452002282 | H83: 0.0001021882085
A84: 106 | B84: 1.850049007 | C84: 2.792318351 | D84: 159.9880566 | E84: 7.1 | F84: 0.8512583487 | G84: 0.8513138059 | H84: 5.545713565e-05
A85: 107 | B85: 1.8675023 | C85: 2.798631451 | D85: 160.3497706 | E85: 7.2 | F85: 0.8573324964 | G85: 0.857342372 | H85: 9.875603865e-06
A86: 108 | B86: 1.884955592 | C86: 2.804858349 | D86: 160.7065455 | E86: 7.3 | F86: 0.8633228601 | G86: 0.8632886213 | H86: -3.423884534e-05
A87: 109 | B87: =A87*D_R -> 1.902408885 | C87: 2.811001756 | D87: =C87/D_R -> 161.0585368 | E87: 7.4 | F87: 0.8692317197 | G87: 0.869155143 | H87: -7.657673081e-05
A88: 110 | B88: 1.919862177 | C88: =fourbar($F$17,$F$18,$F$19,1,-1,B88) -> 2.81706428 | D88: 161.4058938 | E88: =1+1/$I$3*(A88-$A$23) -> 7.5 | F88: =LOG(E88) -> 0.8750612634 | G88: =1/$I$4*(D88-$C$4) -> 0.8749444267 | H88: =G88-F88 -> -0.0001168366653
A89: =A88+1 -> 111 | B89: 1.93731547 | C89: 2.823048427 | D89: 161.7487602 | E89: 7.6 | F89: 0.8808135923 | G89: 0.8806588669 | H89: -0.0001547253778
A90: 112 | B90: 1.954768762 | C90: 2.828956612 | D90: 162.0872743 | E90: 7.7 | F90: 0.8864907252 | G90: 0.8863007674 | H90: -0.0001899577286
A91: 113 | B91: 1.972222055 | C91: 2.834791155 | D91: 162.421569 | E91: 7.8 | F91: 0.8920946027 | G91: 0.891872346 | H91: -0.0002222567218
A92: 114 | B92: 1.989675347 | C92: 2.840554294 | D92: 162.7517725 | E92: =1+1/$I$3*(A92-$A$23) -> 7.9 | F92: 0.8976270913 | G92: =1/$I$4*(D92-$C$4) -> 0.8973757378 | H92: =G92-F92 -> -0.0002513535188
A93: 115 | B93: 2.00712864 | C93: 2.846248181 | D93: 163.0780082 | E93: 8 | F93: 0.903089987 | G93: 0.9028129995 | H93: -0.0002769874561
A94: 116 | B94: 2.024581932 | C94: 2.851874892 | D94: 163.400395 | E94: 8.1 | F94: 0.9084850189 | G94: 0.9081861128 | H94: -0.0002989060724
A95: 117 | B95: 2.042035225 | C95: 2.857436426 | D95: 163.7190475 | E95: 8.2 | F95: 0.9138138524 | G95: 0.9134969872 | H95: -0.0003168651466
A96: 118 | B96: 2.059488517 | C96: 2.862934712 | D96: 164.034076 | E96: 8.3 | F96: 0.9190780924 | G96: 0.9187474636 | H96: -0.0003306287523
A97: 119 | B97: 2.07694181 | C97: 2.868371608 | D97: 164.3455872 | E97: 8.4 | F97: 0.9242792861 | G97: 0.9239393167 | H97: -0.000339969331
A98: 120 | B98: 2.094395102 | C98: 2.873748906 | D98: 164.6536837 | E98: 8.5 | F98: 0.9294189257 | G98: 0.9290742579 | H98: -0.0003446677896
A99: 121 | B99: 2.111848395 | C99: 2.879068334 | D99: 164.9584645 | E99: 8.6 | F99: 0.9344984512 | G99: 0.9341539376 | H99: -0.000344513624
A100: 122 | B100: 2.129301687 | C100: 2.88433156 | D100: 165.2600251 | E100: 8.7 | F100: 0.9395192526 | G100: 0.9391799475 | H100: -0.0003393050758
A101: 123 | B101: 2.14675498 | C101: 2.88954019 | D101: 165.5584576 | E101: 8.8 | F101: 0.9444826722 | G101: 0.9441538228 | H101: -0.0003288493257
A102: 124 | B102: 2.164208272 | C102: 2.894695775 | D102: 165.8538509 | E102: 8.9 | F102: 0.9493900066 | G102: 0.9490770439 | H102: -0.0003129627285
A103: 125 | B103: 2.181661565 | C103: 2.89979981 | D103: 166.1462905 | E103: 9 | F103: 0.9542425094 | G103: 0.9539510383 | H103: -0.0002914710974
A104: 126 | B104: 2.199114858 | C104: 2.904853736 | D104: 166.4358592 | E104: 9.1 | F104: 0.9590413923 | G104: 0.9587771823 | H104: -0.000264210043
A105: 127 | B105: 2.21656815 | C105: 2.909858942 | D105: 166.7226363 | E105: 9.2 | F105: 0.9637878273 | G105: 0.963556802 | H105: -0.0002310253757
A106: 128 | B106: 2.234021443 | C106: 2.914816766 | D106: 167.0066987 | E106: 9.3 | F106: 0.9684829486 | G106: 0.968291175 | H106: -0.0001917735792
A107: 129 | B107: 2.251474735 | C107: 2.919728495 | D107: 167.2881201 | E107: 9.4 | F107: 0.9731278536 | G107: 0.9729815312 | H107: -0.0001463223675
A108: 130 | B108: 2.268928028 | C108: 2.92459537 | D108: 167.5669715 | E108: 9.5 | F108: 0.9777236053 | G108: 0.977629054 | H108: -9.455133482e-05
A109: 131 | B109: 2.28638132 | C109: 2.92941858 | D109: 167.843321 | E109: 9.6 | F109: 0.982271233 | G109: 0.9822348803 | H109: -3.635271379e-05
A110: 132 | B110: 2.303834613 | C110: 2.934199269 | D110: 168.1172344 | E110: 9.7 | F110: 0.9867717343 | G110: 0.986800102 | H110: 2.836774204e-05
A111: 133 | B111: 2.321287905 | C111: 2.938938532 | D111: 168.3887742 | E111: 9.8 | F111: 0.9912260757 | G111: 0.9913257654 | H111: 9.968973302e-05
A112: 134 | B112: 2.338741198 | C112: 2.943637419 | D112: 168.6580005 | E112: 9.9 | F112: 0.9956351946 | G112: 0.9958128718 | H112: 0.0001776772225
A113: 135 | B113: 2.35619449 | C113: 2.94829693 | D113: 168.9249709 | E113: 10 | F113: 1 | G113: 1.000262377 | H113: 0.0002623770543

Sheet FFLoogx4P (2)
B1: y=log x | C1: 1<x<10
B3: qin | C3: 4.734936138 | E3: Dq | F3: 90 | H3: Rx | I3: =F3/9 -> 10 | J3: =LN(2) -> 0.6931471806 | N3: 30
B4: fin | C4: 120 | E4: Df | F4: 60 | H4: Ry | I4: =F4 -> 60 | N4: 10.90943725
I5: başlangıç 30 90 f değişti | N5: 96.55334769
A6: =C3-180 -> -175.2650639 | B6: x | C6: y | D6: q | E6: f | I6: başlangıç 30 120 q değişti
B7: =5.5-4.5*COS(PI()/8) -> 1.342542104 | C7: =LOG(B7) -> 0.1279279146 | D7: =$C$3+$I$3*(B7-1) -> 8.160357175 | E7: =$C$4+$I$4*C7 -> 127.6756749 | G7: =D7*D_R -> 0.1424251008 | H7: 2.228360901 | K7: 30 90 ile q değiştiğinde oluşan mekanizma çalışıyor
B8: =5.5-4.5*COS(3*PI()/8) -> 3.777924554 | C8: =LOG(B8) -> 0.5772532808 | D8: =$C$3+$I$3*(B8-1) -> 32.51418168 | E8: =$C$4+$I$4*C8 -> 154.6351968 | G8: 0.5674795239 | H8: 2.698893324 | K8: Eğer 80 120 ile başlar q değişirse, q=99.71774
B9: =5.5-4.5*COS(5*PI()/8) -> 7.222075446 | C9: 0.858662021 | D9: =$C$3+$I$3*(B9-1) -> 66.95569059 | E9: 171.5197213 | G9: 1.168597254 | H9: 2.993583868 | K9: Branch problem q1ve 4 konumlar bir, 2 ve 3 konumlar ikinci branchde
B10: =5.5-4.5*COS(7*PI()/8) -> 9.657457896 | C10: 0.9848628234 | D10: 91.3095151 | E10: 179.0917694 | G10: 1.593651677 | H10: 3.125741039
K11: Eğer 150,120 ise, q=193.6084 =13.60 çözümü ile aynı
C12: =COS(H7) -> -0.6111910683 | D12: =-COS(G7) -> -0.9898746786 | E12: 1 | F12: =COS(H7-G7) -> -0.4926562271 | H12: Det | I12: =MDETERM(C12:F15) -> -2.733704813e-10
C13: =COS(H8) -> -0.9035986176 | D13: =-COS(G8) -> -0.8432584292 | E13: 1 | F13: =COS(H8-G8) -> -0.5317092544
C14: -0.9890666809 | D14: -0.3914428794 | E14: 1 | F14: -0.2514617969
C15: -0.9998743658 | D15: 0.02285336036 | E15: 1 | F15: 0.03869729977 | H15: =C17*C12+C18*D12+C19-F12 -> 0
C16: =C17*C15+C18*D15+C19-F15 -> -2.286025716e-09 | H16: =C17*C13+C18*D13+C19-F13 -> 0 | K16: qin | L16: fin | M16: a2 | N16: a3 | O16: a4 | P16: |emax|
C17: =MMULT(MINVERSE(C12:E14),F12:F14) -> 0.4911522802 | E17: a2 | F17: =1/C17 -> 2.036028418 | H17: =C17*C14+C18*D14+C19-F14 -> 0 | K17: 30 | L17: 10.90943725 | M17: 0.06042553963 | N17: 1.074917482 | O17: 0.1292656026 | P17: 8.19x10-3
C18: 0.7131788443 | E18: a3 | F18: =SQRT(1+F17^2+F19^2-2*C19*F17*F19) -> 2.044410963 | K18: 30 | L18: 96.55334769 | M18: 6.838127819 | N18: 5.287540174 | O18: 2.609860464 | P18: 6.8x10-4
C19: 0.5134893391 | E19: a4 | F19: =1/C18 -> 1.402172832 | H19: =MIN(H23:H113) -> -0.0146948557
H20: =MAX(H23:H113) -> 0.03215915221
E22: x | F22: yreq | G22: ygen
A23: =C3 -> 4.734936138 | B23: =A23*D_R -> 0.08264022548 | C23: =fourbar($F$17,$F$18,$F$19,1,-1,B23) -> 2.128072088 | D23: =C23/D_R -> 121.9295491 | E23: =1+1/$I$3*(A23-$A$23) -> 1 | F23: =LOG(E23) -> 0 | G23: =1/$I$4*(D23-$C$4) -> 0.03215915221 | H23: =G23-F23 -> 0.03215915221
A24: =A23+1 -> 5.734936138 | B24: 0.100093518 | C24: =fourbar($F$17,$F$18,$F$19,1,-1,B24) -> 2.158340128 | D24: 123.6637801 | E24: =1+1/$I$3*(A24-$A$23) -> 1.1 | F24: =LOG(E24) -> 0.04139268516 | G24: =1/$I$4*(D24-$C$4) -> 0.06106300151 | H24: =G24-F24 -> 0.01967031635
A25: =A24+1 -> 6.734936138 | B25: 0.1175468105 | C25: 2.187793689 | D25: 125.3513448 | E25: 1.2 | F25: 0.07918124605 | G25: 0.08918908013 | H25: 0.01000783408
A26: 7.734936138 | B26: 0.135000103 | C26: 2.216428026 | D26: 126.9919715 | E26: 1.3 | F26: 0.1139433523 | G26: 0.1165328577 | H26: 0.00258950539
A27: 8.734936138 | B27: 0.1524533956 | C27: 2.244242084 | D27: 128.5855996 | E27: 1.4 | F27: 0.1461280357 | G27: 0.1430933271 | H27: -0.003034708545
A28: 9.734936138 | B28: 0.1699066881 | C28: 2.271238278 | D28: 130.1323676 | E28: 1.5 | F28: 0.1760912591 | G28: 0.1688727933 | H28: -0.007218465804
A29: 10.73493614 | B29: 0.1873599806 | C29: 2.297422233 | D29: 131.6325977 | E29: 1.6 | F29: 0.2041199827 | G29: 0.193876629 | H29: -0.0102433537
A30: 11.73493614 | B30: 0.2048132731 | C30: 2.32280251 | D30: 133.0867804 | E30: 1.7 | F30: 0.2304489214 | G30: 0.2181130075 | H30: -0.01233591388
A31: 12.73493614 | B31: 0.2222665656 | C31: 2.347390302 | D31: 134.4955572 | E31: 1.8 | F31: 0.2552725051 | G31: 0.2415926192 | H31: -0.01367988594
A32: 13.73493614 | B32: 0.2397198582 | C32: 2.371199135 | D32: 135.8597028 | E32: 1.9 | F32: 0.278753601 | G32: 0.2643283801 | H32: -0.0144252209
A33: 14.73493614 | B33: 0.2571731507 | C33: 2.39424456 | D33: 137.1801084 | E33: 2 | F33: 0.3010299957 | G33: 0.28633514 | H33: -0.0146948557
A34: 15.73493614 | B34: 0.2746264432 | C34: 2.416543852 | D34: 138.4577637 | E34: 2.1 | F34: 0.3222192947 | G34: 0.3076293956 | H34: -0.01458989916
A35: 16.73493614 | B35: 0.2920797357 | C35: 2.438115722 | D35: 139.6937408 | E35: 2.2 | F35: 0.3424226808 | G35: 0.3282290138 | H35: -0.01419366701
A36: 17.73493614 | B36: 0.3095330282 | C36: 2.45898004 | D36: 140.8891782 | E36: 2.3 | F36: 0.361727836 | G36: 0.3481529696 | H36: -0.01357486641
A37: 18.73493614 | B37: 0.3269863208 | C37: 2.47915758 | D37: 142.0452661 | E37: 2.4 | F37: 0.3802112417 | G37: 0.3674211009 | H37: -0.01279014079
A38: 19.73493614 | B38: 0.3444396133 | C38: 2.498669784 | D38: 143.163233 | E38: 2.5 | F38: 0.3979400087 | G38: 0.3860538832 | H38: -0.01188612542
A39: 20.73493614 | B39: 0.3618929058 | C39: 2.517538547 | D39: 144.2443335 | E39: 2.6 | F39: 0.414973348 | G39: 0.4040722248 | H39: -0.0109011232
A40: 21.73493614 | B40: 0.3793461983 | C40: 2.535786025 | D40: 145.289837 | E40: 2.7 | F40: 0.4313637642 | G40: 0.4214972827 | H40: -0.00986648143
A41: 22.73493614 | B41: 0.3967994908 | C41: 2.553434464 | D41: 146.3010181 | E41: 2.8 | F41: 0.4471580313 | G41: 0.4383503009 | H41: -0.008807730462
A42: 23.73493614 | B42: 0.4142527834 | C42: 2.570506053 | D42: 147.2791481 | E42: 2.9 | F42: 0.4623979979 | G42: 0.4546524676 | H42: -0.007745530313
A43: 24.73493614 | B43: 0.4317060759 | C43: 2.587022794 | D43: 148.2254876 | E43: 3 | F43: 0.4771212547 | G43: 0.4704247935 | H43: -0.006696461253
A44: 25.73493614 | B44: 0.4491593684 | C44: 2.603006395 | D44: 149.1412805 | E44: 3.1 | F44: 0.4913616938 | G44: 0.4856880075 | H44: -0.005673686308
A45: 26.73493614 | B45: 0.4666126609 | C45: 2.618478176 | D45: 150.0277482 | E45: 3.2 | F45: 0.5051499783 | G45: 0.5004624703 | H45: -0.004687508016
A46: 27.73493614 | B46: 0.4840659534 | C46: 2.633458999 | D46: 150.8860862 | E46: 3.3 | F46: 0.5185139399 | G46: 0.5147681026 | H46: -0.00374583726
A47: 28.73493614 | B47: 0.501519246 | C47: 2.647969205 | D47: 151.7174597 | E47: 3.4 | F47: 0.531478917 | G47: 0.5286243283 | H47: -0.002854588696
A48: 29.73493614 | B48: 0.5189725385 | C48: 2.662028566 | D48: 152.5230018 | E48: 3.5 | F48: 0.5440680444 | G48: 0.5420500298 | H48: -0.002018014594
A49: 30.73493614 | B49: 0.536425831 | C49: 2.675656255 | D49: 153.3038108 | E49: 3.6 | F49: 0.5563025008 | G49: 0.5550635139 | H49: -0.001238986867
A50: 31.73493614 | B50: 0.5538791235 | C50: 2.688870814 | D50: 154.0609493 | E50: 3.7 | F50: 0.5682017241 | G50: 0.5676824887 | H50: -0.0005192353738
A51: 32.73493614 | B51: 0.571332416 | C51: 2.701690145 | D51: 154.7954428 | E51: 3.8 | F51: 0.5797835966 | G51: 0.5799240474 | H51: 0.0001404507529
A52: 33.73493614 | B52: 0.5887857086 | C52: 2.714131493 | D52: 155.5082796 | E52: 3.9 | F52: 0.591064607 | G52: 0.5918046601 | H52: 0.0007400530861
A53: 34.73493614 | B53: 0.6062390011 | C53: 2.726211453 | D53: 156.2004103 | E53: 4 | F53: 0.6020599913 | G53: 0.6033401718 | H53: 0.001280180441
A54: 35.73493614 | B54: 0.6236922936 | C54: 2.737945964 | D54: 156.8727483 | E54: 4.1 | F54: 0.6127838567 | G54: 0.6145458047 | H54: 0.001761947946
A55: 36.73493614 | B55: =A55*D_R -> 0.6411455861 | C55: 2.749350323 | D55: =C55/D_R -> 157.5261699 | E55: 4.2 | F55: 0.6232492904 | G55: 0.6254361656 | H55: 0.002186875248
A56: 37.73493614 | B56: 0.6585988786 | C56: 2.760439194 | D56: 158.1615154 | E56: 4.3 | F56: 0.6334684556 | G56: 0.6360252566 | H56: 0.002556800978
A57: 38.73493614 | B57: 0.6760521712 | C57: 2.771226617 | D57: 158.7795893 | E57: 4.4 | F57: 0.6434526765 | G57: 0.6463264875 | H57: 0.00287381102
A58: 39.73493614 | B58: 0.6935054637 | C58: 2.781726034 | D58: 159.3811615 | E58: 4.5 | F58: 0.6532125138 | G58: 0.6563526923 | H58: 0.003140178507
A59: 40.73493614 | B59: 0.7109587562 | C59: 2.791950299 | D59: 159.9669687 | E59: 4.6 | F59: 0.6627578317 | G59: 0.6661161455 | H59: 0.003358313786
A60: 41.73493614 | B60: 0.7284120487 | C60: 2.801911698 | D60: 160.5377148 | E60: 4.7 | F60: 0.6720978579 | G60: 0.6756285808 | H60: 0.003530722819
A61: 42.73493614 | B61: 0.7458653412 | C61: 2.811621972 | D61: 161.0940726 | E61: 4.8 | F61: 0.6812412374 | G61: 0.6849012101 | H61: 0.003659972771
A62: 43.73493614 | B62: 0.7633186338 | C62: 2.821092339 | D62: 161.6366846 | E62: 4.9 | F62: 0.69019608 | G62: 0.6939447437 | H62: 0.003748663654
A63: 44.73493614 | B63: 0.7807719263 | C63: 2.830333507 | D63: 162.1661646 | E63: 5 | F63: 0.6989700043 | G63: 0.7027694095 | H63: 0.003799405129
A64: 45.73493614 | B64: 0.7982252188 | C64: 2.839355705 | D64: 162.6830984 | E64: 5.1 | F64: 0.7075701761 | G64: 0.7113849737 | H64: 0.00381479765
A65: 46.73493614 | B65: 0.8156785113 | C65: 2.848168697 | D65: 163.1880457 | E65: 5.2 | F65: 0.7160033436 | G65: 0.7198007609 | H65: 0.003797417282
A66: 47.73493614 | B66: 0.8331318038 | C66: 2.856781805 | D66: 163.6815404 | E66: 5.3 | F66: 0.7242758696 | G66: 0.7280256732 | H66: 0.003749803615
A67: 48.73493614 | B67: 0.8505850964 | C67: 2.86520393 | D67: 164.1640926 | E67: 5.4 | F67: 0.7323937598 | G67: 0.7360682101 | H67: 0.003674450286
A68: 49.73493614 | B68: 0.8680383889 | C68: 2.87344357 | D68: 164.6361892 | E68: 5.5 | F68: 0.7403626895 | G68: 0.7439364872 | H68: 0.003573797688
A69: 50.73493614 | B69: 0.8854916814 | C69: 2.881508842 | D69: 165.0982953 | E69: 5.6 | F69: 0.748188027 | G69: 0.7516382545 | H69: 0.00345022751
A70: 51.73493614 | B70: 0.9029449739 | C70: 2.889407497 | D70: 165.5508549 | E70: 5.7 | F70: 0.7558748557 | G70: 0.7591809145 | H70: 0.003306058814
A71: 52.73493614 | B71: 0.9203982664 | C71: 2.897146941 | D71: 165.9942923 | E71: 5.8 | F71: 0.7634279936 | G71: 0.7665715389 | H71: 0.00314354538
A72: 53.73493614 | B72: 0.937851559 | C72: 2.90473425 | D72: 166.4290131 | E72: 5.9 | F72: 0.7708520116 | G72: 0.7738168858 | H72: 0.002964874113
A73: 54.73493614 | B73: 0.9553048515 | C73: 2.91217619 | D73: 166.8554049 | E73: 6 | F73: 0.7781512504 | G73: 0.7809234147 | H73: 0.002772164321
A74: 55.73493614 | B74: 0.972758144 | C74: 2.919479228 | D74: 167.2738382 | E74: 6.1 | F74: 0.785329835 | G74: 0.7878973027 | H74: 0.002567467707
A75: 56.73493614 | B75: 0.9902114365 | C75: 2.926649553 | D75: 167.6846675 | E75: 6.2 | F75: 0.7923916895 | G75: 0.7947444585 | H75: 0.002352768952
A76: 57.73493614 | B76: 1.007664729 | C76: 2.933693085 | D76: 168.0882322 | E76: 6.3 | F76: 0.7993405495 | G76: 0.8014705362 | H76: 0.002129986757
A77: 58.73493614 | B77: 1.025118022 | C77: 2.940615494 | D77: 168.484857 | E77: 6.4 | F77: 0.806179974 | G77: 0.8080809493 | H77: 0.00190097528
A78: 59.73493614 | B78: 1.042571314 | C78: 2.947422208 | D78: 168.8748529 | E78: 6.5 | F78: 0.8129133566 | G78: 0.8145808825 | H78: 0.001667525855
A79: 60.73493614 | B79: 1.060024607 | C79: 2.954118431 | D79: 169.2585183 | E79: 6.6 | F79: 0.8195439355 | G79: 0.8209753045 | H79: 0.001431368959
A80: 61.73493614 | B80: 1.077477899 | C80: 2.960709151 | D80: 169.6361387 | E80: 6.7 | F80: 0.8260748027 | G80: 0.827268979 | H80: 0.001194176341
A81: 62.73493614 | B81: 1.094931192 | C81: 2.967199155 | D81: 170.0079886 | E81: 6.8 | F81: 0.8325089127 | G81: 0.833466476 | H81: 0.0009575632938
A82: 63.73493614 | B82: 1.112384484 | C82: 2.973593035 | D82: 170.3743309 | E82: 6.9 | F82: 0.8388490907 | G82: 0.8395721817 | H82: 0.0007230910098
A83: 64.73493614 | B83: 1.129837777 | C83: 2.979895203 | D83: 170.7354185 | E83: 7 | F83: 0.84509804 | G83: 0.845590309 | H83: 0.0004922689975
A84: 65.73493614 | B84: 1.147291069 | C84: 2.986109899 | D84: 171.0914944 | E84: 7.1 | F84: 0.8512583487 | G84: 0.8515249063 | H84: 0.0002665575334
A85: 66.73493614 | B85: 1.164744362 | C85: 2.992241199 | D85: 171.442792 | E85: 7.2 | F85: 0.8573324964 | G85: 0.8573798666 | H85: 4.737012413e-05
A86: 67.73493614 | B86: 1.182197654 | C86: 2.998293027 | D86: 171.7895362 | E86: 7.3 | F86: 0.8633228601 | G86: 0.8631589361 | H86: -0.0001639240375
A87: 68.73493614 | B87: =A87*D_R -> 1.199650947 | C87: 3.004269159 | D87: =C87/D_R -> 172.1319433 | E87: 7.4 | F87: 0.8692317197 | G87: 0.8688657221 | H87: -0.0003659976357
A88: 69.73493614 | B88: 1.217104239 | C88: =fourbar($F$17,$F$18,$F$19,1,-1,B88) -> 3.010173236 | D88: 172.470222 | E88: =1+1/$I$3*(A88-$A$23) -> 7.5 | F88: =LOG(E88) -> 0.8750612634 | G88: =1/$I$4*(D88-$C$4) -> 0.8745037006 | H88: =G88-F88 -> -0.0005575628262
A89: =A88+1 -> 70.73493614 | B89: 1.234557532 | C89: 3.016008768 | D89: 172.8045734 | E89: 7.6 | F89: 0.8808135923 | G89: 0.8800762234 | H89: -0.0007373688714
A90: 71.73493614 | B90: 1.252010824 | C90: 3.021779143 | D90: 173.1351915 | E90: 7.7 | F90: 0.8864907252 | G90: 0.8855865254 | H90: -0.0009041998213
A91: 72.73493614 | B91: 1.269464117 | C91: 3.027487632 | D91: 173.4622638 | E91: 7.8 | F91: 0.8920946027 | G91: 0.8910377304 | H91: -0.001056872247
A92: 73.73493614 | B92: 1.286917409 | C92: 3.033137396 | D92: 173.7859715 | E92: 7.9 | F92: 0.8976270913 | G92: 0.8964328583 | H92: -0.001194233027
A93: 74.73493614 | B93: 1.304370702 | C93: 3.038731496 | D93: 174.1064898 | E93: 8 | F93: 0.903089987 | G93: 0.9017748298 | H93: -0.001315157199
A94: 75.73493614 | B94: 1.321823994 | C94: 3.044272892 | D94: 174.4239884 | E94: 8.1 | F94: 0.9084850189 | G94: 0.907066473 | H94: -0.001418545856
A95: 76.73493614 | B95: 1.339277287 | C95: 3.049764454 | D95: 174.7386317 | E95: 8.2 | F95: 0.9138138524 | G95: 0.9123105283 | H95: -0.00150332412
A96: 77.73493614 | B96: 1.356730579 | C96: 3.055208964 | D96: 175.0505792 | E96: 8.3 | F96: 0.9190780924 | G96: 0.9175096532 | H96: -0.001568439162
A97: 78.73493614 | B97: 1.374183872 | C97: 3.060609126 | D97: 175.3599857 | E97: 8.4 | F97: 0.9242792861 | G97: 0.9226664278 | H97: -0.001612858288
A98: 79.73493614 | B98: 1.391637164 | C98: 3.065967564 | D98: 175.6670015 | E98: 8.5 | F98: 0.9294189257 | G98: 0.9277833586 | H98: -0.001635567077
A99: 80.73493614 | B99: 1.409090457 | C99: 3.07128683 | D99: 175.971773 | E99: 8.6 | F99: 0.9344984512 | G99: 0.9328628837 | H99: -0.001635567586
A100: 81.73493614 | B100: 1.42654375 | C100: 3.07656941 | D100: 176.2744426 | E100: 8.7 | F100: 0.9395192526 | G100: 0.937907376 | H100: -0.001611876598
A101: 82.73493614 | B101: 1.443997042 | C101: 3.081817725 | D101: 176.5751489 | E101: 8.8 | F101: 0.9444826722 | G101: 0.9429191482 | H101: -0.001563523934
A102: 83.73493614 | B102: 1.461450335 | C102: 3.087034139 | D102: 176.8740274 | E102: 8.9 | F102: 0.9493900066 | G102: 0.9479004558 | H102: -0.001489550805
A103: 84.73493614 | B103: 1.478903627 | C103: 3.092220956 | D103: 177.1712101 | E103: 9 | F103: 0.9542425094 | G103: 0.9528535012 | H103: -0.001389008228
A104: 85.73493614 | B104: 1.49635692 | C104: 3.09738043 | D104: 177.4668262 | E104: 9.1 | F104: 0.9590413923 | G104: 0.9577804368 | H104: -0.001260955471
A105: 86.73493614 | B105: 1.513810212 | C105: 3.102514769 | D105: 177.7610021 | E105: 9.2 | F105: 0.9637878273 | G105: 0.9626833688 | H105: -0.001104458563
A106: 87.73493614 | B106: 1.531263505 | C106: 3.107626131 | D106: 178.0538616 | E106: 9.3 | F106: 0.9684829486 | G106: 0.9675643597 | H106: -0.0009185888247
A107: 88.73493614 | B107: 1.548716797 | C107: 3.112716634 | D107: 178.3455259 | E107: 9.4 | F107: 0.9731278536 | G107: 0.9724254321 | H107: -0.0007024214616
A108: 89.73493614 | B108: 1.56617009 | C108: 3.117788357 | D108: 178.6361143 | E108: 9.5 | F108: 0.9777236053 | G108: 0.9772685711 | H108: -0.0004550341785
A109: 90.73493614 | B109: 1.583623382 | C109: 3.122843343 | D109: 178.9257436 | E109: 9.6 | F109: 0.982271233 | G109: 0.9820957272 | H109: -0.0001755058393
A110: 91.73493614 | B110: 1.601076675 | C110: 3.127883601 | D110: 179.2145291 | E110: 9.7 | F110: 0.9867717343 | G110: 0.9869088191 | H110: 0.0001370848423
A111: 92.73493614 | B111: 1.618529967 | C111: 3.13291111 | D111: 179.5025842 | E111: 9.8 | F111: 0.9912260757 | G111: 0.9917097363 | H111: 0.0004836605779
A112: 93.73493614 | B112: 1.63598326 | C112: 3.13792782 | D112: 179.7900205 | E112: 9.9 | F112: 0.9956351946 | G112: 0.9965003413 | H112: 0.0008651467511
A113: 94.73493614 | B113: 1.653436552 | C113: 3.142935656 | D113: 180.0769484 | E113: 10 | F113: 1 | G113: 1.001282473 | H113: 0.001282472633

Sheet FFLoogx5P
B1: y=log x | C1: 1<x<10
B3: qin | C3: 49.87456206 | E3: Dq | F3: 90 | H3: Rx | I3: =F3/9 -> 10 | J3: =LN(2) -> 0.6931471806 | N3: 30 | P3: 49.87456206
B4: fin | C4: 108.6230964 | E4: Df | F4: 60 | H4: Ry | I4: =F4 -> 60 | N4: 10.90943725 | P4: 108.6230964
I6: başlangıç 30 90 f değişti | N6: 96.55334769
B7: x | C7: y | D7: q | E7: f | I7: başlangıç 30 120 q değişti
B8: =5.5-4.5*COS(PI()/10) -> 1.220245677 | C8: =LOG(B8) -> 0.08644727763 | D8: =$C$3+$I$3*(B8-1) -> 52.07701883 | E8: =$C$4+$I$4*C8 -> 113.8099331 | G8: =D8*D_R -> 0.9089154431 | H8: 1.986358053
B9: =5.5-4.5*COS(3*PI()/10) -> 2.854966365 | C9: =LOG(B9) -> 0.455600996 | D9: =$C$3+$I$3*(B9-1) -> 68.42422571 | E9: =$C$4+$I$4*C9 -> 135.9591562 | G9: 1.194228027 | H9: 2.372934923
B10: =5.5-4.5*COS(5*PI()/10) -> 5.5 | C10: 0.7403626895 | D10: =$C$3+$I$3*(B10-1) -> 94.87456206 | E10: 153.0448578 | G10: 1.655873484 | H10: 2.671136671
B11: =5.5-4.5*COS(7*PI()/10) -> 8.145033635 | C11: 0.9108928821 | D11: 121.3248984 | E11: 163.2766693 | G11: 2.117518942 | H11: 2.849715471
B12: =5.5-4.5*COS(9*PI()/10) -> 9.779754323 | C12: =LOG(B12) -> 0.990327945 | D12: =$C$3+$I$3*(B12-1) -> 137.6721053 | E12: =$C$4+$I$4*C12 -> 168.0427731 | G12: =D12*D_R -> 2.402831525 | H12: =E12*D_R -> 2.932899675
C14: =COS(H8) -> -0.4037039118 | D14: =-COS(G8) -> -0.6146016501 | E14: 1 | F14: =COS(H8-G8) -> 0.4735823304
C15: =COS(H9) -> -0.7188444237 | D15: =-COS(G9) -> -0.3677313933 | E15: 1 | F15: =COS(H9-G9) -> 0.3821201169
C16: =COS(H10) -> -0.8913616873 | D16: =-COS(G10) -> 0.0849745615 | E16: 1 | F16: =COS(H10-G10) -> 0.5273963411 | H16: Det | I16: =MDETERM(C14:F17) -> -1.328726672e-07
C17: =COS(H11) -> -0.957705403 | D17: =-COS(G11) -> 0.5198903758 | E17: 1 | F17: =COS(H11-G11) -> 0.7437078072
C18: =COS(H12) -> -0.9783025407 | D18: =-COS(G12) -> 0.7393033482 | E18: 1 | F18: =COS(H12-G12) -> 0.8627726168
H19: =C20*C14+C21*D14+C22-F14 -> 6.106226635e-16
C20: =MMULT(MINVERSE(C14:E16),F14:F16) -> 0.7721072008 | E20: a2 | F20: =1/C20 -> 1.295156941 | H20: =C20*C15+C21*D15+C22-F15 -> 4.996003611e-16 | K20: qin | L20: fin | M20: a2 | N20: a3 | O20: a4 | P20: |emax|
C21: 0.615141115 | E21: a3 | F21: =SQRT(1+F20^2+F22^2-2*C22*F20*F22) -> 0.6491216615 | H21: =C20*C16+C21*D16+C22-F16 -> 0 | K21: 30 | L21: 10.90943725 | M21: 0.06042553963 | N21: 1.074917482 | O21: 0.1292656026 | P21: 8.19x10-3
C22: 1.163351772 | E22: a4 | F22: =1/C21 -> 1.625643248 | K22: 30 | L22: 96.55334769 | M22: 6.838127819 | N22: 5.287540174 | O22: 2.609860464 | P22: 6.8x10-4
H23: =MIN(H27:H117) -> -0.0125657059
C24: =C20*C17+C21*D17+C22-F17 -> -1.327709577e-06 | E24: =SQRT(C24^2+C25^2) -> 1.458941013e-06 | H24: =MAX(H27:H117) -> 0.00236623233
C25: =C20*C18+C21*D18+C22-F18 -> 6.047281674e-07
E26: x | F26: yreq | G26: ygen
A27: =C3 -> 49.87456206 | B27: =A27*D_R -> 0.8704753209 | C27: =fourbar($F$20,$F$21,$F$22,1,-1,B27) -> 1.882671899 | D27: =C27/D_R -> 107.869154 | E27: =1+1/$I$3*(A27-$A$27) -> 1 | F27: =LOG(E27) -> 0 | G27: =1/$I$4*(D27-$C$4) -> -0.0125657059 | H27: =G27-F27 -> -0.0125657059
A28: =A27+1 -> 50.87456206 | B28: 0.8879286134 | C28: 1.934672367 | D28: 110.8485614 | E28: 1.1 | F28: =LOG(E28) -> 0.04139268516 | G28: =1/$I$4*(D28-$C$4) -> 0.03709108317 | H28: =G28-F28 -> -0.004301601992
A29: =A28+1 -> 51.87456206 | B29: 0.905381906 | C29: 1.978242056 | D29: 113.3449206 | E29: 1.2 | F29: 0.07918124605 | G29: 0.07869707081 | H29: -0.0004841752357
A30: 52.87456206 | B30: 0.9228351985 | C30: 2.016536284 | D30: 115.5390183 | E30: 1.3 | F30: 0.1139433523 | G30: 0.1152653649 | H30: 0.001322012598
A31: 53.87456206 | B31: 0.940288491 | C31: 2.051068055 | D31: 117.517543 | E31: 1.4 | F31: 0.1461280357 | G31: 0.1482407775 | H31: 0.002112741857
A32: 54.87456206 | B32: 0.9577417835 | C32: 2.082710924 | D32: 119.3305459 | E32: 1.5 | F32: 0.1760912591 | G32: 0.1784574914 | H32: 0.00236623233
A33: 55.87456206 | B33: 0.975195076 | C33: 2.112028095 | D33: 121.010296 | E33: 1.6 | F33: 0.2041199827 | G33: 0.2064533274 | H33: 0.002333344737
A34: 56.87456206 | B34: 0.9926483686 | C34: 2.139410526 | D34: 122.5791938 | E34: 1.7 | F34: 0.2304489214 | G34: 0.2326016231 | H34: 0.002152701703
A35: 57.87456206 | B35: 1.010101661 | C35: 2.165144405 | D35: 124.0536364 | E35: 1.8 | F35: 0.2552725051 | G35: 0.2571756675 | H35: 0.001903162393
A36: 58.87456206 | B36: 1.027554954 | C36: 2.189447775 | D36: 125.446117 | E36: 1.9 | F36: 0.278753601 | G36: 0.2803836767 | H36: 0.001630075782
A37: 59.87456206 | B37: 1.045008246 | C37: 2.212492024 | D37: 126.7664552 | E37: 2 | F37: 0.3010299957 | G37: 0.3023893134 | H37: 0.001359317726
A38: 60.87456206 | B38: 1.062461539 | C38: 2.234415269 | D38: 128.0225646 | E38: 2.1 | F38: 0.3222192947 | G38: 0.3233244699 | H38: 0.001105175198
A39: 61.87456206 | B39: 1.079914831 | C39: 2.255331106 | D39: 129.2209538 | E39: 2.2 | F39: 0.3424226808 | G39: 0.3432976235 | H39: 0.000874942696
A40: 62.87456206 | B40: 1.097368124 | C40: 2.27533456 | D40: 130.3670673 | E40: 2.3 | F40: 0.361727836 | G40: 0.3623995148 | H40: 0.000671678753
A41: 63.87456206 | B41: 1.114821416 | C41: 2.294506256 | D41: 131.4655246 | E41: 2.4 | F41: 0.3802112417 | G41: 0.380707136 | H41: 0.0004958942916
A42: 64.87456206 | B42: 1.132274709 | C42: 2.312915439 | D42: 132.5202931 | E42: 2.5 | F42: 0.3979400087 | G42: 0.398286611 | H42: 0.0003466022813
A43: 65.87456206 | B43: 1.149728001 | C43: 2.330622203 | D43: 133.5348158 | E43: 2.6 | F43: 0.414973348 | G43: 0.4151953243 | H43: 0.0002219762882
A44: 66.87456206 | B44: 1.167181294 | C44: 2.347679171 | D44: 134.5121081 | E44: 2.7 | F44: 0.4313637642 | G44: 0.4314835291 | H44: 0.0001197649293
A45: 67.87456206 | B45: 1.184634586 | C45: 2.364132795 | D45: 135.4548314 | E45: 2.8 | F45: 0.4471580313 | G45: 0.447195583 | H45: 3.75516994e-05
A46: 68.87456206 | B46: 1.202087879 | C46: 2.380024364 | D46: 136.3653512 | E46: 2.9 | F46: 0.4623979979 | G46: 0.4623709137 | H46: -2.708424218e-05
A47: 69.87456206 | B47: 1.219541171 | C47: 2.395390805 | D47: 137.2457834 | E47: 3 | F47: 0.4771212547 | G47: 0.4770447835 | H47: -7.647118688e-05
A48: 70.87456206 | B48: 1.236994464 | C48: 2.410265326 | D48: 138.0980307 | E48: 3.1 | F48: 0.4913616938 | G48: 0.4912489045 | H48: -0.0001127893604
A49: 71.87456206 | B49: 1.254447756 | C49: 2.424677939 | D49: 138.9238126 | E49: 3.2 | F49: 0.5051499783 | G49: 0.5050119362 | H49: -0.000138042157
A50: 72.87456206 | B50: 1.271901049 | C50: 2.438655889 | D50: 139.7246901 | E50: 3.3 | F50: 0.5185139399 | G50: 0.5183598953 | H50: -0.0001540445548
A51: 73.87456206 | B51: 1.289354341 | C51: 2.452224008 | D51: 140.5020861 | E51: 3.4 | F51: 0.531478917 | G51: 0.5313164946 | H51: -0.0001624224093
A52: 74.87456206 | B52: 1.306807634 | C52: 2.465405011 | D52: 141.2573019 | E52: 3.5 | F52: 0.5440680444 | G52: 0.5439034259 | H52: -0.0001646184558
A53: 75.87456206 | B53: 1.324260926 | C53: 2.478219749 | D53: 141.9915323 | E53: 3.6 | F53: 0.5563025008 | G53: 0.5561405985 | H53: -0.0001619022632
A54: 76.87456206 | B54: 1.341714219 | C54: 2.490687414 | D54: 142.7058769 | E54: 3.7 | F54: 0.5682017241 | G54: 0.5680463417 | H54: -0.0001553823194
A55: 77.87456206 | B55: 1.359167511 | C55: 2.502825728 | D55: 143.401351 | E55: 3.8 | F55: 0.5797835966 | G55: 0.5796375776 | H55: -0.0001460190597
A56: 78.87456206 | B56: 1.376620804 | C56: 2.514651092 | D56: 144.0788945 | E56: 3.9 | F56: 0.591064607 | G56: 0.590929969 | H56: -0.0001346380662
A57: 79.87456206 | B57: 1.394074097 | C57: 2.526178726 | D57: 144.7393793 | E57: 4 | F57: 0.6020599913 | G57: 0.6019380484 | H57: -0.0001219429593
A58: 80.87456206 | B58: 1.411527389 | C58: 2.53742278 | D58: 145.3836161 | E58: 4.1 | F58: 0.6127838567 | G58: 0.612675329 | H58: -0.0001085276835
A59: 81.87456206 | B59: 1.428980682 | C59: =fourbar($F$20,$F$21,$F$22,1,-1,B59) -> 2.54839644 | D59: 146.0123605 | E59: =1+1/$I$3*(A59-$A$27) -> 4.2 | F59: 0.6232492904 | G59: 0.6231544024 | H59: -9.488802776e-05
A60: 82.87456206 | B60: 1.446433974 | C60: 2.559112016 | D60: 146.6263178 | E60: 4.3 | F60: 0.6334684556 | G60: 0.6333870233 | H60: -8.143229879e-05
A61: 83.87456206 | B61: 1.463887267 | C61: 2.569581019 | D61: 147.2261475 | E61: 4.4 | F61: 0.6434526765 | G61: 0.6433841854 | H61: -6.849112478e-05
A62: 84.87456206 | B62: 1.481340559 | C62: 2.579814236 | D62: 147.8124676 | E62: 4.5 | F62: 0.6532125138 | G62: 0.6531561874 | H62: -5.632640315e-05
A63: 85.87456206 | B63: 1.498793852 | C63: 2.589821784 | D63: 148.3858579 | E63: 4.6 | F63: 0.6627578317 | G63: 0.6627126923 | H63: -4.513942694e-05
A64: 86.87456206 | B64: 1.516247144 | C64: 2.599613173 | D64: 148.9468632 | E64: 4.7 | F64: 0.6720978579 | G64: 0.6720627797 | H64: -3.507823838e-05
A65: 87.87456206 | B65: 1.533700437 | C65: 2.609197348 | D65: 149.495996 | E65: 4.8 | F65: 0.6812412374 | G65: 0.6812149931 | H65: -2.624426486e-05
A66: 88.87456206 | B66: 1.551153729 | C66: 2.61858274 | D66: 150.0337393 | E66: 4.9 | F66: 0.69019608 | G66: 0.6901773817 | H66: -1.869829496e-05
A67: 89.87456206 | B67: 1.568607022 | C67: 2.627777298 | D67: 150.5605487 | E67: 5 | F67: 0.6989700043 | G67: 0.6989575385 | H67: -1.246585238e-05
A68: 90.87456206 | B68: 1.586060314 | C68: 2.636788533 | D68: 151.0768544 | E68: 5.1 | F68: 0.7075701761 | G68: 0.7075626341 | H68: -7.542023766e-06
A69: 91.87456206 | B69: 1.603513607 | C69: 2.645623544 | D69: 151.5830633 | E69: 5.2 | F69: 0.7160033436 | G69: 0.7159994478 | H69: -3.895793613e-06
A70: 92.87456206 | B70: 1.620966899 | C70: 2.654289049 | D70: 152.0795601 | E70: 5.3 | F70: 0.7242758696 | G70: 0.7242743957 | H70: -1.473936113e-06
A71: 93.87456206 | B71: 1.638420192 | C71: 2.662791413 | D71: 152.5667097 | E71: 5.4 | F71: 0.7323937598 | G71: 0.7323935553 | H71: -2.045101438e-07
A72: 94.87456206 | B72: 1.655873484 | C72: 2.671136671 | D72: 153.0448578 | E72: 5.5 | F72: 0.7403626895 | G72: 0.7403626895 | H72: 0
A73: 95.87456206 | B73: 1.673326777 | C73: 2.679330549 | D73: 153.5143324 | E73: 5.6 | F73: 0.748188027 | G73: 0.7481872669 | H73: -7.601408443e-07
A74: 96.87456206 | B74: 1.690780069 | C74: 2.687378487 | D74: 153.9754453 | E74: 5.7 | F74: 0.7558748557 | G74: 0.7558724812 | H74: -2.374464511e-06
A75: 97.87456206 | B75: 1.708233362 | C75: 2.695285654 | D75: 154.4284925 | E75: 5.8 | F75: 0.7634279936 | G75: 0.763423269 | H75: -4.724598112e-06
A76: 98.87456206 | B76: 1.725686654 | C76: 2.703056966 | D76: 154.8737559 | E76: 5.9 | F76: 0.7708520116 | G76: 0.7708443253 | H76: -7.686344996e-06
A77: 99.87456206 | B77: 1.743139947 | C77: 2.710697103 | D77: 155.3115035 | E77: 6 | F77: 0.7781512504 | G77: 0.7781401188 | H77: -1.113157499e-05
A78: 100.8745621 | B78: 1.760593239 | C78: 2.718210521 | D78: 155.7419907 | E78: 6.1 | F78: 0.785329835 | G78: 0.7853149051 | H78: -1.492994842e-05
A79: 101.8745621 | B79: 1.778046532 | C79: 2.725601468 | D79: 156.1654607 | E79: 6.2 | F79: 0.7923916895 | G79: 0.792372739 | H79: -1.895049638e-05
A80: 102.8745621 | B80: 1.795499824 | C80: 2.73287399 | D80: 156.5821456 | E80: 6.3 | F80: 0.7993405495 | G80: 0.7993174864 | H80: -2.306307783e-05
A81: 103.8745621 | B81: 1.812953117 | C81: 2.74003195 | D81: 156.9922664 | E81: 6.4 | F81: 0.806179974 | G81: 0.8061528343 | H81: -2.713973233e-05
A82: 104.8745621 | B82: 1.83040641 | C82: 2.74707903 | D82: 157.3960344 | E82: 6.5 | F82: 0.8129133566 | G82: 0.8128823007 | H82: -3.105594619e-05
A83: 105.8745621 | B83: 1.847859702 | C83: 2.754018749 | D83: 157.793651 | E83: 6.6 | F83: 0.8195439355 | G83: 0.8195092437 | H83: -3.469184817e-05
A84: 106.8745621 | B84: 1.865312995 | C84: 2.760854463 | D84: 158.1853086 | E84: 6.7 | F84: 0.8260748027 | G84: 0.8260368694 | H84: -3.793335022e-05
A85: 107.8745621 | B85: 1.882766287 | C85: 2.767589378 | D85: 158.5711908 | E85: 6.8 | F85: 0.8325089127 | G85: 0.8324682395 | H85: -4.067324802e-05
A86: 108.8745621 | B86: 1.90021958 | C86: 2.774226556 | D86: 158.9514731 | E86: 6.9 | F86: 0.8388490907 | G86: 0.8388062784 | H86: -4.281229512e-05
A87: 109.8745621 | B87: 1.917672872 | C87: 2.780768925 | D87: 159.3263232 | E87: 7 | F87: 0.84509804 | G87: 0.8450537797 | H87: -4.426026461e-05
A88: 110.8745621 | B88: 1.935126165 | C88: 2.787219276 | D88: 159.6959011 | E88: 7.1 | F88: 0.8512583487 | G88: 0.8512134117 | H88: -4.493701166e-05
A89: 111.8745621 | B89: 1.952579457 | C89: 2.79358028 | D89: 160.0603598 | E89: 7.2 | F89: 0.8573324964 | G89: 0.8572877229 | H89: -4.477355049e-05
A90: 112.8745621 | B90: 1.97003275 | C90: 2.799854484 | D90: 160.4198452 | E90: 7.3 | F90: 0.8633228601 | G90: 0.863279147 | H90: -4.371315957e-05
A91: 113.8745621 | B91: =A91*D_R -> 1.987486042 | C91: =fourbar($F$20,$F$21,$F$22,1,-1,B91) -> 2.806044323 | D91: =C91/D_R -> 160.7744968 | E91: =1+1/$I$3*(A91-$A$27) -> 7.4 | F91: 0.8692317197 | G91: 0.8691900072 | H91: -4.171252906e-05
A92: 114.8745621 | B92: 2.004939335 | C92: 2.812152116 | D92: 161.1244476 | E92: 7.5 | F92: =LOG(E92) -> 0.8750612634 | G92: =1/$I$4*(D92-$C$4) -> 0.8750225204 | H92: =G92-F92 -> -3.874296543e-05
A93: =A92+1 -> 115.8745621 | B93: 2.022392627 | C93: 2.818180079 | D93: 161.4698244 | E93: 7.6 | F93: 0.8808135923 | G93: 0.8807788006 | H93: -3.479166902e-05
A94: 116.8745621 | B94: 2.03984592 | C94: 2.82413032 | D94: 161.8107481 | E94: 7.7 | F94: 0.8864907252 | G94: 0.8864608621 | H94: -2.98631014e-05
A95: 117.8745621 | B95: 2.057299212 | C95: 2.830004847 | D95: 162.1473337 | E95: 7.8 | F95: 0.8920946027 | G95: 0.8920706222 | H95: -2.398046109e-05
A96: 118.8745621 | B96: 2.074752505 | C96: 2.835805569 | D96: 162.4796906 | E96: 7.9 | F96: 0.8976270913 | G96: 0.897609904 | H96: -1.718728809e-05
A97: 119.8745621 | B97: 2.092205797 | C97: 2.841534299 | D97: 162.8079227 | E97: 8 | F97: 0.903089987 | G97: 0.9030804378 | H97: -9.549219779e-06
A98: 120.8745621 | B98: 2.10965909 | C98: 2.847192752 | D98: 163.1321282 | E98: 8.1 | F98: 0.9084850189 | G98: 0.908483863 | H98: -1.155923859e-06
A99: 121.8745621 | B99: 2.127112382 | C99: 2.852782553 | D99: 163.4524001 | E99: 8.2 | F99: 0.9138138524 | G99: 0.9138217291 | H99: 7.876762745e-06
A100: 122.8745621 | B100: 2.144565675 | C100: 2.858305229 | D100: 163.7688262 | E100: 8.3 | F100: 0.9190780924 | G100: 0.9190954968 | H100: 1.740445592e-05
A101: 123.8745621 | B101: 2.162018967 | C101: 2.863762219 | D101: 164.0814887 | E101: 8.4 | F101: 0.9242792861 | G101: 0.9243065376 | H101: 2.725156931e-05
A102: 124.8745621 | B102: 2.17947226 | C102: 2.869154863 | D102: 164.3904644 | E102: 8.5 | F102: 0.9294189257 | G102: 0.9294561341 | H102: 3.720833805e-05
A103: 125.8745621 | B103: 2.196925552 | C103: 2.874484413 | D103: 164.6958251 | E103: 8.6 | F103: 0.9344984512 | G103: 0.9345454787 | H103: 4.70274701e-05
A104: 126.8745621 | B104: 2.214378845 | C104: 2.87975202 | D104: 164.9976368 | E104: 8.7 | F104: 0.9395192526 | G104: 0.939575673 | H104: 5.642036504e-05
A105: 127.8745621 | B105: 2.231832137 | C105: 2.88495874 | D105: 165.2959599 | E105: 8.8 | F105: 0.9444826722 | G105: 0.944547725 | H105: 6.505282984e-05
A106: 128.8745621 | B106: 2.24928543 | C106: 2.89010553 | D106: 165.5908492 | E106: 8.9 | F106: 0.9493900066 | G106: 0.9494625469 | H106: 7.254020777e-05
A107: 129.8745621 | B107: 2.266738723 | C107: 2.895193239 | D107: 165.8823535 | E107: 9 | F107: 0.9542425094 | G107: 0.9543209513 | H107: 7.844182144e-05
A108: 130.8745621 | B108: 2.284192015 | C108: 2.90022261 | D108: 166.1705152 | E108: 9.1 | F108: 0.9590413923 | G108: 0.9591236469 | H108: 8.225461093e-05
A109: 131.8745621 | B109: 2.301645308 | C109: 2.905194271 | D109: 166.4553704 | E109: 9.2 | F109: 0.9637878273 | G109: 0.9638712332 | H109: 8.340582448e-05
A110: 132.8745621 | B110: 2.3190986 | C110: 2.910108727 | D110: 166.736948 | E110: 9.3 | F110: 0.9684829486 | G110: 0.9685641931 | H110: 8.124458945e-05
A111: 133.8745621 | B111: 2.336551893 | C111: 2.914966355 | D111: 167.0152695 | E111: 9.4 | F111: 0.9731278536 | G111: 0.9732028858 | H111: 7.503215417e-05
A112: 134.8745621 | B112: 2.354005185 | C112: 2.919767389 | D112: 167.2903485 | E112: 9.5 | F112: 0.9777236053 | G112: 0.9777875358 | H112: 6.393054509e-05
A113: 135.8745621 | B113: 2.371458478 | C113: 2.924511913 | D113: 167.5621897 | E113: 9.6 | F113: 0.982271233 | G113: 0.9823182224 | H113: 4.698932482e-05
A114: 136.8745621 | B114: 2.38891177 | C114: 2.929199841 | D114: 167.8307883 | E114: 9.7 | F114: 0.9867717343 | G114: 0.9867948643 | H114: 2.313006248e-05
A115: 137.8745621 | B115: 2.406365063 | C115: 2.933830904 | D115: 168.0961286 | E115: 9.8 | F115: 0.9912260757 | G115: 0.9912172037 | H115: -8.871968116e-06
A116: 138.8745621 | B116: 2.423818355 | C116: 2.938404625 | D116: 168.3581835 | E116: 9.9 | F116: 0.9956351946 | G116: 0.9955847851 | H116: -5.040946978e-05
A117: 139.8745621 | B117: 2.441271648 | C117: 2.942920293 | D117: 168.6169123 | E117: 10 | F117: 1 | G117: 0.999896931 | H117: -0.0001030689509

Sheet FFLoogx5P (2)
B1: y=log x | C1: 1<x<10
B3: qin | C3: 49.8719756 | E3: Dq | F3: 90 | H3: Rx | I3: =F3/9 -> 10 | J3: =LN(2) -> 0.6931471806 | N3: 30
B4: fin | C4: 108.6235941 | E4: Df | F4: 60 | H4: Ry | I4: =F4 -> 60 | N4: 10.90943725
N6: 96.55334769
B7: x | C7: y | D7: q | E7: f
B8: =5.5-4.5*COS(PI()/10) -> 1.220245677 | C8: =LOG(B8) -> 0.08644727763 | D8: =$C$3+$I$3*(B8-1) -> 52.07443237 | E8: =$C$4+$I$4*C8 -> 113.8104308 | G8: =D8*D_R -> 0.9088703009 | H8: 1.98636674
B9: =5.5-4.5*COS(3*PI()/10) -> 2.854966365 | C9: =LOG(B9) -> 0.455600996 | D9: =$C$3+$I$3*(B9-1) -> 68.42163925 | E9: =$C$4+$I$4*C9 -> 135.9596539 | G9: 1.194182884 | H9: 2.37294361
B10: =5.5-4.5*COS(5*PI()/10) -> 5.5 | C10: 0.7403626895 | D10: =$C$3+$I$3*(B10-1) -> 94.8719756 | E10: 153.0453555 | G10: 1.655828342 | H10: 2.671145358
B11: =5.5-4.5*COS(7*PI()/10) -> 8.145033635 | C11: 0.9108928821 | D11: 121.322312 | E11: 163.277167 | G11: 2.1174738 | H11: 2.849724158
B12: =5.5-4.5*COS(9*PI()/10) -> 9.779754323 | C12: 0.990327945 | D12: 137.6695188 | E12: 168.0432708 | G12: 2.402786383 | H12: 2.932908361
C14: =COS(H8) -> -0.4037118591 | D14: =-COS(G8) -> -0.6146372593 | E14: 1 | F14: =COS(H8-G8) -> 0.4735349199
C15: =COS(H9) -> -0.7188504625 | D15: =-COS(G9) -> -0.3677733721 | E15: 1 | F15: =COS(H9-G9) -> 0.3820703723
C16: =COS(H10) -> -0.8913656249 | D16: =-COS(G10) -> 0.08492958247 | E16: 1 | F16: =COS(H10-G10) -> 0.5273506063 | H16: Det | I16: =MDETERM(C14:F17) -> -9.650743981e-08
C17: =COS(H11) -> -0.9577079026 | D17: =-COS(G11) -> 0.5198518133 | E17: 1 | F17: =COS(H11-G11) -> 0.7436718212
C18: =COS(H12) -> -0.9783043404 | D18: =-COS(G12) -> 0.7392729499 | E18: 1 | F18: =COS(H12-G12) -> 0.8627454001
H19: =C20*C14+C21*D14+C22-F14 -> 0
C20: =MMULT(MINVERSE(C14:E16),F14:F16) -> 0.7721171428 | E20: a2 | F20: =1/C20 -> 1.295140264 | H20: =C20*C15+C21*D15+C22-F15 -> 0 | K20: qin | L20: fin | M20: a2 | N20: a3 | O20: a4 | P20: |emax|
C21: 0.615154254 | E21: a3 | F21: =SQRT(1+F20^2+F22^2-2*C22*F20*F22) -> 0.6491542253 | H21: =C20*C16+C21*D16+C22-F16 -> 0 | K21: 30 | L21: 10.90943725 | M21: 0.06042553963 | N21: 1.074917482 | O21: 0.1292656026 | P21: 8.19x10-3
C22: 1.163344492 | E22: a4 | F22: =1/C21 -> 1.625608526 | K22: 30 | L22: 96.55334769 | M22: 6.838127819 | N22: 5.287540174 | O22: 2.609860464 | P22: 6.8x10-4
H23: =MIN(H27:H117) -> -0.01255922955
C24: =C20*C17+C21*D17+C22-F17 -> -9.643375167e-07 | E24: =SQRT(C24^2+C25^2) -> 1.05980915e-06 | H24: =MAX(H27:H117) -> 0.002364987906
C25: =C20*C18+C21*D18+C22-F18 -> 4.396004877e-07
E26: x | F26: yreq | G26: ygen
A27: =C3 -> 49.8719756 | B27: =A27*D_R -> 0.8704301787 | C27: =fourbar($F$20,$F$21,$F$22,1,-1,B27) -> 1.882687368 | D27: =C27/D_R -> 107.8700403 | E27: =1+1/$I$3*(A27-$A$27) -> 1 | F27: =LOG(E27) -> 0 | G27: =1/$I$4*(D27-$C$4) -> -0.01255922955 | H27: =G27-F27 -> -0.01255922955
A28: =A27+1 -> 50.8719756 | B28: 0.8878834712 | C28: 1.93468323 | D28: 110.8491838 | E28: 1.1 | F28: =LOG(E28) -> 0.04139268516 | G28: =1/$I$4*(D28-$C$4) -> 0.03709316105 | H28: =G28-F28 -> -0.004299524111
A29: =A28+1 -> 51.8719756 | B29: 0.9053367637 | C29: 1.978250985 | D29: 113.3454323 | E29: 1.2 | F29: 0.07918124605 | G29: 0.07869730299 | H29: -0.0004839430598
A30: 52.8719756 | B30: 0.9227900563 | C30: 2.016544294 | D30: 115.5394773 | E30: 1.3 | F30: 0.1139433523 | G30: 0.1152647191 | H30: 0.001321366788
A31: 53.8719756 | B31: 0.9402433488 | C31: 2.051075625 | D31: 117.5179768 | E31: 1.4 | F31: 0.1461280357 | G31: 0.1482397112 | H31: 0.00211167556
A32: 54.8719756 | B32: 0.9576966413 | C32: 2.082718307 | D32: 119.3309689 | E32: 1.5 | F32: 0.1760912591 | G32: 0.178456247 | H32: 0.002364987906
A33: 55.8719756 | B33: 0.9751499338 | C33: 2.112035435 | D33: 121.0107166 | E33: 1.6 | F33: 0.2041199827 | G33: 0.2064520415 | H33: 0.002332058808
A34: 56.8719756 | B34: 0.9926032263 | C34: 2.139417906 | D34: 122.5796166 | E34: 1.7 | F34: 0.2304489214 | G34: 0.2326003749 | H34: 0.002151453552
A35: 57.8719756 | B35: 1.010056519 | C35: 2.165151872 | D35: 124.0540643 | E35: 1.8 | F35: 0.2552725051 | G35: 0.2571745032 | H35: 0.001901998054
A36: 58.8719756 | B36: 1.027509811 | C36: 2.189455358 | D36: 125.4465514 | E36: 1.9 | F36: 0.278753601 | G36: 0.280382622 | H36: 0.001629021079
A37: 59.8719756 | B37: 1.044963104 | C37: 2.212499735 | D37: 126.766897 | E37: 2 | F37: 0.3010299957 | G37: 0.3023883815 | H37: 0.001358385797
A38: 60.8719756 | B38: 1.062416396 | C38: 2.234423114 | D38: 128.0230141 | E38: 2.1 | F38: 0.3222192947 | G38: 0.3233236658 | H38: 0.001104371041
A39: 61.8719756 | B39: 1.079869689 | C39: 2.255339085 | D39: 129.2214109 | E39: 2.2 | F39: 0.3424226808 | G39: 0.3432969468 | H39: 0.0008742660254
A40: 62.8719756 | B40: 1.097322981 | C40: 2.275342668 | D40: 130.3675318 | E40: 2.3 | F40: 0.361727836 | G40: 0.3623989619 | H40: 0.0006711258511
A41: 63.8719756 | B41: 1.114776274 | C41: 2.294514487 | D41: 131.4659962 | E41: 2.4 | F41: 0.3802112417 | G41: 0.3807067009 | H41: 0.0004954592328
A42: 64.8719756 | B42: 1.132229566 | C42: 2.312923786 | D42: 132.5207713 | E42: 2.5 | F42: 0.3979400087 | G42: 0.3982862864 | H42: 0.0003462777584
A43: 65.8719756 | B43: 1.149682859 | C43: 2.330630657 | D43: 133.5353002 | E43: 2.6 | F43: 0.414973348 | G43: 0.4151951021 | H43: 0.0002217541768
A44: 66.8719756 | B44: 1.167136152 | C44: 2.347687723 | D44: 134.5125982 | E44: 2.7 | F44: 0.4313637642 | G44: 0.4314834008 | H44: 0.0001196366779
A45: 67.8719756 | B45: 1.184589444 | C45: 2.364141437 | D45: 135.4553265 | E45: 2.8 | F45: 0.4471580313 | G45: 0.4471955399 | H45: 3.750859907e-05
A46: 68.8719756 | B46: 1.202042737 | C46: 2.380033086 | D46: 136.3658509 | E46: 2.9 | F46: 0.4623979979 | G46: 0.462370947 | H46: -2.705087053e-05
A47: 69.8719756 | B47: 1.219496029 | C47: 2.395399598 | D47: 137.2462872 | E47: 3 | F47: 0.4771212547 | G47: 0.4770448849 | H47: -7.636986339e-05
A48: 70.8719756 | B48: 1.236949322 | C48: 2.410274181 | D48: 138.098538 | E48: 3.1 | F48: 0.4913616938 | G48: 0.4912490655 | H48: -0.0001126283584
A49: 71.8719756 | B49: 1.254402614 | C49: 2.424686848 | D49: 138.924323 | E49: 3.2 | F49: 0.5051499783 | G49: 0.5050121489 | H49: -0.0001378294444
A50: 72.8719756 | B50: 1.271855907 | C50: 2.438664844 | D50: 139.7252032 | E50: 3.3 | F50: 0.5185139399 | G50: 0.5183601521 | H50: -0.0001537877568
A51: 73.8719756 | B51: 1.289309199 | C51: 2.452233002 | D51: 140.5026014 | E51: 3.4 | F51: 0.531478917 | G51: 0.5313167883 | H51: -0.0001621287859
A52: 74.8719756 | B52: 1.306762492 | C52: 2.465414037 | D52: 141.2578191 | E52: 3.5 | F52: 0.5440680444 | G52: 0.5439037495 | H52: -0.0001642948908
A53: 75.8719756 | B53: 1.324215784 | C53: 2.478228799 | D53: 141.9920508 | E53: 3.6 | F53: 0.5563025008 | G53: 0.5561409455 | H53: -0.0001615552602
A54: 76.8719756 | B54: 1.341669077 | C54: 2.490696482 | D54: 142.7063965 | E54: 3.7 | F54: 0.5682017241 | G54: 0.5680467061 | H54: -0.0001550180043
A55: 77.8719756 | B55: 1.359122369 | C55: 2.502834808 | D55: 143.4018713 | E55: 3.8 | F55: 0.5797835966 | G55: 0.5796379534 | H55: -0.0001456431863
A56: 78.8719756 | B56: 1.376575662 | C56: 2.514660179 | D56: 144.0794152 | E56: 3.9 | F56: 0.591064607 | G56: 0.590930351 | H56: -0.0001342560251
A57: 79.8719756 | B57: 1.394028954 | C57: 2.526187814 | D57: 144.7399 | E57: 4 | F57: 0.6020599913 | G57: 0.6019384315 | H57: -0.000121559788
A58: 80.8719756 | B58: 1.411482247 | C58: 2.537431864 | D58: 145.3841366 | E58: 4.1 | F58: 0.6127838567 | G58: 0.6126757086 | H58: -0.000108148078
A59: 81.8719756 | B59: 1.428935539 | C59: =fourbar($F$20,$F$21,$F$22,1,-1,B59) -> 2.548405516 | D59: 146.0128805 | E59: =1+1/$I$3*(A59-$A$27) -> 4.2 | F59: 0.6232492904 | G59: 0.623154774 | H59: -9.451635473e-05
A60: 82.8719756 | B60: 1.446388832 | C60: 2.559121079 | D60: 146.6268371 | E60: 4.3 | F60: 0.6334684556 | G60: 0.633387383 | H60: -8.107260775e-05
A61: 83.8719756 | B61: 1.463842124 | C61: 2.569590066 | D61: 147.2266659 | E61: 4.4 | F61: 0.6434526765 | G61: 0.6433845293 | H61: -6.814716038e-05
A62: 84.8719756 | B62: 1.481295417 | C62: 2.579823263 | D62: 147.8129848 | E62: 4.5 | F62: 0.6532125138 | G62: 0.6531565122 | H62: -5.600161719e-05
A63: 85.8719756 | B63: 1.498748709 | C63: 2.589830788 | D63: 148.3863738 | E63: 4.6 | F63: 0.6627578317 | G63: 0.6627129947 | H63: -4.483698999e-05
A64: 86.8719756 | B64: 1.516202002 | C64: 2.59962215 | D64: 148.9473775 | E64: 4.7 | F64: 0.6720978579 | G64: 0.6720630569 | H64: -3.48010509e-05
A65: 87.8719756 | B65: 1.533655294 | C65: 2.609206296 | D65: 149.4965086 | E65: 4.8 | F65: 0.6812412374 | G65: 0.6812152424 | H65: -2.599496778e-05
A66: 88.8719756 | B66: 1.551108587 | C66: 2.618591656 | D66: 150.0342501 | E66: 4.9 | F66: 0.69019608 | G66: 0.6901776007 | H66: -1.847927958e-05
A67: 89.8719756 | B67: 1.568561879 | C67: 2.627786181 | D67: 150.5610576 | E67: 5 | F67: 0.6989700043 | G67: 0.6989577251 | H67: -1.22792697e-05
A68: 90.8719756 | B68: 1.586015172 | C68: 2.63679738 | D68: 151.0773613 | E68: 5.1 | F68: 0.7075701761 | G68: 0.7075627863 | H68: -7.389793092e-06
A69: 91.8719756 | B69: 1.603468465 | C69: 2.645632353 | D69: 151.5835679 | E69: 5.2 | F69: 0.7160033436 | G69: 0.715999564 | H69: -3.779610498e-06
A70: 92.8719756 | B70: 1.620921757 | C70: 2.654297818 | D70: 152.0800626 | E70: 5.3 | F70: 0.7242758696 | G70: 0.7242744743 | H70: -1.39527961e-06
A71: 93.8719756 | B71: 1.63837505 | C71: 2.662800142 | D71: 152.5672098 | E71: 5.4 | F71: 0.7323937598 | G71: 0.7323935952 | H71: -1.646493659e-07
A72: 94.8719756 | B72: 1.655828342 | C72: 2.671145358 | D72: 153.0453555 | E72: 5.5 | F72: 0.7403626895 | G72: 0.7403626895 | H72: 0
A73: 95.8719756 | B73: 1.673281635 | C73: 2.679339194 | D73: 153.5148277 | E73: 5.6 | F73: 0.748188027 | G73: 0.7481872261 | H73: -8.008678014e-07
A74: 96.8719756 | B74: 1.690734927 | C74: 2.687387088 | D74: 153.975938 | E74: 5.7 | F74: 0.7558748557 | G74: 0.7558723991 | H74: -2.456590237e-06
A75: 97.8719756 | B75: 1.70818822 | C75: 2.69529421 | D75: 154.4289828 | E75: 5.8 | F75: 0.7634279936 | G75: 0.763423145 | H75: -4.848603883e-06
A76: 98.8719756 | B76: 1.725641512 | C76: 2.703065478 | D76: 154.8742437 | E76: 5.9 | F76: 0.7708520116 | G76: 0.7708441591 | H76: -7.852524696e-06
A77: 99.8719756 | B77: 1.743094805 | C77: 2.710705571 | D77: 155.3119887 | E77: 6 | F77: 0.7781512504 | G77: 0.7781399103 | H77: -1.134003757e-05
A78: 100.8719756 | B78: 1.760548097 | C78: 2.718218945 | D78: 155.7424734 | E78: 6.1 | F78: 0.785329835 | G78: 0.7853146544 | H78: -1.518061968e-05
A79: 101.8719756 | B79: 1.77800139 | C79: 2.725609848 | D79: 156.1659409 | E79: 6.2 | F79: 0.7923916895 | G79: 0.7923724464 | H79: -1.924312006e-05
A80: 102.8719756 | B80: 1.795454682 | C80: 2.732882327 | D80: 156.5826232 | E80: 6.3 | F80: 0.7993405495 | G80: 0.7993171522 | H80: -2.339721596e-05
A81: 103.8719756 | B81: 1.812907975 | C81: 2.740040244 | D81: 156.9927417 | E81: 6.4 | F81: 0.806179974 | G81: 0.8061524592 | H81: -2.751476493e-05
A82: 104.8719756 | B82: 1.830361267 | C82: 2.747087282 | D82: 157.3965072 | E82: 6.5 | F82: 0.8129133566 | G82: 0.8128818856 | H82: -3.147107016e-05
A83: 105.8719756 | B83: 1.84781456 | C83: 2.75402696 | D83: 157.7941215 | E83: 6.6 | F83: 0.8195439355 | G83: 0.8195087895 | H83: -3.514607544e-05
A84: 106.8719756 | B84: 1.865267852 | C84: 2.760862634 | D84: 158.1857767 | E84: 6.7 | F84: 0.8260748027 | G84: 0.8260363772 | H84: -3.842550516e-05
A85: 107.8719756 | B85: 1.882721145 | C85: 2.767597511 | D85: 158.5716567 | E85: 6.8 | F85: 0.8325089127 | G85: 0.8324677107 | H85: -4.120196392e-05
A86: 108.8719756 | B86: 1.900174437 | C86: 2.774234653 | D86: 158.951937 | E86: 6.9 | F86: 0.8388490907 | G86: 0.8388057147 | H86: -4.33760099e-05
A87: 109.8719756 | B87: 1.91762773 | C87: 2.780776986 | D87: 159.3267851 | E87: 7 | F87: 0.84509804 | G87: 0.8450531828 | H87: -4.485721552e-05
A88: 110.8719756 | B88: 1.935081022 | C88: 2.787227305 | D88: 159.6963611 | E88: 7.1 | F88: 0.8512583487 | G88: 0.8512127835 | H88: -4.556522905e-05
A89: 111.8719756 | B89: 1.952534315 | C89: 2.793588278 | D89: 160.060818 | E89: 7.2 | F89: 0.8573324964 | G89: 0.8572870656 | H89: -4.543085056e-05
A90: 112.8719756 | B90: 1.969987607 | C90: 2.799862455 | D90: 160.4203019 | E90: 7.3 | F90: 0.8633228601 | G90: 0.863278463 | H90: -4.43971359e-05
A91: 113.8719756 | B91: =A91*D_R -> 1.9874409 | C91: =fourbar($F$20,$F$21,$F$22,1,-1,B91) -> 2.806052268 | D91: =C91/D_R -> 160.7749521 | E91: =1+1/$I$3*(A91-$A$27) -> 7.4 | F91: 0.8692317197 | G91: 0.8691892992 | H91: -4.242054298e-05
A92: 114.8719756 | B92: 2.004894192 | C92: 2.81216004 | D92: 161.1249016 | E92: 7.5 | F92: =LOG(E92) -> 0.8750612634 | G92: =1/$I$4*(D92-$C$4) -> 0.8750217913 | H92: =G92-F92 -> -3.947213505e-05
A93: =A92+1 -> 115.8719756 | B93: 2.022347485 | C93: 2.818187983 | D93: 161.4702773 | E93: 7.6 | F93: 0.8808135923 | G93: 0.8807780534 | H93: -3.553885681e-05
A94: 116.8719756 | B94: 2.039800778 | C94: 2.824138209 | D94: 161.8112001 | E94: 7.7 | F94: 0.8864907252 | G94: 0.8864601003 | H94: -3.062490014e-05
A95: 117.8719756 | B95: 2.05725407 | C95: 2.830012724 | D95: 162.1477851 | E95: 7.8 | F95: 0.8920946027 | G95: 0.8920698495 | H95: -2.475317815e-05
A96: 118.8719756 | B96: 2.074707363 | C96: 2.835813439 | D96: 162.4801416 | E96: 7.9 | F96: 0.8976270913 | G96: 0.8976091244 | H96: -1.796692766e-05
A97: 119.8719756 | B97: 2.092160655 | C97: 2.841542166 | D97: 162.8083734 | E97: 8 | F97: 0.903089987 | G97: 0.9030796555 | H97: -1.033146301e-05
A98: 120.8719756 | B98: 2.109613948 | C98: 2.847200622 | D98: 163.1325791 | E98: 8.1 | F98: 0.9084850189 | G98: 0.9084830828 | H98: -1.936106551e-06
A99: 121.8719756 | B99: 2.12706724 | C99: 2.85279043 | D99: 163.4528515 | E99: 8.2 | F99: 0.9138138524 | G99: 0.9138209561 | H99: 7.10367513e-06
A100: 122.8719756 | B100: 2.144520533 | C100: 2.85831312 | D100: 163.7692783 | E100: 8.3 | F100: 0.9190780924 | G100: 0.9190947363 | H100: 1.664389632e-05
A101: 123.8719756 | B101: 2.161973825 | C101: 2.863770128 | D101: 164.0819418 | E101: 8.4 | F101: 0.9242792861 | G101: 0.9243057955 | H101: 2.650940051e-05
A102: 124.8719756 | B102: 2.179427118 | C102: 2.869162799 | D102: 164.3909191 | E102: 8.5 | F102: 0.9294189257 | G102: 0.9294554166 | H102: 3.649088809e-05
A103: 125.8719756 | B103: 2.19688041 | C103: 2.874492381 | D103: 164.6962817 | E103: 8.6 | F103: 0.9344984512 | G103: 0.9345447928 | H103: 4.634157206e-05
A104: 126.8719756 | B104: 2.214333703 | C104: 2.879760029 | D104: 164.9980957 | E104: 8.7 | F104: 0.9395192526 | G104: 0.939575026 | H104: 5.577340192e-05
A105: 127.8719756 | B105: 2.231786995 | C105: 2.884966799 | D105: 165.2964216 | E105: 8.8 | F105: 0.9444826722 | G105: 0.9445471249 | H105: 6.445278519e-05
A106: 128.8719756 | B106: 2.249240288 | C106: 2.890113646 | D106: 165.5913142 | E106: 8.9 | F106: 0.9493900066 | G106: 0.9494620024 | H106: 7.19957231e-05
A107: 129.8719756 | B107: 2.26669358 | C107: 2.895201424 | D107: 165.8828224 | E107: 9 | F107: 0.9542425094 | G107: 0.9543204717 | H107: 7.796226128e-05
A108: 130.8719756 | B108: 2.284146873 | C108: 2.900230873 | D108: 166.1709887 | E108: 9.1 | F108: 0.9590413923 | G108: 0.9591232425 | H108: 8.185013687e-05
A109: 131.8719756 | B109: 2.301600165 | C109: 2.905202624 | D109: 166.455849 | E109: 9.2 | F109: 0.9637878273 | G109: 0.9638709148 | H109: 8.308747974e-05
A110: 132.8719756 | B110: 2.319053458 | C110: 2.910117183 | D110: 166.7374325 | E110: 9.3 | F110: 0.9684829486 | G110: 0.9685639729 | H110: 8.102439565e-05
A111: 133.8719756 | B111: 2.33650675 | C111: 2.914974927 | D111: 167.0157607 | E111: 9.4 | F111: 0.9731278536 | G111: 0.9732027768 | H111: 7.492322263e-05
A112: 134.8719756 | B112: 2.353960043 | C112: 2.919776093 | D112: 167.2908473 | E112: 9.5 | F112: 0.9777236053 | G112: 0.9777875525 | H112: 6.394720517e-05
A113: 135.8719756 | B113: 2.371413335 | C113: 2.924520765 | D113: 167.5626969 | E113: 9.6 | F113: 0.982271233 | G113: 0.9823183803 | H113: 4.714727269e-05
A114: 136.8719756 | B114: 2.388866628 | C114: 2.929208859 | D114: 167.831305 | E114: 9.7 | F114: 0.9867717343 | G114: 0.9867951808 | H114: 2.344653425e-05
A115: 137.8719756 | B115: 2.40631992 | C115: 2.933840108 | D115: 168.096656 | E115: 9.8 | F115: 0.9912260757 | G115: 0.9912176977 | H115: -8.37799384e-06
A116: 138.8719756 | B116: 2.423773213 | C116: 2.938414037 | D116: 168.3587228 | E116: 9.9 | F116: 0.9956351946 | G116: 0.9955854776 | H116: -4.971703374e-05
A117: 139.8719756 | B117: 2.441226505 | C117: 2.942929937 | D117: 168.6174648 | E117: 10 | F117: 1 | G117: 0.9998978452 | H117: -0.0001021548314

Sheet FFLoogxPP-PP
B1: y=log x | C1: 1<x<10
B3: qin | C3: 30 | E3: Dq | F3: 90 | H3: Rx | I3: =F3/9 -> 10 | J3: =LN(2) -> 0.6931471806 | N3: 30
B4: fin | C4: 113.5434306 | E4: Df | F4: 60 | H4: Ry | I4: =F4 -> 60 | N4: 10.90943725
I5: başlangıç 30 90 f değişti | N5: 96.55334769
B6: x | C6: y | D6: q | E6: f | I6: başlangıç 30 120 q değişti
B7: =5-4*COS(PI()/4) -> 2.171572875 | C7: =LOG(B7) -> 0.3367744083 | D7: =$C$3+$I$3*(B7-1) -> 41.71572875 | E7: =$C$4+$I$4*C7 -> 133.7498951 | G7: =D7*D_R -> 0.7280768166 | H7: =E7*D_R -> 2.334376044
J8: =I4/I3/B7/LN(10) -> 1.199944483
B9: =5-4*COS(3*PI()/4) -> 7.828427125 | C9: =LOG(B9) -> 0.8936745131 | D9: =$C$3+$I$3*(B9-1) -> 98.28427125 | E9: =$C$4+$I$4*C9 -> 167.1639014 | G9: 1.715384136 | H9: 2.917560469
J10: =I4/I3/B9/LN(10) -> 0.3328595706
C12: =COS(H7) -> -0.6915117331 | D12: =-COS(G7) -> -0.7464555361 | E12: 1 | F12: =COS(H7-G7) -> -0.03549544232 | H12: Det | I12: =MDETERM(C12:F15) -> -4.369943079e-05
C13: =-SIN(H7)*J8 -> -0.8667981704 | D13: =SIN(G7) -> 0.6654352956 | E13: 0 | F13: =-SIN(H7-G7)*(J8-1) -> -0.1998184858
C14: =COS(H9) -> -0.9750095764 | D14: =-COS(G9) -> 0.1440845524 | E14: 1 | F14: =COS(H9-G9) -> 0.3603284702
C15: =-SIN(H9)*J10 -> -0.07394902638 | D15: =+SIN(G9) -> 0.9895653802 | E15: 0 | F15: =-SIN(H9-G9)*(J10-1) -> 0.6223255975 | H15: =$C$17*C12+$C$18*D12+$C$19*E12-F12 -> 0
C16: =C17*C15+C18*D15-F15 -> -7.49215665e-05 | H16: =$C$17*C13+$C$18*D13+$C$19*E13-F13 -> 0 | K16: qin | L16: fin | M16: a2 | N16: a3 | O16: a4 | P16: |emax|
C17: =MMULT(MINVERSE(C12:E14),F12:F14) -> 0.756668943 | E17: a2 | F17: =1/C17 -> 1.321581927 | H17: 0 | K17: 30 | L17: 10.90943725 | M17: 0.06042553963 | N17: 1.074917482 | O17: 0.1292656026 | P17: 8.19x10-3
C18: 0.6853570477 | E18: a3 | F18: =SQRT(1+F17^2+F19^2-2*C19*F17*F19) -> 1.010673194 | H18: -7.49215665e-05 | K18: 30 | L18: 96.55334769 | M18: 6.838127819 | N18: 5.287540174 | O18: 2.609860464 | P18: 6.8x10-4
C19: 0.9993385724 | E19: a4 | F19: =1/C18 -> 1.45909348
H20: =MIN(H23:H113) -> 1.925082447e-07
H21: =MAX(H23:H113) -> 0.02776213234
E22: x | F22: yreq | G22: ygen
A23: =C3 -> 30 | B23: =A23*D_R -> 0.5235987756 | C23: =fourbar($F$17,$F$18,$F$19,1,-1,B23) -> 2.010779145 | D23: =C23/D_R -> 115.2091585 | E23: =1+1/$I$3*(A23-$A$23) -> 1 | F23: =LOG(E23) -> 0 | G23: =1/$I$4*(D23-$C$4) -> 0.02776213234 | H23: =G23-F23 -> 0.02776213234
A24: =A23+1 -> 31 | B24: 0.5410520681 | C24: =fourbar($F$17,$F$18,$F$19,1,-1,B24) -> 2.046365269 | D24: 117.2480932 | E24: =1+1/$I$3*(A24-$A$23) -> 1.1 | F24: =LOG(E24) -> 0.04139268516 | G24: =1/$I$4*(D24-$C$4) -> 0.06174437734 | H24: =G24-F24 -> 0.02035169218
A25: =A24+1 -> 32 | B25: 0.5585053606 | C25: 2.080063443 | D25: 119.1788564 | E25: 1.2 | F25: 0.07918124605 | G25: 0.09392376307 | H25: 0.01474251702
A26: 33 | B26: 0.5759586532 | C26: 2.112028035 | D26: 121.0102926 | E26: 1.3 | F26: 0.1139433523 | G26: 0.1244477008 | H26: 0.01050434854
A27: 34 | B27: 0.5934119457 | C27: 2.142396163 | D27: 122.7502582 | E27: 1.4 | F27: 0.1461280357 | G27: 0.1534471262 | H27: 0.007319090515
A28: 35 | B28: 0.6108652382 | C28: 2.171290284 | D28: 124.4057694 | E28: 1.5 | F28: 0.1760912591 | G28: 0.1810389795 | H28: 0.004947720478
A29: 36 | B29: 0.6283185307 | C29: 2.198820286 | D29: 125.9831223 | E29: 1.6 | F29: 0.2041199827 | G29: 0.2073281949 | H29: 0.003208212224
A30: 37 | B30: 0.6457718232 | C30: 2.225085178 | D30: 127.4879897 | E30: 1.7 | F30: 0.2304489214 | G30: 0.232409319 | H30: 0.00196039766
A31: 38 | B31: 0.6632251158 | C31: 2.25017449 | D31: 128.9255015 | E31: 1.8 | F31: 0.2552725051 | G31: 0.2563678478 | H31: 0.001095342677
A32: 39 | B32: 0.6806784083 | C32: 2.274169445 | D32: 130.3003111 | E32: 1.9 | F32: 0.278753601 | G32: 0.2792813413 | H32: 0.0005277403203
A33: 40 | B33: 0.6981317008 | C33: 2.297143936 | D33: 131.6166525 | E33: 2 | F33: 0.3010299957 | G33: 0.3012203646 | H33: 0.0001903689463
A34: 41 | B34: 0.7155849933 | C34: 2.319165373 | D34: 132.8783879 | E34: 2.1 | F34: 0.3222192947 | G34: 0.3222492878 | H34: 2.999305235e-05
A35: 42 | B35: 0.7330382858 | C35: 2.340295394 | D35: 134.0890489 | E35: 2.2 | F35: 0.3424226808 | G35: 0.3424269713 | H35: 4.290475512e-06
A36: 43 | B36: 0.7504915784 | C36: 2.360590487 | D36: 135.2518721 | E36: 2.3 | F36: 0.361727836 | G36: 0.3618073576 | H36: 7.952162341e-05
A37: 44 | B37: 0.7679448709 | C37: 2.380102528 | D37: 136.3698297 | E37: 2.4 | F37: 0.3802112417 | G37: 0.3804399846 | H37: 0.0002287429058
A38: 45 | B38: 0.7853981634 | C38: 2.39887925 | D38: 137.4456566 | E38: 2.5 | F38: 0.3979400087 | G38: 0.3983704331 | H38: 0.000430424428
A39: 46 | B39: 0.8028514559 | C39: 2.416964651 | D39: 138.4818738 | E39: 2.6 | F39: 0.414973348 | G39: 0.4156407194 | H39: 0.0006673714717
A40: 47 | B40: 0.8203047484 | C40: 2.434399361 | D40: 139.480809 | E40: 2.7 | F40: 0.4313637642 | G40: 0.4322896408 | H40: 0.0009258766447
A41: 48 | B41: 0.837758041 | C41: 2.451220955 | D41: 140.4446154 | E41: 2.8 | F41: 0.4471580313 | G41: 0.4483530802 | H41: 0.001195048839
A42: 49 | B42: 0.8552113335 | C42: 2.467464243 | D42: 141.3752872 | E42: 2.9 | F42: 0.4623979979 | G42: 0.4638642768 | H42: 0.001466278875
A43: 50 | B43: 0.872664626 | C43: 2.483161514 | D43: 142.2746746 | E43: 3 | F43: 0.4771212547 | G43: 0.4788540664 | H43: 0.001732811645
A44: 51 | B44: 0.8901179185 | C44: 2.498342767 | D44: 143.1444963 | E44: 3.1 | F44: 0.4913616938 | G44: 0.4933510957 | H44: 0.001989401821
A45: 52 | B45: 0.907571211 | C45: 2.51303591 | D45: 143.9863514 | E45: 3.2 | F45: 0.5051499783 | G45: 0.5073820139 | H45: 0.002232035571
A46: 53 | B46: 0.9250245036 | C46: 2.527266938 | D46: 144.8017293 | E46: 3.3 | F46: 0.5185139399 | G46: 0.5209716446 | H46: 0.002457704723
A47: 54 | B47: 0.9424777961 | C47: 2.541060096 | D47: 145.592019 | E47: 3.4 | F47: 0.531478917 | G47: 0.5341431399 | H47: 0.002664222824
A48: 55 | B48: 0.9599310886 | C48: 2.554438023 | D48: 146.3585177 | E48: 3.5 | F48: 0.5440680444 | G48: 0.5469181192 | H48: 0.002850074853
A49: 56 | B49: 0.9773843811 | C49: 2.567421886 | D49: 147.1024383 | E49: 3.6 | F49: 0.5563025008 | G49: 0.5593167948 | H49: 0.003014294076
A50: 57 | B50: 0.9948376736 | C50: 2.580031495 | D50: 147.8249157 | E50: 3.7 | F50: 0.5682017241 | G50: 0.571358085 | H50: 0.003156360892
A51: 58 | B51: 1.012290966 | C51: 2.592285415 | D51: 148.5270136 | E51: 3.8 | F51: 0.5797835966 | G51: 0.5830597162 | H51: 0.003276119578
A52: 59 | B52: 1.029744259 | C52: 2.604201057 | D52: 149.2097296 | E52: 3.9 | F52: 0.591064607 | G52: 0.5944383167 | H52: 0.003373709628
A53: 60 | B53: 1.047197551 | C53: 2.615794774 | D53: 149.8740006 | E53: 4 | F53: 0.6020599913 | G53: 0.6055095004 | H53: 0.003449509063
A54: 61 | B54: 1.064650844 | C54: 2.627081934 | D54: 150.5207073 | E54: 4.1 | F54: 0.6127838567 | G54: 0.6162879443 | H54: 0.003504087571
A55: 62 | B55: =A55*D_R -> 1.082104136 | C55: 2.638076999 | D55: 151.1506781 | E55: 4.2 | F55: 0.6232492904 | G55: 0.6267874581 | H55: 0.003538167748
A56: 63 | B56: 1.099557429 | C56: 2.64879359 | D56: 151.7646935 | E56: 4.3 | F56: 0.6334684556 | G56: 0.6370210486 | H56: 0.003552593025
A57: 64 | B57: 1.117010721 | C57: 2.659244547 | D57: 152.3634893 | E57: 4.4 | F57: 0.6434526765 | G57: 0.6470009776 | H57: 0.003548301148
A58: 65 | B58: 1.134464014 | C58: 2.669441988 | D58: 152.9477596 | E58: 4.5 | F58: 0.6532125138 | G58: 0.656738816 | H58: 0.003526302244
A59: 66 | B59: 1.151917306 | C59: 2.679397356 | D59: 153.5181601 | E59: 4.6 | F59: 0.6627578317 | G59: 0.6662454924 | H59: 0.003487660721
A60: 67 | B60: 1.169370599 | C60: 2.689121471 | D60: 154.0753109 | E60: 4.7 | F60: 0.6720978579 | G60: 0.6755313383 | H60: 0.003433480346
A61: 68 | B61: 1.186823891 | C61: 2.69862457 | D61: 154.6197984 | E61: 4.8 | F61: 0.6812412374 | G61: 0.6846061294 | H61: 0.003364891985
A62: 69 | B62: 1.204277184 | C62: 2.707916348 | D62: 155.152178 | E62: 4.9 | F62: 0.69019608 | G62: 0.6934791236 | H62: 0.003283043556
A63: 70 | B63: 1.221730476 | C63: 2.717005994 | D63: 155.6729764 | E63: 5 | F63: 0.6989700043 | G63: 0.7021590962 | H63: 0.003189091845
A64: 71 | B64: 1.239183769 | C64: 2.725902226 | D64: 156.1826929 | E64: 5.1 | F64: 0.7075701761 | G64: 0.710654372 | H64: 0.003084195865
A65: 72 | B65: 1.256637061 | C65: 2.734613321 | D65: 156.6818019 | E65: 5.2 | F65: 0.7160033436 | G65: 0.7189728552 | H65: 0.002969511524
A66: 73 | B66: 1.274090354 | C66: 2.743147145 | D66: 157.170754 | E66: 5.3 | F66: 0.7242758696 | G66: 0.727122057 | H66: 0.002846187381
A67: 74 | B67: 1.291543646 | C67: 2.751511179 | D67: 157.6499779 | E67: 5.4 | F67: 0.7323937598 | G67: 0.7351091211 | H67: 0.002715361311
A68: 75 | B68: 1.308996939 | C68: 2.759712544 | D68: 158.1198814 | E68: 5.5 | F68: 0.7403626895 | G68: 0.7429408474 | H68: 0.002578157945
A69: 76 | B69: 1.326450232 | C69: 2.767758023 | D69: 158.5808534 | E69: 5.6 | F69: 0.748188027 | G69: 0.7506237137 | H69: 0.002435686741
A70: 77 | B70: 1.343903524 | C70: 2.775654083 | D70: 159.0332644 | E70: 5.7 | F70: 0.7558748557 | G70: 0.7581638963 | H70: 0.002289040602
A71: 78 | B71: 1.361356817 | C71: 2.783406898 | D71: 159.4774679 | E71: 5.8 | F71: 0.7634279936 | G71: 0.7655672885 | H71: 0.002139294938
A72: 79 | B72: 1.378810109 | C72: 2.791022359 | D72: 159.9138017 | E72: 5.9 | F72: 0.7708520116 | G72: 0.7728395188 | H72: 0.001987507114
A73: 80 | B73: 1.396263402 | C73: 2.798506102 | D73: 160.3425886 | E73: 6 | F73: 0.7781512504 | G73: 0.7799859666 | H73: 0.001834716201
A74: 81 | B74: 1.413716694 | C74: 2.805863515 | D74: 160.7641373 | E74: 6.1 | F74: 0.785329835 | G74: 0.787011778 | H74: 0.001681943004
A75: 82 | B75: 1.431169987 | C75: 2.813099756 | D75: 161.1787434 | E75: 6.2 | F75: 0.7923916895 | G75: 0.7939218798 | H75: 0.001530190294
A76: 83 | B76: 1.448623279 | C76: 2.820219771 | D76: 161.5866902 | E76: 6.3 | F76: 0.7993405495 | G76: 0.8007209927 | H76: 0.001380443239
A77: 84 | B77: 1.466076572 | C77: 2.827228299 | D77: 161.9882492 | E77: 6.4 | F77: 0.806179974 | G77: 0.807413644 | H77: 0.001233669975
A78: 85 | B78: 1.483529864 | C78: 2.834129891 | D78: 162.3836813 | E78: 6.5 | F78: 0.8129133566 | G78: 0.814004179 | H78: 0.001090822308
A79: 86 | B79: 1.500983157 | C79: 2.840928918 | D79: 162.7732369 | E79: 6.6 | F79: 0.8195439355 | G79: 0.8204967721 | H79: 0.000952836519
A80: 87 | B80: 1.518436449 | C80: 2.847629585 | D80: 163.1571568 | E80: 6.7 | F80: 0.8260748027 | G80: 0.826895437 | H80: 0.0008206342558
A81: 88 | B81: 1.535889742 | C81: 2.854235934 | D81: 163.5356728 | E81: 6.8 | F81: 0.8325089127 | G81: 0.8332040362 | H81: 0.0006951234953
A82: 89 | B82: 1.553343034 | C82: 2.860751863 | D82: 163.909008 | E82: 6.9 | F82: 0.8388490907 | G82: 0.8394262903 | H82: 0.0005771995642
A83: 90 | B83: 1.570796327 | C83: 2.867181129 | D83: 164.2773778 | E83: 7 | F83: 0.84509804 | G83: 0.8455657862 | H83: 0.0004677462085
A84: 91 | B84: 1.588249619 | C84: 2.873527354 | D84: 164.6409897 | E84: 7.1 | F84: 0.8512583487 | G84: 0.8516259854 | H84: 0.0003676367016
A85: 92 | B85: 1.605702912 | C85: 2.879794042 | D85: 165.0000445 | E85: 7.2 | F85: 0.8573324964 | G85: 0.8576102314 | H85: 0.0002777349866
A86: 93 | B86: 1.623156204 | C86: 2.885984577 | D86: 165.354736 | E86: 7.3 | F86: 0.8633228601 | G86: 0.863521757 | H86: 0.0001988968449
A87: 94 | B87: =A87*D_R -> 1.640609497 | C87: 2.892102236 | D87: =C87/D_R -> 165.705252 | E87: 7.4 | F87: 0.8692317197 | G87: 0.8693636908 | H87: 0.0001319710879
A88: 95 | B88: 1.658062789 | C88: =fourbar($F$17,$F$18,$F$19,1,-1,B88) -> 2.898150193 | D88: 166.0517744 | E88: =1+1/$I$3*(A88-$A$23) -> 7.5 | F88: =LOG(E88) -> 0.8750612634 | G88: =1/$I$4*(D88-$C$4) -> 0.8751390642 | H88: =G88-F88 -> 7.780076914e-05
A89: =A88+1 -> 96 | B89: 1.675516082 | C89: 2.904131526 | D89: 166.3944796 | E89: 7.6 | F89: 0.8808135923 | G89: 0.8808508167 | H89: 3.722441221e-05
A90: 97 | B90: 1.692969374 | C90: 2.910049224 | D90: 166.7335387 | E90: 7.7 | F90: 0.8864907252 | G90: 0.8865018024 | H90: 1.107725514e-05
A91: 98 | B91: 1.710422667 | C91: 2.915906193 | D91: 167.0691183 | E91: 7.8 | F91: 0.8920946027 | G91: 0.8920947952 | H91: 1.925082447e-07
A92: 99 | B92: 1.727875959 | C92: 2.921705257 | D92: 167.4013802 | E92: 7.9 | F92: 0.8976270913 | G92: 0.8976324939 | H92: 5.402625776e-06
A93: 100 | B93: 1.745329252 | C93: 2.927449171 | D93: 167.7304822 | E93: 8 | F93: 0.903089987 | G93: 0.9031175276 | H93: 2.75405908e-05
A94: 101 | B94: 1.762782545 | C94: 2.933140619 | D94: 168.0565782 | E94: 8.1 | F94: 0.9084850189 | G94: 0.9085524601 | H94: 6.744121366e-05
A95: 102 | B95: 1.780235837 | C95: 2.938782223 | D95: 168.3798183 | E95: 8.2 | F95: 0.9138138524 | G95: 0.9139397948 | H95: 0.0001259424446
A96: 103 | B96: 1.79768913 | C96: 2.944376545 | D96: 168.7003493 | E96: 8.3 | F96: 0.9190780924 | G96: 0.9192819791 | H96: 0.0002038867011
A97: 104 | B97: 1.815142422 | C97: 2.949926094 | D97: 169.0183151 | E97: 8.4 | F97: 0.9242792861 | G97: 0.9245814083 | H97: 0.0003021222119
A98: 105 | B98: 1.832595715 | C98: 2.955433329 | D98: 169.3338564 | E98: 8.5 | F98: 0.9294189257 | G98: 0.9298404301 | H98: 0.0004215043771
A99: 106 | B99: 1.850049007 | C99: 2.960900662 | D99: 169.6471115 | E99: 8.6 | F99: 0.9344984512 | G99: 0.9350613484 | H99: 0.0005628971488
A100: 107 | B100: 1.8675023 | C100: 2.966330464 | D100: 169.9582162 | E100: 8.7 | F100: 0.9395192526 | G100: 0.940246427 | H100: 0.0007271744305
A101: 108 | B101: 1.884955592 | C101: 2.971725067 | D101: 170.2673042 | E101: 8.8 | F101: 0.9444826722 | G101: 0.9453978936 | H101: 0.0009152214996
A102: 109 | B102: 1.902408885 | C102: 2.97708677 | D102: 170.5745072 | E102: 8.9 | F102: 0.9493900066 | G102: 0.9505179431 | H102: 0.001127936454
A103: 110 | B103: 1.919862177 | C103: 2.982417841 | D103: 170.8799551 | E103: 9 | F103: 0.9542425094 | G103: 0.9556087411 | H103: 0.001366231682
A104: 111 | B104: 1.93731547 | C104: 2.987720522 | D104: 171.1837763 | E104: 9.1 | F104: 0.9590413923 | G104: 0.9606724277 | H104: 0.001631035367
A105: 112 | B105: 1.954768762 | C105: 2.992997028 | D105: 171.4860978 | E105: 9.2 | F105: 0.9637878273 | G105: 0.9657111204 | H105: 0.001923293013
A106: 113 | B106: 1.972222055 | C106: 2.998249559 | D106: 171.7870456 | E106: 9.3 | F106: 0.9684829486 | G106: 0.9707269176 | H106: 0.002243969005
A107: 114 | B107: 1.989675347 | C107: 3.003480294 | D107: 172.0867447 | E107: 9.4 | F107: 0.9731278536 | G107: 0.9757219018 | H107: 0.002594048209
A108: 115 | B108: 2.00712864 | C108: 3.008691402 | D108: 172.3853192 | E108: 9.5 | F108: 0.9777236053 | G108: 0.9806981429 | H108: 0.002974537598
A109: 116 | B109: 2.024581932 | C109: 3.013885039 | D109: 172.6828927 | E109: 9.6 | F109: 0.982271233 | G109: 0.985657701 | H109: 0.003386467923
A110: 117 | B110: 2.042035225 | C110: 3.019063356 | D110: 172.9795884 | E110: 9.7 | F110: 0.9867717343 | G110: 0.9906026297 | H110: 0.003830895417
A111: 118 | B111: 2.059488517 | C111: 3.0242285 | D111: 173.2755293 | E111: 9.8 | F111: 0.9912260757 | G111: 0.9955349792 | H111: 0.004308903544
A112: 119 | B112: 2.07694181 | C112: 3.029382618 | D112: 173.5708386 | E112: 9.9 | F112: 0.9956351946 | G112: 1.000456799 | H112: 0.004821604789
A113: 120 | B113: 2.094395102 | C113: 3.034527859 | D113: 173.8656391 | E113: 10 | F113: 1 | G113: 1.005370142 | H113: 0.005370142487

Sheet FFLoogxP-PPP-P
B1: y=log x | C1: 1<x<10
B3: qin | C3: 166.9877586 | E3: Dq | F3: 90 | H3: Rx | I3: =F3/9 -> 10 | J3: =LN(2) -> 0.6931471806 | K3: =I3*D_R -> 0.1745329252
B4: fin | C4: 129.3781292 | E4: Df | F4: 60 | H4: Ry | I4: =F4 -> 60 | K4: =I4*D_R -> 1.047197551
I5: başlangıç 30 90 f değişti
A6: =C4-180 -> -50.62187082 | B6: x | C6: y | D6: q | E6: f | I6: başlangıç 30 120 q değişti
B7: 2 | C7: =LOG(B7) -> 0.3010299957 | D7: =$C$3+$I$3*(B7-1) -> 176.9877586 | E7: =$C$4+$I$4*C7 -> 147.4399289 | G7: =D7*D_R -> 3.089019123 | H7: 2.573312209
B8: 5 | C8: =LOG(B8) -> 0.6989700043 | D8: =$C$3+$I$3*(B8-1) -> 206.9877586 | E8: =$C$4+$I$4*C8 -> 171.3163294 | G8: 3.612617898 | H8: 2.990034011 | I8: f' | J8: =I4/I3/B8/LN(10) -> 0.5211533783
B9: 8 | C9: =LOG(B9) -> 0.903089987 | D9: =$C$3+$I$3*(B9-1) -> 236.9877586 | E9: =$C$4+$I$4*C9 -> 183.5635284 | G9: 4.136216674 | H9: 3.203787957 | I9: f" | J9: =K4/K3^2/B8^2/LN(10) -> 0.5971977811
A11: =C4+180 -> 309.3781292
I12: x=2,5,7
C14: =COS(H7) -> -0.842827657 | D14: =-COS(G7) -> 0.9986183302 | E14: 1 | F14: =COS(H7-G7) -> 0.869944325
C15: =COS(H8) -> -0.9885369564 | D15: =-COS(G8) -> 0.8911035004 | E15: 1 | F15: =COS(H8-G8) -> 0.8123744121
C16: =-SIN(H8)*J8 -> -0.07868326323 | D16: =+SIN(G8) -> -0.4538001229 | E16: 0 | F16: =-SIN(H8-G8)*(J8-1) -> -0.2792327939
C17: =COS(H8)*J8^2-SIN(H8)*J9 -> -0.3586518494 | D17: =COS(G8) -> -0.8911035004 | E17: 0 | F17: =SIN(H8-G8)*J9-COS(H8-G8)*(J8-1)^2 -> -0.5345202872
C18: =COS(H9) -> -0.9980664955 | D18: =-COS(G9) -> 0.5448182073 | E18: 1 | F18: =COS(H9-G9) -> 0.5958853132
C19: =C21*C17+C22*D17-F17 -> 5.892915123e-08 | E19: =SQRT(C19^2+C20^2) -> 7.583473823e-07
C20: =C21*C18+C22*D18+C23-F18 -> -7.560543018e-07 | I20: =$C$21*C14+$C$22*D14+$C$23*E14-F14 -> 0
C21: =MMULT(MINVERSE(C14:E16),F14:F16) -> -0.06757216639 | E21: a2 | F21: =1/C21 -> -14.79899274 | G21: =-F21 -> 14.79899274 | H21: =C21*C18+C22*D18+C23-F18 -> -7.560543018e-07 | I21: =$C$21*C15+$C$22*D15+$C$23*E15-F15 -> 0
C22: 0.627037275 | E22: a3 | F22: =SQRT(1+F21^2+F23^2-2*C23*F21*F23) -> 15.21092066 | I22: 0
C23: 0.1868217178 | E23: a4 | F23: =1/C22 -> 1.594801521 | H23: =MIN(H28:H118) -> -0.006716761622 | I23: 5.892915123e-08
H24: =MAX(H28:H118) -> 0.08852470278 | I24: -7.560543018e-07
E27: x | F27: yreq | G27: ygen
A28: =C3 -> 166.9877586 | B28: =A28*D_R-PI() -> -0.227106456 | C28: =fourbar($G$21,$F$22,$F$23,1,-1,B28) -> 8.633962493 | D28: =C28/D_R-360 -> 134.6896114 | E28: =1+1/$I$3*(A28-$A$28) -> 1 | F28: =LOG(E28) -> 0 | G28: =1/$I$4*(D28-$C$4) -> 0.08852470278 | H28: =G28-F28 -> 0.08852470278
A29: =A28+1 -> 167.9877586 | B29: =A29*D_R+PI() -> 6.073532144 | C29: =fourbar($G$21,$F$22,$F$23,1,-1,B29) -> 8.658025052 | D29: 136.0682944 | E29: 1.1 | F29: =LOG(E29) -> 0.04139268516 | G29: =1/$I$4*(D29-$C$4) -> 0.1115027532 | H29: =G29-F29 -> 0.07011006802
A30: =A29+1 -> 168.9877586 | B30: 6.090985436 | C30: 8.681715053 | D30: 137.4256315 | E30: 1.2 | F30: 0.07918124605 | G30: 0.1341250384 | H30: 0.05494379234
A31: 169.9877586 | B31: 6.108438729 | C31: 8.705020306 | D31: 138.7609241 | E31: 1.3 | F31: 0.1139433523 | G31: 0.1563799152 | H31: 0.04243656284
A32: 170.9877586 | B32: 6.125892021 | C32: 8.727929142 | D32: 140.0735037 | E32: 1.4 | F32: 0.1461280357 | G32: 0.1782562427 | H32: 0.03212820701
A33: 171.9877586 | B33: 6.143345314 | C33: 8.750430531 | D33: 141.3627384 | E33: 1.5 | F33: 0.1760912591 | G33: 0.1997434862 | H33: 0.02365222715
A34: 172.9877586 | B34: 6.160798606 | C34: 8.772514183 | D34: 142.6280384 | E34: 1.6 | F34: 0.2041199827 | G34: 0.2208318207 | H34: 0.01671183809
A35: 173.9877586 | B35: 6.178251899 | C35: 8.794170661 | D35: 143.8688632 | E35: 1.7 | F35: 0.2304489214 | G35: 0.2415122333 | H35: 0.0110633119
A36: 174.9877586 | B36: 6.195705191 | C36: 8.815391478 | D36: 145.0847264 | E36: 1.8 | F36: 0.2552725051 | G36: 0.2617766206 | H36: 0.006504115521
A37: 175.9877586 | B37: 6.213158484 | C37: 8.836169197 | D37: 146.275202 | E37: 1.9 | F37: 0.278753601 | G37: 0.2816178808 | H37: 0.002864279888
A38: 176.9877586 | B38: 6.230611776 | C38: 8.856497516 | D38: 147.4399289 | E38: 2 | F38: 0.3010299957 | G38: 0.3010299957 | H38: 1.942890293e-15
A39: 177.9877586 | B39: 6.248065069 | C39: 8.876371342 | D39: 148.5786153 | E39: 2.1 | F39: 0.3222192947 | G39: 0.3200081017 | H39: -0.002211193034
A40: 178.9877586 | B40: 6.265518361 | C40: 8.895786852 | D40: 149.6910421 | E40: 2.2 | F40: 0.3424226808 | G40: 0.3385485483 | H40: -0.003874132527
A41: 179.9877586 | B41: 6.282971654 | C41: 8.914741538 | D41: 150.7770656 | E41: 2.3 | F41: 0.361727836 | G41: 0.3566489404 | H41: -0.005078895663
A42: 180.9877586 | B42: 6.300424946 | C42: 2.650048928 | D42: =C42/D_R -> 151.8366191 | E42: 2.4 | F42: 0.3802112417 | G42: 0.3743081648 | H42: -0.005903076938
A43: 181.9877586 | B43: 6.317878239 | C43: 2.668079821 | D43: 152.8697132 | E43: 2.5 | F43: 0.3979400087 | G43: 0.3915263997 | H43: -0.006413609012
A44: 182.9877586 | B44: 6.335331531 | C44: 2.685650442 | D44: 153.8764355 | E44: 2.6 | F44: 0.414973348 | G44: 0.4083051061 | H44: -0.006668241896
A45: 183.9877586 | B45: 6.352784824 | C45: 2.702763635 | D45: 154.8569493 | E45: 2.7 | F45: 0.4313637642 | G45: 0.4246470025 | H45: -0.006716761622
A46: 184.9877586 | B46: 6.370238116 | C46: 2.719423523 | D46: 155.8114906 | E46: 2.8 | F46: 0.4471580313 | G46: 0.4405560231 | H46: -0.006602008213
A47: 185.9877586 | B47: 6.387691409 | C47: 2.735635437 | D47: 156.7403648 | E47: 2.9 | F47: 0.4623979979 | G47: 0.4560372605 | H47: -0.006360737399
A48: 186.9877586 | B48: 6.405144702 | C48: 2.75140585 | D48: 157.6439429 | E48: 3 | F48: 0.4771212547 | G48: 0.4710968955 | H48: -0.00602435922
A49: 187.9877586 | B49: 6.422597994 | C49: 2.766742288 | D49: 158.5226561 | E49: 3.1 | F49: 0.4913616938 | G49: 0.4857421155 | H49: -0.005619578317
A50: 188.9877586 | B50: 6.440051287 | C50: 2.781653238 | D50: 159.3769906 | E50: 3.2 | F50: 0.5051499783 | G50: 0.4999810238 | H50: -0.005168954524
A51: 189.9877586 | B51: 6.457504579 | C51: 2.796148042 | D51: 160.2074817 | E51: 3.3 | F51: 0.5185139399 | G51: 0.5138225421 | H51: -0.004691397735
A52: 190.9877586 | B52: 6.474957872 | C52: 2.810236794 | D52: 161.0147078 | E52: 3.4 | F52: 0.531478917 | G52: 0.5272763095 | H52: -0.004202607592
A53: 191.9877586 | B53: 6.492411164 | C53: 2.823930231 | D53: 161.7992839 | E53: 3.5 | F53: 0.5440680444 | G53: 0.5403525783 | H53: -0.003715466004
A54: 192.9877586 | B54: 6.509864457 | C54: 2.837239624 | D54: 162.5618559 | E54: 3.6 | F54: 0.5563025008 | G54: 0.5530621121 | H54: -0.003240388621
A55: 193.9877586 | B55: 6.527317749 | C55: 2.850176673 | D55: 163.3030942 | E55: 3.7 | F55: 0.5682017241 | G55: 0.565416084 | H55: -0.002785640044
A56: 194.9877586 | B56: 6.544771042 | C56: 2.862753407 | D56: 164.023688 | E56: 3.8 | F56: 0.5797835966 | G56: 0.5774259801 | H56: -0.002357616552
A57: 195.9877586 | B57: 6.562224334 | C57: 2.874982085 | D57: 164.7243396 | E57: 3.9 | F57: 0.591064607 | G57: 0.5891035076 | H57: -0.001961099468
A58: 196.9877586 | B58: 6.579677627 | C58: 2.88687511 | D58: 165.4057598 | E58: 4 | F58: 0.6020599913 | G58: 0.6004605096 | H58: -0.00159948176
A59: 197.9877586 | B59: 6.597130919 | C59: 2.898444943 | D59: 166.0686624 | E59: 4.1 | F59: 0.6127838567 | G59: 0.6115088865 | H59: -0.001274970182
A60: 198.9877586 | B60: =A60*D_R+PI() -> 6.614584212 | C60: 2.909704033 | D60: 166.7137607 | E60: =1+1/$I$3*(A60-$A$28) -> 4.2 | F60: 0.6232492904 | G60: 0.6222605254 | H60: -0.0009887649803
A61: 199.9877586 | B61: 6.632037504 | C61: 2.920664747 | D61: 167.3417634 | E61: 4.3 | F61: 0.6334684556 | G61: 0.6327272365 | H61: -0.0007412190635
A62: 200.9877586 | B62: 6.649490797 | C62: 2.931339315 | D62: 167.9533711 | E62: 4.4 | F62: 0.6434526765 | G62: 0.6429206981 | H62: -0.0005319783716
A63: 201.9877586 | B63: 6.666944089 | C63: 2.941739778 | D63: 168.5492737 | E63: 4.5 | F63: 0.6532125138 | G63: 0.6528524087 | H63: -0.0003601051166
A64: 202.9877586 | B64: 6.684397382 | C64: 2.951877946 | D64: 169.130148 | E64: 4.6 | F64: 0.6627578317 | G64: 0.6625336462 | H64: -0.0002241854515
A65: 203.9877586 | B65: 6.701850674 | C65: 2.961765364 | D65: 169.6966553 | E65: 4.7 | F65: 0.6720978579 | G65: 0.6719754349 | H65: -0.0001224230579
A66: 204.9877586 | B66: 6.719303967 | C66: 2.971413282 | D66: 170.2494402 | E66: 4.8 | F66: 0.6812412374 | G66: 0.6811885173 | H66: -5.272005285e-05
A67: 205.9877586 | B67: 6.736757259 | C67: 2.980832631 | D67: 170.7891292 | E67: 4.9 | F67: 0.69019608 | G67: 0.6901833335 | H67: -1.274653449e-05
A68: 206.9877586 | B68: 6.754210552 | C68: 2.990034011 | D68: 171.3163294 | E68: 5 | F68: 0.6989700043 | G68: 0.6989700043 | H68: 0
A69: 207.9877586 | B69: 6.771663844 | C69: 2.999027675 | D69: 171.8316284 | E69: 5.1 | F69: 0.7075701761 | G69: 0.7075583203 | H69: -1.185577857e-05
A70: 208.9877586 | B70: 6.789117137 | C70: 3.00782352 | D70: 172.3355932 | E70: 5.2 | F70: 0.7160033436 | G70: 0.7159577341 | H70: -4.560953543e-05
A71: 209.9877586 | B71: 6.806570429 | C71: 3.016431089 | D71: 172.8287706 | E71: 5.3 | F71: 0.7242758696 | G71: 0.7241773568 | H71: -9.851281262e-05
A72: 210.9877586 | B72: 6.824023722 | C72: 3.024859564 | D72: 173.3116866 | E72: 5.4 | F72: 0.7323937598 | G72: 0.7322259573 | H72: -0.0001678024855
A73: 211.9877586 | B73: 6.841477015 | C73: 3.033117771 | D73: 173.7848471 | E73: 5.5 | F73: 0.7403626895 | G73: 0.7401119646 | H73: -0.0002507249289
A74: 212.9877586 | B74: 6.858930307 | C74: 3.041214186 | D74: =C74/D_R -> 174.2487375 | E74: 5.6 | F74: 0.748188027 | G74: 0.7478434714 | H74: -0.0003445556067
A75: 213.9877586 | B75: 6.8763836 | C75: 3.049156938 | D75: 174.7038236 | E75: 5.7 | F75: 0.7558748557 | G75: 0.755428241 | H75: -0.0004466147211
A76: 214.9877586 | B76: 6.893836892 | C76: 3.05695382 | D76: 175.150552 | E76: 5.8 | F76: 0.7634279936 | G76: 0.7628737141 | H76: -0.0005542794885
A77: 215.9877586 | B77: 6.911290185 | C77: 3.064612294 | D77: 175.5893503 | E77: 5.9 | F77: 0.7708520116 | G77: 0.7701870181 | H77: -0.0006649935396
A78: 216.9877586 | B78: 6.928743477 | C78: 3.072139506 | D78: 176.0206278 | E78: 6 | F78: 0.7781512504 | G78: 0.7773749765 | H78: -0.0007762738853
A79: 217.9877586 | B79: 6.94619677 | C79: 3.079542295 | D79: 176.4447763 | E79: 6.1 | F79: 0.785329835 | G79: 0.7844441192 | H79: -0.0008857158303
A80: 218.9877586 | B80: 6.963650062 | C80: 3.086827202 | D80: 176.8621708 | E80: 6.2 | F80: 0.7923916895 | G80: 0.7914006933 | H80: -0.0009909961701
A81: 219.9877586 | B81: 6.981103355 | C81: 3.094000486 | D81: 177.2731697 | E81: 6.3 | F81: 0.7993405495 | G81: 0.7982506745 | H81: -0.001089874961
A82: 220.9877586 | B82: 6.998556647 | C82: 3.10106813 | D82: 177.6781159 | E82: 6.4 | F82: 0.806179974 | G82: 0.8049997779 | H82: -0.001180196115
A83: 221.9877586 | B83: 7.01600994 | C83: 3.10803586 | D83: 178.0773374 | E83: 6.5 | F83: 0.8129133566 | G83: 0.8116534696 | H83: -0.001259887025
A84: 222.9877586 | B84: 7.033463232 | C84: 3.11490915 | D84: 178.4711479 | E84: 6.6 | F84: 0.8195439355 | G84: 0.8182169781 | H84: -0.001326957428
A85: 223.9877586 | B85: 7.050916525 | C85: 3.121693238 | D85: 178.8598475 | E85: 6.7 | F85: 0.8260748027 | G85: 0.8246953051 | H85: -0.001379497627
A86: 224.9877586 | B86: 7.068369817 | C86: 3.128393136 | D86: 179.2437234 | E86: 6.8 | F86: 0.8325089127 | G86: 0.8310932365 | H86: -0.001415676243
A87: 225.9877586 | B87: 7.08582311 | C87: 3.135013641 | D87: 179.6230504 | E87: 6.9 | F87: 0.8388490907 | G87: 0.8374153532 | H87: -0.00143373758
A88: 226.9877586 | B88: 7.103276402 | C88: 3.141559347 | D88: 179.9980917 | E88: 7 | F88: 0.84509804 | G88: 0.8436660413 | H88: -0.00143199871
A89: 227.9877586 | B89: 7.120729695 | C89: 3.148034652 | D89: 180.3690993 | E89: 7.1 | F89: 0.8512583487 | G89: 0.8498495024 | H89: -0.00140884636
A90: 228.9877586 | B90: 7.138182987 | C90: 3.154443774 | D90: 180.7363149 | E90: 7.2 | F90: 0.8573324964 | G90: 0.8559697628 | H90: -0.00136273366
A91: 229.9877586 | B91: 7.15563628 | C91: 3.160790755 | D91: 181.0999702 | E91: 7.3 | F91: 0.8633228601 | G91: 0.8620306833 | H91: -0.0012921768
A92: 230.9877586 | B92: =A92*D_R+PI() -> 7.173089572 | C92: 3.167079474 | D92: 181.4602873 | E92: =1+1/$I$3*(A92-$A$28) -> 7.4 | F92: 0.8692317197 | G92: 0.8680359681 | H92: -0.001195751665
A93: 231.9877586 | B93: 7.190542865 | C93: =fourbar($G$21,$F$22,$F$23,1,-1,B93) -> 3.173313656 | D93: 181.8174796 | E93: 7.5 | F93: =LOG(E93) -> 0.8750612634 | G93: =1/$I$4*(D93-$C$4) -> 0.8739891729 | H93: =G93-F93 -> -0.00107209045
A94: =A93+1 -> 232.9877586 | B94: 7.207996157 | C94: 3.179496877 | D94: 182.171752 | E94: 7.6 | F94: 0.8808135923 | G94: 0.879893714 | H94: -0.0009198783107
A95: 233.9877586 | B95: 7.22544945 | C95: 3.185632576 | D95: 182.5233017 | E95: 7.7 | F95: 0.8864907252 | G95: 0.8857528751 | H95: -0.0007378500624
A96: 234.9877586 | B96: 7.242902742 | C96: 3.191724062 | D96: 182.8723181 | E96: 7.8 | F96: 0.8920946027 | G96: 0.8915698157 | H96: -0.0005247869445
A97: 235.9877586 | B97: 7.260356035 | C97: 3.19777452 | D97: 183.2189839 | E97: 7.9 | F97: 0.8976270913 | G97: 0.8973475778 | H97: -0.0002795134667
A98: 236.9877586 | B98: 7.277809328 | C98: 3.203787021 | D98: 183.5634747 | E98: 8 | F98: 0.903089987 | G98: 0.9030890926 | H98: -8.943462478e-07
A99: 237.9877586 | B99: 7.29526262 | C99: 3.209764523 | D99: 183.9059604 | E99: 8.1 | F99: 0.9084850189 | G99: 0.9087971873 | H99: 0.0003121684562
A100: 238.9877586 | B100: 7.312715913 | C100: 3.215709887 | D100: 184.2466046 | E100: 8.2 | F100: 0.9138138524 | G100: 0.914474591 | H100: 0.0006607385971
A101: 239.9877586 | B101: 7.330169205 | C101: 3.221625872 | D101: 184.5855656 | E101: 8.3 | F101: 0.9190780924 | G101: 0.9201239405 | H101: 0.001045848105
A102: 240.9877586 | B102: 7.347622498 | C102: 3.227515149 | D102: 184.9229963 | E102: 8.4 | F102: 0.9242792861 | G102: 0.9257477861 | H102: 0.001468500026
A103: 241.9877586 | B103: 7.36507579 | C103: 3.233380304 | D103: 185.259045 | E103: 8.5 | F103: 0.9294189257 | G103: 0.9313485967 | H103: 0.001929670965
A104: 242.9877586 | B104: 7.382529083 | C104: 3.239223842 | D104: 185.5938551 | E104: 8.6 | F104: 0.9344984512 | G104: 0.9369287648 | H104: 0.002430313516
A105: 243.9877586 | B105: 7.399982375 | C105: 3.245048194 | D105: 185.9275659 | E105: 8.7 | F105: 0.9395192526 | G105: 0.9424906112 | H105: 0.002971358592
A106: 244.9877586 | B106: 7.417435668 | C106: 3.25085572 | D106: =C106/D_R -> 186.2603126 | E106: 8.8 | F106: 0.9444826722 | G106: 0.9480363898 | H106: 0.003553717651
A107: 245.9877586 | B107: 7.43488896 | C107: 3.256648714 | D107: 186.5922267 | E107: 8.9 | F107: 0.9493900066 | G107: 0.9535682915 | H107: 0.004178284821
A108: 246.9877586 | B108: 7.452342253 | C108: 3.262429409 | D108: 186.9234361 | E108: 9 | F108: 0.9542425094 | G108: 0.9590884484 | H108: 0.004845938934
A109: 247.9877586 | B109: 7.469795545 | C109: 3.26819998 | D109: 187.2540655 | E109: 9.1 | F109: 0.9590413923 | G109: 0.9645989378 | H109: 0.005557545464
A110: 248.9877586 | B110: 7.487248838 | C110: 3.273962549 | D110: 187.5842363 | E110: 9.2 | F110: 0.9637878273 | G110: 0.9701017857 | H110: 0.006313958375
A111: 249.9877586 | B111: 7.50470213 | C111: 3.279719187 | D111: 187.9140674 | E111: 9.3 | F111: 0.9684829486 | G111: 0.9755989704 | H111: 0.007116021893
A112: 250.9877586 | B112: 7.522155423 | C112: 3.28547192 | D112: 188.2436747 | E112: 9.4 | F112: 0.9731278536 | G112: 0.9810924258 | H112: 0.007964572191
A113: 251.9877586 | B113: 7.539608715 | C113: 3.29122273 | D113: 188.5731718 | E113: 9.5 | F113: 0.9777236053 | G113: 0.9865840443 | H113: 0.008860438996
A114: 252.9877586 | B114: 7.557062008 | C114: 3.296973557 | D114: 188.90267 | E114: 9.6 | F114: 0.982271233 | G114: 0.9920756802 | H114: 0.009804447127
A115: 253.9877586 | B115: 7.5745153 | C115: 3.302726308 | D115: 189.2322783 | E115: 9.7 | F115: 0.9867717343 | G115: 0.9975691522 | H115: 0.01079741797
A116: 254.9877586 | B116: 7.591968593 | C116: 3.308482851 | D116: 189.562104 | E116: 9.8 | F116: 0.9912260757 | G116: 1.003066247 | H116: 0.01184017086
A117: 255.9877586 | B117: 7.609421885 | C117: 3.314245027 | D117: 189.8922523 | E117: 9.9 | F117: 0.9956351946 | G117: 1.008568719 | H117: 0.01293352447
A118: 256.9877586 | B118: 7.626875178 | C118: 3.320014645 | D118: 190.2228271 | E118: 10 | F118: 1 | G118: 1.014078298 | H118: 0.01407829803

Sheet Results
C2: P-P-P-P | D2: x1= | E2: 1.342542104 | P2: P-P-P-P | Q2: x1= | R2: 1.342542104 | U2: P-P-P-P | V2: x1= | W2: 1.342542104
D3: x2= | E3: 3.777924554 | F3: a2= | G3: 1.292294271 | Q3: x2= | R3: 3.777924554 | S3: a2= | T3: 1.292294271 | V3: x2= | W3: 3.777924554 | X3: a2= | Y3: -1.562670095
D4: x3= | E4: 7.222075446 | F4: a3= | G4: 0.7142170848 | Q4: x3= | R4: 7.222075446 | S4: a3= | T4: 0.7142170848 | V4: x3= | W4: 7.222075446 | X4: a3= | Y4: 1.529523664
D5: x4= | E5: 9.657457896 | F5: a4= | G5: 1.573981378 | Q5: x4= | R5: 9.657457896 | S5: a4= | T5: 1.573981378 | V5: x4= | W5: 9.657457896 | X5: a4= | Y5: 1.43601699
D6: qin | E6: 45o | F6: fin | G6: 108.90922o | Q6: qin | R6: 45o | S6: fin= | T6: 108.90922o | V6: fin | W6: 120o | X6: qin= | Y6: 193.60820o
C8: P-P-P-P | D8: x1= | E8: 1.342542104
D9: x2= | E9: 3.777924554 | F9: a2= | G9: 2.036028418
D10: x3= | E10: 7.222075446 | F10: a3= | G10: 2.044410963
D11: x4= | E11: 9.657457896 | F11: a4= | G11: 1.402172832
D12: fin | E12: 120o | F12: qin | G12: 4.73494o
C13: P-P-P-P-P | D13: x1= | E13: 1.220245677 | F13: a2= | G13: 1.220245677 | P13: P-P-P-P-P | Q13: x1= | R13: 1.220245677 | S13: a2= | T13: 1.220245677
D14: x2= | E14: 2.854966365 | F14: a3= | G14: 2.854966365 | Q14: x2= | R14: 2.854966365 | S14: a3= | T14: 2.854966365
D15: x3= | E15: 5.5 | F15: a4= | G15: 5.5 | Q15: x3= | R15: 5.5 | S15: a4= | T15: 5.5
D16: x4= | E16: 8.145033635 | F16: qin | G16: 49.87456206 | Q16: x4= | R16: 8.145033635 | S16: qin | T16: 49.87456206
D17: x5= | E17: 9.779754323 | F17: fin | G17: 108.623096o | Q17: x5= | R17: 9.779754323 | S17: fin | T17: 108.6230964
C18: P-PPP-P | F18: a2= | G18: 1.27717398
D19: x1= | E19: 2 | F19: a3= | G19: 0.5691803148
D20: x2= | E20: 5 | F20: a4= | G20: 1.671886208
D21: x3= | E21: 8 | F21: qin | G21: 166.9877586
F22: fin | G22: 129.3781292
C23: PPPPP | F23: a2= | G23: 1.1541755
F24: a3= | G24: 4.710083357
D25: x= | E25: 5 | F25: a4= | G25: 4.83279112
F26: q | G26: 94.89724o
F27: f | G27: 150.57211o
C29: Least Square | D29: xj=0.1j j=0,1,2…,10. | F29: a2= | G29: -17.95578786
F30: a3= | G30: 17.00189003
F31: a4= | G31: -2.239253716
F32: qin | G32: 87.50967o
F33: fin | G33: 24.88234o
C34: P-P-P-P-P | D34: x1= | E34: 0.02447174185 | F34: a2= | G34: -3.912774462
D35: x2= | E35: 0.2061073739 | F35: a3= | G35: 1.309797986
D36: x3= | E36: 0.5 | F36: a4= | G36: 3.528208413
D37: x4= | E37: 0.7938926261 | F37: qin | G37: 30.613o
D38: x5= | E38: 0.9755282581 | F38: fin | G38: 200.00632o
